{"text_format":"1","workbook":"xlsx","n_sheets":83,"sheets":["CAPA","Evolução","Analise mercado","Curriculum","dados proj","carat proj","carat proj 1","carat proj 2","TecnicosEntidades","CurriculoPessExt(1)","CurriculoPessExt(2)","CurriculoPessExt(3)","CurriculoPessExt(4)","CurriculoPessExt(5)","CurriculoPessExt(6)","CurriculoPessExt(7)","CurriculoPessExt(8)","CurriculoPessExt(9)","CurriculoPessExt(10)","CurriculoPessExt(11)","CurriculoPessExt(12)","CurriculoPessExt(13)","CurriculoPessExt(14)","CurriculoPessExt(15)","carat proj 3","carat proj 4","Amortizações","Atividades","Postos Trabalho","PessoalTecnico","CurriculoPessTec(1)","CurriculoPessTec(2)","CurriculoPessTec(3)","CurriculoPessTec(4)","CurriculoPessTec(5)","CurriculoPessTec(6)","CurriculoPessTec(7)","CurriculoPessTec(8)","CurriculoPessTec(9)","CurriculoPessTec(10)","CurriculoPessTec(11)","CurriculoPessTec(12)","CurriculoPessTec(13)","CurriculoPessTec(14)","CurriculoPessTec(15)","CurriculoPessTec(16)","CurriculoPessTec(17)","CurriculoPessTec(18)","CurriculoPessTec(19)","CurriculoPessTec(20)","CurriculoPessTec(21)","CurriculoPessTec(22)","CurriculoPessTec(23)","CurriculoPessTec(24)","CurriculoPessTec(25)","CurriculoPessTec(26)","CurriculoPessTec(27)","CurriculoPessTec(28)","CurriculoPessTec(29)","CurriculoPessTec(30)","CRITERIOS_SELECAO_AUTOVAL","Majorações","Financiamento","Balanço empresa ","Balanço da empresa pós Proj","D. Resultados empresa","D. Result da empresa pós Proj","Balanço empresa  (Cop1)","Balanço empresa pós Proj (Cop1)","D. Resultados empresa (Cop1)","D. Result empresa pós Pr (Cop1)","Balanço empresa  (Cop2)","Balanço empresa pós Proj (Cop2)","D. Resultados empresa (Cop2)","D. Result empresa pós Pr (Cop2)","Balanço do Projeto","D. Resultados do Projeto","BalançoEntNEmpr","BalançoEntNEmpr (2)","Indicadores","VENDAS EXTERIOR","Folha1","Base"],"not_rendered":{"charts":0,"images":47,"macros":1,"external_links":1,"defined_names":169,"comments":2,"pivot_tables":0},"unopened":[],"bounds":{"document_bytes":16777216,"sheet_cells":100000,"rows_first":2000,"rows_last":500,"rows_between":2000,"halvings":0,"cell_chars":16384,"cell_head_chars":4096},"cells_cut":0,"cells_raw":0,"read":"whole","date_system":"1900"}

{"sheet":"CAPA","index":0,"n_rows":21,"n_cols":20,"rows_kept":21,"cut":false,"hidden":false,"merged":[[19,6,19,17],[20,6,20,17],[19,2,19,5],[20,2,20,5],[8,2,8,17],[11,2,11,5],[17,2,17,5],[18,2,18,5],[18,6,18,17],[17,6,17,17],[15,2,15,19]]}
[null,"V_2_21_09_2017_17_44"]
[]
[]
[]
[]
[]
[null,null,"BENEFICIÁRIO:"]
[]
[]
[]
[null,null,"NIF:",null,null,null,null,null,null,null,"Sim",null,"Não"]
[null,null,null,null,null,null,null,"Copromoção:"]
[]
[null,null,"SISTEMA DE INCENTIVOS:"]
[]
[null,null,"PROCIÊNCIA"]
[]
[null,null,"Tipo de \nEntidade",null,null,null,"Nome",null,null,null,null,null,null,null,null,null,null,null," Tipo \nbeneficiário","Dimensão empresa"]
[null,null,"Beneficiário",null,null,null,{"$f":"+C9","v":0}]
[null,null,"CoPromotor1\n(Se aplicável)"]
[null,null,"CoPromotor\n(Se aplicável)"]

{"sheet":"Evolução","index":1,"n_rows":23,"n_cols":4,"rows_kept":23,"cut":false,"hidden":false,"merged":[[16,2,16,15],[4,2,4,14],[7,2,7,5],[11,2,11,14],[14,2,14,15]]}
[]
[]
[null,null,"BENEFICIÁRIO:"]
[]
[null,null,{"$f":"+CAPA!C9","v":0}]
[]
[null,null,"NIF:"]
[null,null,{"$f":"+CAPA!C12","v":0}]
[]
[null,null,"SISTEMA DE INCENTIVOS:"]
[]
[null,null,{"$f":"+CAPA!C16","v":"PROCIÊNCIA"}]
[]
[]
[null,null,"EVOLUÇÃO DA ENTIDADE PROMOTORA"]
[]
[null,null,"CARACTERIZAÇÃO DO PROMOTOR"]
[null,null,"  "]
[]
[null,null,null,"Historial da empresa promotora (e respectivos copromotores no caso de projetos de copromoção)"]
[null,null,null,"O perfil dos seus criadores, alterações ao capital social, participações e relações de grupos da empresa"]
[null,null,null,"Os pontos chaves na evolução da sua atividade (houve mudança ao longo do tempo?, qaul a atividade atual?), fases criticas e soluções implementadas;"]
[null,null,null,"Alterações de tecnologias e principais investimentos realizados."]

{"sheet":"Analise mercado","index":2,"n_rows":159,"n_cols":13,"rows_kept":159,"cut":false,"hidden":false,"merged":[[121,4,121,14],[137,4,137,14],[138,4,138,14],[80,3,80,14],[104,3,104,14],[93,12,93,14],[84,3,91,4],[84,12,84,14],[61,3,68,4],[61,7,61,10],[61,12,61,14],[82,7,82,10],[82,12,82,14],[70,12,70,14],[70,3,78,4],[70,7,70,10],[156,4,156,9],[107,7,108,7],[84,7,84,10],[158,4,158,9],[157,4,157,7],[110,9,112,9],[93,3,101,4],[93,7,93,10],[107,9,108,9],[155,3,155,13],[135,3,136,14],[114,3,116,4],[114,7,116,7],[114,9,116,9],[110,3,112,4],[110,7,112,7],[4,2,4,14],[7,2,7,5],[11,2,11,14],[14,2,14,15],[59,7,59,10],[19,3,19,14],[27,4,27,14],[58,3,58,14],[59,12,59,14]]}
[]
[]
[null,null,"BENEFICIÁRIO:"]
[]
[null,null,{"$f":"+CAPA!C9","v":0}]
[]
[null,null,"NIF:"]
[null,null,{"$f":"+CAPA!C12","v":0}]
[]
[null,null,"SISTEMA DE INCENTIVOS:"]
[]
[null,null,{"$f":"+CAPA!C16","v":"PROCIÊNCIA"}]
[]
[]
[null,null,"ANÁLISE DO MERCADO"]
[]
[null,null,"  "]
[]
[null,null,null,"Análise do Mercado "]
[null,null,null," - Nesta secção pretende-se a identificação da abrangência comercial da empresa e qual o impacto dos seus produtos no mercado, bem como a descrição de como respondem às necessidades dos seus clientes."]
[null,null,null,"Breve Descrição do Mercado"]
[null,null,null,"-","Identifique os principais produtos, mercadorias e serviços."]
[null,null,null,"-","Quem são e onde estão os atuais clientes da empresa e quem serão e onde estarão no horizonte temporal do projeto? "]
[null,null,null,"-","Que necessidades dos clientes satisfazem os produtos da empresa? Que benefícios procura o consumidor? E que necessidades / benefícios pretendem satisfazer no futuro? "]
[null,null,null,"-","Com que tecnologias satisfazem essas necessidades? Vão passar a utilizar outras? Perspetiva-se alterações de tecnologia? Quais?"]
[null,null,null,"-","Através de que canais de distribuição vendem os produtos/serviços? O que pretendem fazer no futuro sobre os canais de distribuição? "]
[null,null,null,"-","Que fatores influenciam a procura (motivações de compra)? Que tipo de consumidor compra os produtos da concorrência? "]
[null,null,null,"-","Qual a segmentação que faz do mercado? Qual parcela do mercado a sua empresa visa atingir? Com base em que critérios é feita essa divisão do mercado potencial? Como é que esses segmentos são quantificados? "]
[null,null,null,"-","Qual a dimensão atual e potencial do mercado? "]
[]
[]
[]
[]
[]
[]
[]
[]
[]
[]
[]
[]
[null,null,null,"Análise da Concorrência "]
[null,null,null," - Esta seção visa dar a noção da dimensão concorrencial da empresa beneficiária, bem como a sua capacidade de adaptação perante os desafios do mercado. "]
[null,null,null," - ","Identificação os seus concorrentes diretos, que têm como alvos os mesmos segmentos de mercado da sua empresa. "]
[null,null,null," - ","Identificação das áreas de competitividade críticas para o negócio em que a empresa se insere."]
[]
[]
[]
[]
[]
[]
[]
[]
[]
[]
[]
[]
[null,null,null,"Análise SWOT"]
[null,null,null," - Aqui deve inserir nos campos respetivos (Fatores Internos e Externos, Pontos Fracos, Pontos Fortes, Oportunidade e Ameaças) todos os elementos resumo que resultam da sua análise SWOT."]
[]
[]
[null,null,null,"FATORES\nINTERNOS",null,null,null,"PONTOS FORTES",null,null,null,null,"PONTOS FRACOS"]
[]
[]
[]
[]
[]
[]
[]
[]
[null,null,null,"FATORES\nEXTERNOS",null,null,null,"OPORTUNIDADES",null,null,null,null,"AMEAÇAS"]
[]
[]
[]
[]
[]
[]
[]
[]
[]
[null,null,null," - Para além da síntese da análise SWOT indicada no quadro anterior, deve ainda desenvolver uma análise qualificada/dinâmica baseada na referida análise SWOT, identificando: Riscos, Avisos, Desafios/Apostas e Restrições."]
[]
[null,null,null,null,null,null,null,"Oportunidades",null,null,null,null,"Ameaças"]
[]
[null,null,null,"Pontos\nFortes",null,null,null,"Apostas",null,null,null,null,"Avisos"]
[]
[]
[]
[]
[]
[]
[]
[]
[null,null,null,"Pontos\nFracos",null,null,null,"Restrições",null,null,null,null,"Riscos"]
[]
[]
[]
[]
[]
[]
[]
[]
[]
[null,null,null,"Qual a direção de crescimento do mercado"]
[null,null,null," - Neste quadro pretende-se ter a identificação da forma como o beneficiário pretende orientar a sua atividade futura nos mercados, selecionando apenas uma das seguintes opções (cujos conceitos subjacentes se encontram explicados na caixa)."]
[null,null,null," - Justifique a sua direção de crescimento no mercado."]
[]
[null,null,null,null,null,null,null,"PRODUTOS\nATUAIS",null,"PRODUTOS\nNOVOS"]
[]
[]
[null,null,null,"MERCADOS\nATUAIS",null,null,null,"Penetração",null,"Extensão \ndo Produto"]
[]
[]
[]
[null,null,null,"MERCADOS\nNOVOS",null,null,null,"Extensão \ndo Mercado",null,"Diversificação"]
[]
[]
[]
[null,null,null," - Tanto no quadro “Qual a duração de crescimentos no mercado” como na justificação posterior o beneficiário deverá ter em consideração os seguintes conceitos: "]
[null,null,null," - ","Penetração - Aumento das quotas de mercado com os produtos atuais e nos mercados atuais; "]
[null,null,null," - ","Extensão do produto - aumento da gama e/ou criação de novos produtos, mantendo os mercados atuais; "]
[null,null,null," - ","Extensão do mercado - entrada em novos mercados (e.g. entrada ou alargamento do mercado de exportação ou cobertura de mais segmentos no mercado nacional), com os mesmos produtos; "]
[null,null,null," - ","Diversificação - lançamento de novos produtos e, em simultâneo, entrada em novos mercados."]
[]
[]
[]
[]
[]
[]
[]
[]
[]
[]
[]
[null,null,null,"Marcas Próprias (preenchimento quando aplicável) "]
[null,null,null," - Pretende-se a identificação das marcas pertencentes à empresa beneficiária, ou a criar, e caso se encontrem registadas, a indicação de se esse registo é nacional ou internacional. Deverá também identificar a dimensão concorrencial da empresa beneficiária com a indicação das suas marcas e das marcas concorrentes na mesma área de negócio do projeto assim como da sua capacidade de diferenciação/reconhecimento."]
[]
[null,null,null," - ","A empresa detém marca própria? Esta marca está registada em Portugal e noutros mercados? Se não tem marca própria que instrumentos de diferenciação/reconhecimento utiliza no mercado face à concorrência? "]
[null,null,null," - "," Identificação das principais marcas concorrentes e a sua perceção sobre a notoriedade da sua marca e a dos seus concorrentes. Qual o posicionamento que perspetiva para o pós projeto? "]
[]
[]
[]
[]
[]
[]
[]
[]
[]
[]
[]
[]
[]
[]
[]
[null,null,null,"Posicionamento na Cadeia de Valor "]
[null,null,null," - Pretende-se que o beneficiário identifique os impactos previstos com o projeto, nomeadamente, ao nível do posicionamento da cadeia de valor, no pré e pós projeto."]
[null,null,null,null," - Posicionamento na cadeira de valor (atual e perspetiva futura)."]
[null,null,null,null," - Capacidade de agregação de valor."]
[null,null,null,null," - Natureza do posicionamento na cadeia de valor completa."]

{"sheet":"Curriculum","index":3,"n_rows":128,"n_cols":15,"rows_kept":128,"cut":false,"hidden":false,"merged":[[28,3,29,14],[45,3,46,14],[67,3,67,13],[127,4,127,7],[127,8,127,9],[127,10,127,11],[125,4,125,7],[125,8,125,9],[125,10,125,11],[126,4,126,7],[126,8,126,9],[126,10,126,11],[123,4,123,7],[123,8,123,9],[123,10,123,11],[124,4,124,7],[124,8,124,9],[124,10,124,11],[121,4,121,7],[121,8,121,9],[121,10,121,11],[122,4,122,7],[122,8,122,9],[122,10,122,11],[119,4,119,7],[119,8,119,9],[119,10,119,11],[120,4,120,7],[120,8,120,9],[120,10,120,11],[117,4,117,7],[117,8,117,9],[117,10,117,11],[118,4,118,7],[118,8,118,9],[118,10,118,11],[115,4,115,7],[115,8,115,9],[115,10,115,11],[116,4,116,7],[116,8,116,9],[116,10,116,11],[69,12,70,12],[69,13,70,13],[113,3,114,3],[113,4,114,7],[113,8,114,9],[113,10,114,11],[113,12,114,12],[82,4,82,7],[82,8,82,9],[82,10,82,11],[83,4,83,7],[83,8,83,9],[83,10,83,11],[80,4,80,7],[80,8,80,9],[80,10,80,11],[81,4,81,7],[81,8,81,9],[81,10,81,11],[78,4,78,7],[78,8,78,9],[78,10,78,11],[79,4,79,7],[79,8,79,9],[79,10,79,11],[76,4,76,7],[76,8,76,9],[76,10,76,11],[77,4,77,7],[77,8,77,9],[77,10,77,11],[75,4,75,7],[75,8,75,9],[75,10,75,11],[72,4,72,7],[72,8,72,9],[72,10,72,11],[73,4,73,7],[73,8,73,9],[73,10,73,11],[69,3,70,3],[69,4,70,7],[69,8,70,9],[69,10,70,11],[71,4,71,7],[71,8,71,9],[71,10,71,11],[74,4,74,7],[74,8,74,9],[74,10,74,11],[62,4,62,7],[62,8,62,9],[62,10,62,11],[59,4,59,7],[59,8,59,9],[59,10,59,11],[60,4,60,7],[60,8,60,9],[60,10,60,11],[57,10,57,11],[58,4,58,7],[58,8,58,9],[58,10,58,11],[54,8,54,9],[55,8,55,9],[56,8,56,9],[61,4,61,7],[61,8,61,9],[61,10,61,11],[52,4,52,7],[53,4,53,7],[54,4,54,7],[55,4,55,7],[56,4,56,7],[50,8,50,9],[51,8,51,9],[57,4,57,7],[57,8,57,9],[23,3,24,7],[26,3,26,14],[27,3,27,14],[85,3,85,13],[4,2,4,15],[7,2,7,5],[11,2,11,15],[14,2,14,15],[50,10,50,11],[51,10,51,11],[52,10,52,11],[53,10,53,11],[54,10,54,11],[55,10,55,11],[53,8,53,9],[52,8,52,9],[48,12,48,14],[48,3,49,3],[48,4,49,7],[48,8,49,9],[48,10,49,11],[56,10,56,11],[50,4,50,7],[51,4,51,7]]}
[]
[]
[null,null,"BENEFICIÁRIO:"]
[]
[null,null,{"$f":"+CAPA!C9","v":0}]
[]
[null,null,"NIF:"]
[null,null,{"$f":"+CAPA!C12","v":0}]
[]
[null,null,"SISTEMA DE INCENTIVOS:"]
[]
[null,null,{"$f":"+CAPA!C16","v":"PROCIÊNCIA"}]
[]
[]
[null,null,"CURRICULUM DE INOVAÇÃO DA EMPRESA"]
[null,null,"  "]
[]
[null,null,null,"Estruturas e Actividades de I&DT"]
[null,null,null,null,null,null,null,null,"sim",null,"não"]
[null,null,null,"A actividade tem Departamento/Núcleo de I&DT?"]
[]
[null,null,null,"A empresa tem Laboratório de I&DT próprio?"]
[]
[null,null,null,"Certificação de sistemas de gestão da IDE de acordo com a norma NP4457:2007?"]
[]
[]
[null,null,null,"Análise da estratégia de Investigação, Desenvolvimento e Inovação (IDI) da(s) empresa(s)"]
[null,null,null,"(Identificar e carterizar as áreas de investigação prioritárias, no presente, e para um horizonte temporal de 3 anos, as áreas de investigação prioritárias, recursos críticos afetos à atividade de I&D e o seu alinhamento global com a estratégia de desenvolvimento de negócio)"]
[null,null,null,"\n(Indicar a existência, ou não, de estruturas permanentes dedicadas a atividades de I&DT, designadamente departamentos ou núcleos de I&DT, bem como laboratórios de I&DT próprios. Quando já exista um departamento/núcleo de I&DT, indicar o número de pessoas-mês ou ETI (equivalente a tempo integral) e a respetiva data de constituição. \nIndicar se a empresa possui certificação de sistemas de gestão da IDI de acordo com a norma NP 4457:2007.)\n"]
[]
[]
[]
[]
[]
[]
[]
[]
[]
[]
[]
[]
[]
[null,null,null,null,null,null,null,null,"sim",null,"não"]
[null,null,null,"Lançou inovações nos últimos três anos ? "]
[]
[null,null,null,"Se assinalar “Sim”, deverá preencher a tabela abaixo. \nIdentificar os produtos/processos considerados inovadores face ao portfólio da empresa, criados e lançados no mercado nos últimos três anos, caracterizando-os quanto aos seguintes aspetos: \n• Designação do Produto ou do serviço inovador; \n• Origem do Desenvolvimento; \n• Ano de Lançamento no mercado; \n• % das Vendas no Volume de Vendas da Empresa, indicando o peso dos proveitos gerados pelo produto/serviço descrito no volume de negócios do promotor.\n"]
[]
[]
[null,null,null,"N","Designação do Produto",null,null,null,"Origem do Desenvolvimento",null,"Ano de lançamento",null,"% das Vendas no Volume de Vendas da Empresa"]
[null,null,null,null,null,null,null,null,null,null,null,null,"Ano","Ano+1","Ano+2"]
[null,null,null,1]
[null,null,null,2]
[null,null,null,3]
[null,null,null,4]
[null,null,null,5]
[null,null,null,6]
[null,null,null,7]
[null,null,null,8]
[null,null,null,9]
[null,null,null,10]
[null,null,null,11]
[null,null,null,12]
[null,null,null,13]
[]
[null,null,null,null,null,null,null,null,"sim",null,"não"]
[null,null,null,"Fez registo de Propriedade Intelectual ?"]
[]
[null,null,null,"Se assinalar “Sim”, deverá preencher a tabela abaixo. \nIdentificar os direitos de propriedade intelectual detidos pelo promotor assim como os previstos. "]
[]
[null,null,null,"N","Descrição",null,null,null,"Tipo de Protecção",null,"Âmbito",null,"Data Pedido / Registo","Situação Atual"]
[]
[null,null,null,1]
[null,null,null,2]
[null,null,null,3]
[null,null,null,4]
[null,null,null,5]
[null,null,null,6]
[null,null,null,7]
[null,null,null,8]
[null,null,null,9]
[null,null,null,10]
[null,null,null,11]
[null,null,null,12]
[null,null,null,13]
[]
[null,null,null,"Características inovadoras"]
[]
[]
[]
[]
[]
[]
[]
[]
[]
[]
[]
[null,null,null,"Projectos de I&D relevantes para o projecto e outras actividades actividades de I&DT ou aspectos relevantes para o curriculum de inovação da empresa"]
[]
[]
[]
[]
[]
[]
[]
[]
[]
[]
[]
[]
[]
[null,null,null,"Participação em programas internacionais "]
[null,null,null,"- Identificar e caracterizar a eventual participação em projetos no âmbito do 7.º Programa Quadro, Eurostars, Horizonte 2020 e outros similares."]
[null,null,null,"N","Programa",null,null,null,"Designação do Projeto",null,"Data de Aprovação",null,"Número de Contrato"]
[]
[null,null,null,1]
[null,null,null,2]
[null,null,null,3]
[null,null,null,4]
[null,null,null,5]
[null,null,null,6]
[null,null,null,7]
[null,null,null,8]
[null,null,null,9]
[null,null,null,10]
[null,null,null,11]
[null,null,null,12]
[null,null,null,13]

{"sheet":"dados proj","index":4,"n_rows":105,"n_cols":4,"rows_kept":105,"cut":false,"hidden":false,"merged":[[94,3,97,13],[101,3,102,13],[104,3,105,13],[75,3,75,8],[16,2,16,15],[21,9,21,13],[22,9,22,13],[23,9,23,13],[31,9,31,13],[32,9,32,13],[33,9,33,13],[34,9,34,13],[53,3,53,4],[50,3,50,13],[51,3,51,13],[49,3,49,13],[52,3,52,13],[47,3,47,13],[4,2,4,14],[7,2,7,5],[11,2,11,14],[14,2,14,15],[19,9,19,13],[34,3,34,7],[24,3,24,7],[24,9,24,13]]}
[]
[]
[null,null,"BENEFICIÁRIO:"]
[]
[null,null,{"$f":"+CAPA!C9","v":0}]
[]
[null,null,"NIF:"]
[null,null,{"$f":"+CAPA!C12","v":0}]
[]
[null,null,"SISTEMA DE INCENTIVOS:"]
[]
[null,null,{"$f":"+CAPA!C16","v":"PROCIÊNCIA"}]
[]
[]
[null,null,"DADOS DO PROJECTO"]
[null,null,"  "]
[null,null,"AÇOES A IMPLEMENTAR"]
[]
[]
[null,null,null,"Acrónimo"]
[]
[null,null,null,"Principais Estratégias"]
[]
[]
[null,null,null,"Outras Estratégias principais. Quais?  Justificar"]
[]
[]
[]
[]
[]
[]
[null,null,null,"Áreas Tecnológicas"]
[]
[]
[null,null,null,"Outras Áreas Tecnológicas. Quais?    Justificar"]
[]
[null,null,null,"Descrição do projeto(Português):"]
[]
[]
[]
[]
[]
[]
[]
[]
[]
[]
[null,null,null,"Deverá  identificar os domínios prioritários em que o projeto se insere, fundamentando o contributo do mesmo para a RIS3 (Regional)."]
[]
[]
[]
[]
[]
[]
[null,null,null,"Fundamentação RIS3"]
[]
[]
[]
[]
[]
[]
[]
[]
[]
[]
[]
[]
[]
[]
[null,null,null,"Justificação do Efeito Incentivo"]
[null,null,null,"Demonstrar que o incentivo induz um aumento (apenas para NPME)"]
[null,null,null,"- aumento significativo da dimensão do projeto;"]
[null,null,null,"- aumento significativo do âmbito do projeto;"]
[null,null,null,"- a rapidez da execução do projeto;"]
[null,null,null,"- aumento do montante total afecto à I&DT"]
[]
[]
[]
[]
[]
[]
[]
[]
[]
[]
[]
[]
[]
[]
[]
[]
[]
[]
[]
[null,null,null,"Acrónimo ou designação abreviada para o projeto que será utilizado para identificar o projeto. Na sua formulação, deverão ser usados unicamente números ou letras, não sendo admissível outro tipo de símbolos ou caracteres; "]
[]
[]
[]
[]
[null,null,null,"Principais Estratégias, deverá indicar as estratégias a desenvolver com projeto."]
[]
[null,null,null,"No campo Áreas Tecnológicas de entre as áreas científicas e tecnológicas listadas, selecionar a(s) área(s) tecnológica(s) em que o projeto se insere, sendo que sempre que escolher “Outras” deve indicar quais"]
[]
[]
[null,null,null,"Breve Descrição do projeto, com indicação dos seus principais aspetos caracterizadores, nomeadamente principais objetivos e forma como se pretendem atingir, resultados esperados e recursos afetos. "]

{"sheet":"carat proj","index":5,"n_rows":43,"n_cols":4,"rows_kept":43,"cut":false,"hidden":false,"merged":[[4,2,4,14],[7,2,7,5],[11,2,11,14],[14,2,14,15],[32,3,32,8],[29,3,29,7],[30,3,30,7],[31,3,31,7]]}
[]
[]
[null,null,"BENEFICIÁRIO:"]
[]
[null,null,{"$f":"+CAPA!C9","v":0}]
[]
[null,null,"NIF:"]
[null,null,{"$f":"+CAPA!C12","v":0}]
[]
[null,null,"SISTEMA DE INCENTIVOS:"]
[]
[null,null,{"$f":"+CAPA!C16","v":"PROCIÊNCIA"}]
[]
[]
[null,null,"CARACTERIZAÇÃO DO PROJECTO"]
[null,null,"  "]
[]
[null,null,null,"Problemas/necessidades a solucionar/satisfazer e principais contributos do projeto"]
[null,null,null,"Objetivos e metas do projeto"]
[null,null,null,"Pertinência da realização do projecto face aos objectivos"]
[]
[]
[]
[]
[]
[]
[]
[]
[]
[null,null,null,"Estado da arte atual"]
[null,null,null,"Avanços técnicos esperados"]
[null,null,null,"Incertezas técnico - cientificas"]
[]
[]
[]
[]
[]
[]
[]
[]
[]
[]
[null,null,null,"Atividades a desenvolver e metodologias de planeamento e gestão das atividades de I&D"]

{"sheet":"carat proj 1","index":6,"n_rows":40,"n_cols":14,"rows_kept":40,"cut":false,"hidden":false,"merged":[[4,2,4,15],[26,3,26,9],[19,11,19,12],[20,11,20,12],[21,11,21,12],[22,11,22,12],[23,11,23,12],[24,11,24,12],[25,11,25,12],[26,11,26,12],[20,3,20,9],[21,3,21,9],[22,3,22,9],[23,3,23,9],[24,3,24,9],[25,3,25,9],[7,2,7,5],[14,2,14,15],[29,3,29,8],[19,3,19,9],[11,2,11,15]]}
[]
[]
[null,null,"BENEFICIÁRIO:"]
[]
[null,null,{"$f":"+CAPA!C9","v":0}]
[]
[null,null,"NIF:"]
[null,null,{"$f":"+CAPA!C12","v":0}]
[]
[null,null,"SISTEMA DE INCENTIVOS:"]
[]
[null,null,{"$f":"+CAPA!C16","v":"PROCIÊNCIA"}]
[]
[]
[null,null,"CARACTERIZAÇÃO DO PROJECTO"]
[null,null,"  "]
[]
[null,null,null,"Pareceres prévios dos professores universitários que o promotor tenha obtido e queira referir na candidatura"]
[]
[null,null,null,"Nome",null,null,null,null,null,null,"Categoria","Universidade",null,"Obs."]
[]
[]
[]
[]
[]
[]
[]
[]
[null,null,null,"Fundamentação"]
[]
[]
[]
[]
[]
[]
[]
[]
[]
[]
[null,null,null,"Desenvolvimentos técnicos e tecnológicos que o projecto vai gerar"]

{"sheet":"carat proj 2","index":7,"n_rows":57,"n_cols":13,"rows_kept":57,"cut":false,"hidden":false,"merged":[[56,3,62,17],[26,5,26,9],[26,10,26,11],[43,3,43,8],[19,5,19,9],[20,5,20,9],[21,5,21,9],[22,5,22,9],[23,5,23,9],[24,5,24,9],[23,10,23,11],[24,10,24,11],[25,10,25,11],[25,5,25,9],[20,10,20,11],[21,10,21,11],[22,10,22,11],[4,2,4,19],[7,2,7,5],[11,2,11,19],[14,2,14,19],[19,10,19,11],[27,5,27,9],[27,10,27,11],[28,5,28,9],[28,10,28,11],[29,5,29,9],[29,10,29,11],[30,5,30,9],[30,10,30,11],[31,5,31,9],[31,10,31,11],[32,5,32,9],[32,10,32,11],[33,5,33,9],[33,10,33,11],[34,5,34,9],[34,10,34,11],[35,5,35,9],[35,10,35,11],[36,5,36,9],[36,10,36,11],[37,5,37,9],[37,10,37,11],[38,5,38,9],[38,10,38,11],[39,5,39,9],[39,10,39,11],[19,12,19,13],[20,12,20,13],[21,12,21,13],[22,12,22,13],[23,12,23,13],[24,12,24,13],[25,12,25,13],[26,12,26,13],[27,12,27,13],[28,12,28,13],[29,12,29,13],[30,12,30,13],[31,12,31,13],[32,12,32,13],[38,12,38,13],[39,12,39,13],[33,12,33,13],[34,12,34,13],[35,12,35,13],[36,12,36,13],[37,12,37,13]]}
[]
[]
[null,null,"BENEFICIÁRIO:"]
[]
[null,null,{"$f":"+CAPA!C9","v":0}]
[]
[null,null,"NIF:"]
[null,null,{"$f":"+CAPA!C12","v":0}]
[]
[null,null,"SISTEMA DE INCENTIVOS:"]
[]
[null,null,{"$f":"+CAPA!C16","v":"PROCIÊNCIA"}]
[]
[]
[null,null,"CARACTERIZAÇÃO DO PROJECTO"]
[null,null,"  "]
[]
[null,null,null,"Entidades de investigação por contrato e assistência técnica, científica e consultoria"]
[]
[null,null,null,"N","NIF","Designação",null,null,null,null,"País",null,"Beneficiário /\nCo-promotor"]
[null,null,null,1]
[null,null,null,2]
[null,null,null,3]
[null,null,null,4]
[null,null,null,5]
[null,null,null,6]
[null,null,null,7]
[null,null,null,8]
[null,null,null,9]
[null,null,null,10]
[null,null,null,11]
[null,null,null,12]
[null,null,null,13]
[null,null,null,14]
[null,null,null,15]
[null,null,null,16]
[null,null,null,17]
[null,null,null,18]
[null,null,null,19]
[null,null,null,20]
[]
[]
[null,null,null,"Curricula das entidades externas envolvidas no projeto em atividades de investigação e assistencia técnica, cientifica e consultoria"]
[]
[]
[]
[]
[]
[]
[]
[]
[]
[]
[]
[]
[]
[null,null,null,"Entidades de Assistência Técnica, Científica e Consultoria \nIdentificar, quando aplicável, as entidades externas, incluindo especialistas contratados a título individual, envolvidos no projeto em atividades de assistência técnica e/ou científica e consultoria. Sempre que estejam associadas despesas com honorários relativos às rubricas de formulação de pedidos de patente e outros mecanismos de defesa da propriedade industrial e de certificação do Sistema de Gestão da Investigação, Desenvolvimento e Inovação, as entidades envolvidas devem também ser aqui descritas.\n• Nº - N.º sequencial de identificação de cada entidade externa; \n• Designação - Indicar a designação social das entidades externas e os especialistas contratados a título individual. No caso de estes não serem conhecidos à data da candidatura, identificar as entidades nesta situação de acordo com a seguinte sequência: A designar 1, A designar 2, …, A designar n, ou, no caso de especialistas a título individual, Especialista 1, Especialista 2, …, Especialista n; \n• País – Indicar o país de localização das entidades externas. \n\n"]

{"sheet":"TecnicosEntidades","index":8,"n_rows":36,"n_cols":13,"rows_kept":36,"cut":false,"hidden":false,"merged":[[18,9,18,10],[4,2,4,14],[7,2,7,4],[11,2,11,14],[14,2,14,14],[17,3,17,10],[19,12,20,12],[19,9,19,11],[19,3,20,3],[19,4,20,4],[19,5,20,5],[19,6,20,6],[19,7,20,7],[19,8,20,8]]}
[]
[]
[null,null,"BENEFICIÁRIO:"]
[]
[null,null,{"$f":"+CAPA!C9","v":0}]
[]
[null,null,"NIF:"]
[null,null,{"$f":"+CAPA!C12","v":0}]
[]
[null,null,"SISTEMA DE INCENTIVOS:"]
[]
[null,null,{"$f":"+CAPA!C16","v":"PROCIÊNCIA"}]
[]
[]
[null,null,"CARACTERIZAÇÃO DO PROJECTO"]
[null,null,"  "]
[]
[null,null,null,"Técnicos de entidades de investigação por contrato"]
[]
[null,null,null,"N.º","NIF","Técnico Afecto","Entidade \nExterna","Categoria","Conteúdo Funcional da Participação do Técnico","Custo/Hora",null,null,"Beneficiário /\nCo-promotor"]
[null,null,null,null,null,null,null,null,null,"Ano","Ano+1","Ano+2"]
[null,null,null,1]
[null,null,null,2]
[null,null,null,3]
[null,null,null,4]
[null,null,null,5]
[null,null,null,6]
[null,null,null,7]
[null,null,null,8]
[null,null,null,9]
[null,null,null,10]
[null,null,null,11]
[null,null,null,12]
[null,null,null,13]
[null,null,null,14]
[null,null,null,15]

{"sheet":"CurriculoPessExt(1)","index":9,"n_rows":91,"n_cols":10,"rows_kept":91,"cut":false,"hidden":true,"merged":[[40,16,40,28],[22,5,22,28],[24,5,24,28],[26,5,26,28],[28,5,28,28],[30,5,30,28],[32,5,32,28],[19,5,19,9],[4,2,4,28],[7,2,7,3],[11,2,11,28],[14,2,14,29],[17,5,17,28]]}
[]
[]
[null,null,"BENEFICIÁRIO:"]
[]
[null,null,{"$f":"+CAPA!C9","v":0}]
[]
[null,null,"NIF:"]
[null,null,{"$f":"+CAPA!C12","v":0}]
[]
[null,null,"SISTEMA DE INCENTIVOS:"]
[]
[null,null,{"$f":"+CAPA!C16","v":"PROCIÊNCIA"}]
[]
[]
[null,null,"Curricula dos técnicos afectos ao projecto"]
[null,null,"  "]
[]
[null,null,null,"Técnico:",null,{"$f":"+Base!W2","v":"1 - 0 ( 0 )"}]
[]
[null,null,null,"NIF:",null,{"$f":"+Base!U2","v":0}]
[]
[]
[null,null,null,"Atividades:"]
[]
[]
[]
[]
[]
[]
[]
[]
[]
[]
[]
[]
[]
[null,null,null,null,null,"Sim",null,"Não"]
[]
[null,null,null,"Bolseiro:"]
[]
[null,null,null,"Vínculo à Função Pública:",null,null,null,null,null,"Caso afirmativo, que tipo de vínculo?"]
[]
[null,null,null,"Formação Académica:"]
[]
[null,null,null,"Exercício de cargo de chefia:"]
[]
[null,null,null,"Formação Académica e formação profissional:"]
[]
[]
[]
[]
[]
[]
[]
[]
[]
[]
[]
[]
[]
[]
[]
[]
[null,null,null,"Função exercida no beneficiário"]
[]
[]
[]
[]
[]
[]
[]
[]
[]
[]
[]
[]
[]
[null,null,null,"Exercício de cargo de chefia"]
[]
[]
[]
[]
[]
[]
[]
[]
[]
[]
[]
[]
[null,null,null,"Tarefas desempenhadas antes do início deste projecto e descrição sucinta dos conhecimentos e experiência passada úteis para o projecto:"]

{"sheet":"CurriculoPessExt(2)","index":10,"n_rows":91,"n_cols":10,"rows_kept":91,"cut":false,"hidden":true,"merged":[[40,16,40,28],[22,5,22,28],[24,5,24,28],[26,5,26,28],[28,5,28,28],[30,5,30,28],[32,5,32,28],[19,5,19,9],[4,2,4,28],[7,2,7,3],[11,2,11,28],[14,2,14,29],[17,5,17,28]]}
[]
[]
[null,null,"BENEFICIÁRIO:"]
[]
[null,null,{"$f":"+CAPA!C9","v":0}]
[]
[null,null,"NIF:"]
[null,null,{"$f":"+CAPA!C12","v":0}]
[]
[null,null,"SISTEMA DE INCENTIVOS:"]
[]
[null,null,{"$f":"+CAPA!C16","v":"PROCIÊNCIA"}]
[]
[]
[null,null,"Curricula dos técnicos afectos ao projecto"]
[null,null,"  "]
[]
[null,null,null,"Técnico:",null,{"$f":"+Base!W3","v":"2 - 0 ( 0 )"}]
[]
[null,null,null,"NIF:",null,{"$f":"+Base!U3","v":0}]
[]
[]
[null,null,null,"Atividades:"]
[]
[]
[]
[]
[]
[]
[]
[]
[]
[]
[]
[]
[]
[null,null,null,null,null,"Sim",null,"Não"]
[]
[null,null,null,"Bolseiro:"]
[]
[null,null,null,"Vínculo à Função Pública:",null,null,null,null,null,"Caso afirmativo, que tipo de vínculo?"]
[]
[null,null,null,"Formação Académica:"]
[]
[null,null,null,"Exercício de cargo de chefia:"]
[]
[null,null,null,"Formação Académica e formação profissional:"]
[]
[]
[]
[]
[]
[]
[]
[]
[]
[]
[]
[]
[]
[]
[]
[]
[null,null,null,"Função exercida no beneficiário"]
[]
[]
[]
[]
[]
[]
[]
[]
[]
[]
[]
[]
[]
[null,null,null,"Exercício de cargo de chefia"]
[]
[]
[]
[]
[]
[]
[]
[]
[]
[]
[]
[]
[null,null,null,"Tarefas desempenhadas antes do início deste projecto e descrição sucinta dos conhecimentos e experiência passada úteis para o projecto:"]

{"sheet":"CurriculoPessExt(3)","index":11,"n_rows":91,"n_cols":10,"rows_kept":91,"cut":false,"hidden":true,"merged":[[40,16,40,28],[22,5,22,28],[24,5,24,28],[26,5,26,28],[28,5,28,28],[30,5,30,28],[32,5,32,28],[19,5,19,9],[4,2,4,28],[7,2,7,3],[11,2,11,28],[14,2,14,29],[17,5,17,28]]}
[]
[]
[null,null,"BENEFICIÁRIO:"]
[]
[null,null,{"$f":"+CAPA!C9","v":0}]
[]
[null,null,"NIF:"]
[null,null,{"$f":"+CAPA!C12","v":0}]
[]
[null,null,"SISTEMA DE INCENTIVOS:"]
[]
[null,null,{"$f":"+CAPA!C16","v":"PROCIÊNCIA"}]
[]
[]
[null,null,"Curricula dos técnicos afectos ao projecto"]
[null,null,"  "]
[]
[null,null,null,"Técnico:",null,{"$f":"+Base!W4","v":"3 - 0 ( 0 )"}]
[]
[null,null,null,"NIF:",null,{"$f":"+Base!U4","v":0}]
[]
[]
[null,null,null,"Atividades:"]
[]
[]
[]
[]
[]
[]
[]
[]
[]
[]
[]
[]
[]
[null,null,null,null,null,"Sim",null,"Não"]
[]
[null,null,null,"Bolseiro:"]
[]
[null,null,null,"Vínculo à Função Pública:",null,null,null,null,null,"Caso afirmativo, que tipo de vínculo?"]
[]
[null,null,null,"Formação Académica:"]
[]
[null,null,null,"Exercício de cargo de chefia:"]
[]
[null,null,null,"Formação Académica e formação profissional:"]
[]
[]
[]
[]
[]
[]
[]
[]
[]
[]
[]
[]
[]
[]
[]
[]
[null,null,null,"Função exercida no beneficiário"]
[]
[]
[]
[]
[]
[]
[]
[]
[]
[]
[]
[]
[]
[null,null,null,"Exercício de cargo de chefia"]
[]
[]
[]
[]
[]
[]
[]
[]
[]
[]
[]
[]
[null,null,null,"Tarefas desempenhadas antes do início deste projecto e descrição sucinta dos conhecimentos e experiência passada úteis para o projecto:"]

{"sheet":"CurriculoPessExt(4)","index":12,"n_rows":91,"n_cols":10,"rows_kept":91,"cut":false,"hidden":true,"merged":[[40,16,40,28],[22,5,22,28],[24,5,24,28],[26,5,26,28],[28,5,28,28],[30,5,30,28],[32,5,32,28],[19,5,19,9],[4,2,4,28],[7,2,7,3],[11,2,11,28],[14,2,14,29],[17,5,17,28]]}
[]
[]
[null,null,"BENEFICIÁRIO:"]
[]
[null,null,{"$f":"+CAPA!C9","v":0}]
[]
[null,null,"NIF:"]
[null,null,{"$f":"+CAPA!C12","v":0}]
[]
[null,null,"SISTEMA DE INCENTIVOS:"]
[]
[null,null,{"$f":"+CAPA!C16","v":"PROCIÊNCIA"}]
[]
[]
[null,null,"Curricula dos técnicos afectos ao projecto"]
[null,null,"  "]
[]
[null,null,null,"Técnico:",null,{"$f":"+Base!W5","v":"4 - 0 ( 0 )"}]
[]
[null,null,null,"NIF:",null,{"$f":"+Base!U5","v":0}]
[]
[]
[null,null,null,"Atividades:"]
[]
[]
[]
[]
[]
[]
[]
[]
[]
[]
[]
[]
[]
[null,null,null,null,null,"Sim",null,"Não"]
[]
[null,null,null,"Bolseiro:"]
[]
[null,null,null,"Vínculo à Função Pública:",null,null,null,null,null,"Caso afirmativo, que tipo de vínculo?"]
[]
[null,null,null,"Formação Académica:"]
[]
[null,null,null,"Exercício de cargo de chefia:"]
[]
[null,null,null,"Formação Académica e formação profissional:"]
[]
[]
[]
[]
[]
[]
[]
[]
[]
[]
[]
[]
[]
[]
[]
[]
[null,null,null,"Função exercida no beneficiário"]
[]
[]
[]
[]
[]
[]
[]
[]
[]
[]
[]
[]
[]
[null,null,null,"Exercício de cargo de chefia"]
[]
[]
[]
[]
[]
[]
[]
[]
[]
[]
[]
[]
[null,null,null,"Tarefas desempenhadas antes do início deste projecto e descrição sucinta dos conhecimentos e experiência passada úteis para o projecto:"]

{"sheet":"CurriculoPessExt(5)","index":13,"n_rows":91,"n_cols":10,"rows_kept":91,"cut":false,"hidden":true,"merged":[[40,16,40,28],[22,5,22,28],[24,5,24,28],[26,5,26,28],[28,5,28,28],[30,5,30,28],[32,5,32,28],[19,5,19,9],[4,2,4,28],[7,2,7,3],[11,2,11,28],[14,2,14,29],[17,5,17,28]]}
[]
[]
[null,null,"BENEFICIÁRIO:"]
[]
[null,null,{"$f":"+CAPA!C9","v":0}]
[]
[null,null,"NIF:"]
[null,null,{"$f":"+CAPA!C12","v":0}]
[]
[null,null,"SISTEMA DE INCENTIVOS:"]
[]
[null,null,{"$f":"+CAPA!C16","v":"PROCIÊNCIA"}]
[]
[]
[null,null,"Curricula dos técnicos afectos ao projecto"]
[null,null,"  "]
[]
[null,null,null,"Técnico:",null,{"$f":"+Base!W6","v":"5 - 0 ( 0 )"}]
[]
[null,null,null,"NIF:",null,{"$f":"+Base!U6","v":0}]
[]
[]
[null,null,null,"Atividades:"]
[]
[]
[]
[]
[]
[]
[]
[]
[]
[]
[]
[]
[]
[null,null,null,null,null,"Sim",null,"Não"]
[]
[null,null,null,"Bolseiro:"]
[]
[null,null,null,"Vínculo à Função Pública:",null,null,null,null,null,"Caso afirmativo, que tipo de vínculo?"]
[]
[null,null,null,"Formação Académica:"]
[]
[null,null,null,"Exercício de cargo de chefia:"]
[]
[null,null,null,"Formação Académica e formação profissional:"]
[]
[]
[]
[]
[]
[]
[]
[]
[]
[]
[]
[]
[]
[]
[]
[]
[null,null,null,"Função exercida no beneficiário"]
[]
[]
[]
[]
[]
[]
[]
[]
[]
[]
[]
[]
[]
[null,null,null,"Exercício de cargo de chefia"]
[]
[]
[]
[]
[]
[]
[]
[]
[]
[]
[]
[]
[null,null,null,"Tarefas desempenhadas antes do início deste projecto e descrição sucinta dos conhecimentos e experiência passada úteis para o projecto:"]

{"sheet":"CurriculoPessExt(6)","index":14,"n_rows":91,"n_cols":10,"rows_kept":91,"cut":false,"hidden":true,"merged":[[40,16,40,28],[22,5,22,28],[24,5,24,28],[26,5,26,28],[28,5,28,28],[30,5,30,28],[32,5,32,28],[19,5,19,9],[4,2,4,28],[7,2,7,3],[11,2,11,28],[14,2,14,29],[17,5,17,28]]}
[]
[]
[null,null,"BENEFICIÁRIO:"]
[]
[null,null,{"$f":"+CAPA!C9","v":0}]
[]
[null,null,"NIF:"]
[null,null,{"$f":"+CAPA!C12","v":0}]
[]
[null,null,"SISTEMA DE INCENTIVOS:"]
[]
[null,null,{"$f":"+CAPA!C16","v":"PROCIÊNCIA"}]
[]
[]
[null,null,"Curricula dos técnicos afectos ao projecto"]
[null,null,"  "]
[]
[null,null,null,"Técnico:",null,{"$f":"+Base!W7","v":"6 - 0 ( 0 )"}]
[]
[null,null,null,"NIF:",null,{"$f":"+Base!U7","v":0}]
[]
[]
[null,null,null,"Atividades:"]
[]
[]
[]
[]
[]
[]
[]
[]
[]
[]
[]
[]
[]
[null,null,null,null,null,"Sim",null,"Não"]
[]
[null,null,null,"Bolseiro:"]
[]
[null,null,null,"Vínculo à Função Pública:",null,null,null,null,null,"Caso afirmativo, que tipo de vínculo?"]
[]
[null,null,null,"Formação Académica:"]
[]
[null,null,null,"Exercício de cargo de chefia:"]
[]
[null,null,null,"Formação Académica e formação profissional:"]
[]
[]
[]
[]
[]
[]
[]
[]
[]
[]
[]
[]
[]
[]
[]
[]
[null,null,null,"Função exercida no beneficiário"]
[]
[]
[]
[]
[]
[]
[]
[]
[]
[]
[]
[]
[]
[null,null,null,"Exercício de cargo de chefia"]
[]
[]
[]
[]
[]
[]
[]
[]
[]
[]
[]
[]
[null,null,null,"Tarefas desempenhadas antes do início deste projecto e descrição sucinta dos conhecimentos e experiência passada úteis para o projecto:"]

{"sheet":"CurriculoPessExt(7)","index":15,"n_rows":91,"n_cols":10,"rows_kept":91,"cut":false,"hidden":true,"merged":[[40,16,40,28],[22,5,22,28],[24,5,24,28],[26,5,26,28],[28,5,28,28],[30,5,30,28],[32,5,32,28],[19,5,19,9],[4,2,4,28],[7,2,7,3],[11,2,11,28],[14,2,14,29],[17,5,17,28]]}
[]
[]
[null,null,"BENEFICIÁRIO:"]
[]
[null,null,{"$f":"+CAPA!C9","v":0}]
[]
[null,null,"NIF:"]
[null,null,{"$f":"+CAPA!C12","v":0}]
[]
[null,null,"SISTEMA DE INCENTIVOS:"]
[]
[null,null,{"$f":"+CAPA!C16","v":"PROCIÊNCIA"}]
[]
[]
[null,null,"Curricula dos técnicos afectos ao projecto"]
[null,null,"  "]
[]
[null,null,null,"Técnico:",null,{"$f":"+Base!W8","v":"7 - 0 ( 0 )"}]
[]
[null,null,null,"NIF:",null,{"$f":"+Base!U8","v":0}]
[]
[]
[null,null,null,"Atividades:"]
[]
[]
[]
[]
[]
[]
[]
[]
[]
[]
[]
[]
[]
[null,null,null,null,null,"Sim",null,"Não"]
[]
[null,null,null,"Bolseiro:"]
[]
[null,null,null,"Vínculo à Função Pública:",null,null,null,null,null,"Caso afirmativo, que tipo de vínculo?"]
[]
[null,null,null,"Formação Académica:"]
[]
[null,null,null,"Exercício de cargo de chefia:"]
[]
[null,null,null,"Formação Académica e formação profissional:"]
[]
[]
[]
[]
[]
[]
[]
[]
[]
[]
[]
[]
[]
[]
[]
[]
[null,null,null,"Função exercida no beneficiário"]
[]
[]
[]
[]
[]
[]
[]
[]
[]
[]
[]
[]
[]
[null,null,null,"Exercício de cargo de chefia"]
[]
[]
[]
[]
[]
[]
[]
[]
[]
[]
[]
[]
[null,null,null,"Tarefas desempenhadas antes do início deste projecto e descrição sucinta dos conhecimentos e experiência passada úteis para o projecto:"]

{"sheet":"CurriculoPessExt(8)","index":16,"n_rows":91,"n_cols":10,"rows_kept":91,"cut":false,"hidden":true,"merged":[[40,16,40,28],[22,5,22,28],[24,5,24,28],[26,5,26,28],[28,5,28,28],[30,5,30,28],[32,5,32,28],[19,5,19,9],[4,2,4,28],[7,2,7,3],[11,2,11,28],[14,2,14,29],[17,5,17,28]]}
[]
[]
[null,null,"BENEFICIÁRIO:"]
[]
[null,null,{"$f":"+CAPA!C9","v":0}]
[]
[null,null,"NIF:"]
[null,null,{"$f":"+CAPA!C12","v":0}]
[]
[null,null,"SISTEMA DE INCENTIVOS:"]
[]
[null,null,{"$f":"+CAPA!C16","v":"PROCIÊNCIA"}]
[]
[]
[null,null,"Curricula dos técnicos afectos ao projecto"]
[null,null,"  "]
[]
[null,null,null,"Técnico:",null,{"$f":"+Base!W9","v":"8 - 0 ( 0 )"}]
[]
[null,null,null,"NIF:",null,{"$f":"+Base!U9","v":0}]
[]
[]
[null,null,null,"Atividades:"]
[]
[]
[]
[]
[]
[]
[]
[]
[]
[]
[]
[]
[]
[null,null,null,null,null,"Sim",null,"Não"]
[]
[null,null,null,"Bolseiro:"]
[]
[null,null,null,"Vínculo à Função Pública:",null,null,null,null,null,"Caso afirmativo, que tipo de vínculo?"]
[]
[null,null,null,"Formação Académica:"]
[]
[null,null,null,"Exercício de cargo de chefia:"]
[]
[null,null,null,"Formação Académica e formação profissional:"]
[]
[]
[]
[]
[]
[]
[]
[]
[]
[]
[]
[]
[]
[]
[]
[]
[null,null,null,"Função exercida no beneficiário"]
[]
[]
[]
[]
[]
[]
[]
[]
[]
[]
[]
[]
[]
[null,null,null,"Exercício de cargo de chefia"]
[]
[]
[]
[]
[]
[]
[]
[]
[]
[]
[]
[]
[null,null,null,"Tarefas desempenhadas antes do início deste projecto e descrição sucinta dos conhecimentos e experiência passada úteis para o projecto:"]

{"sheet":"CurriculoPessExt(9)","index":17,"n_rows":91,"n_cols":10,"rows_kept":91,"cut":false,"hidden":true,"merged":[[40,16,40,28],[22,5,22,28],[24,5,24,28],[26,5,26,28],[28,5,28,28],[30,5,30,28],[32,5,32,28],[19,5,19,9],[4,2,4,28],[7,2,7,3],[11,2,11,28],[14,2,14,29],[17,5,17,28]]}
[]
[]
[null,null,"BENEFICIÁRIO:"]
[]
[null,null,{"$f":"+CAPA!C9","v":0}]
[]
[null,null,"NIF:"]
[null,null,{"$f":"+CAPA!C12","v":0}]
[]
[null,null,"SISTEMA DE INCENTIVOS:"]
[]
[null,null,{"$f":"+CAPA!C16","v":"PROCIÊNCIA"}]
[]
[]
[null,null,"Curricula dos técnicos afectos ao projecto"]
[null,null,"  "]
[]
[null,null,null,"Técnico:",null,{"$f":"+Base!W10","v":"9 - 0 ( 0 )"}]
[]
[null,null,null,"NIF:",null,{"$f":"+Base!U10","v":0}]
[]
[]
[null,null,null,"Atividades:"]
[]
[]
[]
[]
[]
[]
[]
[]
[]
[]
[]
[]
[]
[null,null,null,null,null,"Sim",null,"Não"]
[]
[null,null,null,"Bolseiro:"]
[]
[null,null,null,"Vínculo à Função Pública:",null,null,null,null,null,"Caso afirmativo, que tipo de vínculo?"]
[]
[null,null,null,"Formação Académica:"]
[]
[null,null,null,"Exercício de cargo de chefia:"]
[]
[null,null,null,"Formação Académica e formação profissional:"]
[]
[]
[]
[]
[]
[]
[]
[]
[]
[]
[]
[]
[]
[]
[]
[]
[null,null,null,"Função exercida no beneficiário"]
[]
[]
[]
[]
[]
[]
[]
[]
[]
[]
[]
[]
[]
[null,null,null,"Exercício de cargo de chefia"]
[]
[]
[]
[]
[]
[]
[]
[]
[]
[]
[]
[]
[null,null,null,"Tarefas desempenhadas antes do início deste projecto e descrição sucinta dos conhecimentos e experiência passada úteis para o projecto:"]

{"sheet":"CurriculoPessExt(10)","index":18,"n_rows":91,"n_cols":10,"rows_kept":91,"cut":false,"hidden":true,"merged":[[40,16,40,28],[22,5,22,28],[24,5,24,28],[26,5,26,28],[28,5,28,28],[30,5,30,28],[32,5,32,28],[19,5,19,9],[4,2,4,28],[7,2,7,3],[11,2,11,28],[14,2,14,29],[17,5,17,28]]}
[]
[]
[null,null,"BENEFICIÁRIO:"]
[]
[null,null,{"$f":"+CAPA!C9","v":0}]
[]
[null,null,"NIF:"]
[null,null,{"$f":"+CAPA!C12","v":0}]
[]
[null,null,"SISTEMA DE INCENTIVOS:"]
[]
[null,null,{"$f":"+CAPA!C16","v":"PROCIÊNCIA"}]
[]
[]
[null,null,"Curricula dos técnicos afectos ao projecto"]
[null,null,"  "]
[]
[null,null,null,"Técnico:",null,{"$f":"+Base!W11","v":"10 - 0 ( 0 )"}]
[]
[null,null,null,"NIF:",null,{"$f":"+Base!U11","v":0}]
[]
[]
[null,null,null,"Atividades:"]
[]
[]
[]
[]
[]
[]
[]
[]
[]
[]
[]
[]
[]
[null,null,null,null,null,"Sim",null,"Não"]
[]
[null,null,null,"Bolseiro:"]
[]
[null,null,null,"Vínculo à Função Pública:",null,null,null,null,null,"Caso afirmativo, que tipo de vínculo?"]
[]
[null,null,null,"Formação Académica:"]
[]
[null,null,null,"Exercício de cargo de chefia:"]
[]
[null,null,null,"Formação Académica e formação profissional:"]
[]
[]
[]
[]
[]
[]
[]
[]
[]
[]
[]
[]
[]
[]
[]
[]
[null,null,null,"Função exercida no beneficiário"]
[]
[]
[]
[]
[]
[]
[]
[]
[]
[]
[]
[]
[]
[null,null,null,"Exercício de cargo de chefia"]
[]
[]
[]
[]
[]
[]
[]
[]
[]
[]
[]
[]
[null,null,null,"Tarefas desempenhadas antes do início deste projecto e descrição sucinta dos conhecimentos e experiência passada úteis para o projecto:"]

{"sheet":"CurriculoPessExt(11)","index":19,"n_rows":91,"n_cols":10,"rows_kept":91,"cut":false,"hidden":true,"merged":[[40,16,40,28],[22,5,22,28],[24,5,24,28],[26,5,26,28],[28,5,28,28],[30,5,30,28],[32,5,32,28],[19,5,19,9],[4,2,4,28],[7,2,7,3],[11,2,11,28],[14,2,14,29],[17,5,17,28]]}
[]
[]
[null,null,"BENEFICIÁRIO:"]
[]
[null,null,{"$f":"+CAPA!C9","v":0}]
[]
[null,null,"NIF:"]
[null,null,{"$f":"+CAPA!C12","v":0}]
[]
[null,null,"SISTEMA DE INCENTIVOS:"]
[]
[null,null,{"$f":"+CAPA!C16","v":"PROCIÊNCIA"}]
[]
[]
[null,null,"Curricula dos técnicos afectos ao projecto"]
[null,null,"  "]
[]
[null,null,null,"Técnico:",null,{"$f":"+Base!W12","v":"11 - 0 ( 0 )"}]
[]
[null,null,null,"NIF:",null,{"$f":"+Base!U12","v":0}]
[]
[]
[null,null,null,"Atividades:"]
[]
[]
[]
[]
[]
[]
[]
[]
[]
[]
[]
[]
[]
[null,null,null,null,null,"Sim",null,"Não"]
[]
[null,null,null,"Bolseiro:"]
[]
[null,null,null,"Vínculo à Função Pública:",null,null,null,null,null,"Caso afirmativo, que tipo de vínculo?"]
[]
[null,null,null,"Formação Académica:"]
[]
[null,null,null,"Exercício de cargo de chefia:"]
[]
[null,null,null,"Formação Académica e formação profissional:"]
[]
[]
[]
[]
[]
[]
[]
[]
[]
[]
[]
[]
[]
[]
[]
[]
[null,null,null,"Função exercida no beneficiário"]
[]
[]
[]
[]
[]
[]
[]
[]
[]
[]
[]
[]
[]
[null,null,null,"Exercício de cargo de chefia"]
[]
[]
[]
[]
[]
[]
[]
[]
[]
[]
[]
[]
[null,null,null,"Tarefas desempenhadas antes do início deste projecto e descrição sucinta dos conhecimentos e experiência passada úteis para o projecto:"]

{"sheet":"CurriculoPessExt(12)","index":20,"n_rows":91,"n_cols":10,"rows_kept":91,"cut":false,"hidden":true,"merged":[[40,16,40,28],[22,5,22,28],[24,5,24,28],[26,5,26,28],[28,5,28,28],[30,5,30,28],[32,5,32,28],[19,5,19,9],[4,2,4,28],[7,2,7,3],[11,2,11,28],[14,2,14,29],[17,5,17,28]]}
[]
[]
[null,null,"BENEFICIÁRIO:"]
[]
[null,null,{"$f":"+CAPA!C9","v":0}]
[]
[null,null,"NIF:"]
[null,null,{"$f":"+CAPA!C12","v":0}]
[]
[null,null,"SISTEMA DE INCENTIVOS:"]
[]
[null,null,{"$f":"+CAPA!C16","v":"PROCIÊNCIA"}]
[]
[]
[null,null,"Curricula dos técnicos afectos ao projecto"]
[null,null,"  "]
[]
[null,null,null,"Técnico:",null,{"$f":"+Base!W13","v":"12 - 0 ( 0 )"}]
[]
[null,null,null,"NIF:",null,{"$f":"+Base!U13","v":0}]
[]
[]
[null,null,null,"Atividades:"]
[]
[]
[]
[]
[]
[]
[]
[]
[]
[]
[]
[]
[]
[null,null,null,null,null,"Sim",null,"Não"]
[]
[null,null,null,"Bolseiro:"]
[]
[null,null,null,"Vínculo à Função Pública:",null,null,null,null,null,"Caso afirmativo, que tipo de vínculo?"]
[]
[null,null,null,"Formação Académica:"]
[]
[null,null,null,"Exercício de cargo de chefia:"]
[]
[null,null,null,"Formação Académica e formação profissional:"]
[]
[]
[]
[]
[]
[]
[]
[]
[]
[]
[]
[]
[]
[]
[]
[]
[null,null,null,"Função exercida no beneficiário"]
[]
[]
[]
[]
[]
[]
[]
[]
[]
[]
[]
[]
[]
[null,null,null,"Exercício de cargo de chefia"]
[]
[]
[]
[]
[]
[]
[]
[]
[]
[]
[]
[]
[null,null,null,"Tarefas desempenhadas antes do início deste projecto e descrição sucinta dos conhecimentos e experiência passada úteis para o projecto:"]

{"sheet":"CurriculoPessExt(13)","index":21,"n_rows":91,"n_cols":10,"rows_kept":91,"cut":false,"hidden":true,"merged":[[40,16,40,28],[22,5,22,28],[24,5,24,28],[26,5,26,28],[28,5,28,28],[30,5,30,28],[32,5,32,28],[19,5,19,9],[4,2,4,28],[7,2,7,3],[11,2,11,28],[14,2,14,29],[17,5,17,28]]}
[]
[]
[null,null,"BENEFICIÁRIO:"]
[]
[null,null,{"$f":"+CAPA!C9","v":0}]
[]
[null,null,"NIF:"]
[null,null,{"$f":"+CAPA!C12","v":0}]
[]
[null,null,"SISTEMA DE INCENTIVOS:"]
[]
[null,null,{"$f":"+CAPA!C16","v":"PROCIÊNCIA"}]
[]
[]
[null,null,"Curricula dos técnicos afectos ao projecto"]
[null,null,"  "]
[]
[null,null,null,"Técnico:",null,{"$f":"+Base!W14","v":"13 - 0 ( 0 )"}]
[]
[null,null,null,"NIF:",null,{"$f":"+Base!U14","v":0}]
[]
[]
[null,null,null,"Atividades:"]
[]
[]
[]
[]
[]
[]
[]
[]
[]
[]
[]
[]
[]
[null,null,null,null,null,"Sim",null,"Não"]
[]
[null,null,null,"Bolseiro:"]
[]
[null,null,null,"Vínculo à Função Pública:",null,null,null,null,null,"Caso afirmativo, que tipo de vínculo?"]
[]
[null,null,null,"Formação Académica:"]
[]
[null,null,null,"Exercício de cargo de chefia:"]
[]
[null,null,null,"Formação Académica e formação profissional:"]
[]
[]
[]
[]
[]
[]
[]
[]
[]
[]
[]
[]
[]
[]
[]
[]
[null,null,null,"Função exercida no beneficiário"]
[]
[]
[]
[]
[]
[]
[]
[]
[]
[]
[]
[]
[]
[null,null,null,"Exercício de cargo de chefia"]
[]
[]
[]
[]
[]
[]
[]
[]
[]
[]
[]
[]
[null,null,null,"Tarefas desempenhadas antes do início deste projecto e descrição sucinta dos conhecimentos e experiência passada úteis para o projecto:"]

{"sheet":"CurriculoPessExt(14)","index":22,"n_rows":91,"n_cols":10,"rows_kept":91,"cut":false,"hidden":true,"merged":[[40,16,40,28],[22,5,22,28],[24,5,24,28],[26,5,26,28],[28,5,28,28],[30,5,30,28],[32,5,32,28],[19,5,19,9],[4,2,4,28],[7,2,7,3],[11,2,11,28],[14,2,14,29],[17,5,17,28]]}
[]
[]
[null,null,"BENEFICIÁRIO:"]
[]
[null,null,{"$f":"+CAPA!C9","v":0}]
[]
[null,null,"NIF:"]
[null,null,{"$f":"+CAPA!C12","v":0}]
[]
[null,null,"SISTEMA DE INCENTIVOS:"]
[]
[null,null,{"$f":"+CAPA!C16","v":"PROCIÊNCIA"}]
[]
[]
[null,null,"Curricula dos técnicos afectos ao projecto"]
[null,null,"  "]
[]
[null,null,null,"Técnico:",null,{"$f":"+Base!W15","v":"14 - 0 ( 0 )"}]
[]
[null,null,null,"NIF:",null,{"$f":"+Base!U15","v":0}]
[]
[]
[null,null,null,"Atividades:"]
[]
[]
[]
[]
[]
[]
[]
[]
[]
[]
[]
[]
[]
[null,null,null,null,null,"Sim",null,"Não"]
[]
[null,null,null,"Bolseiro:"]
[]
[null,null,null,"Vínculo à Função Pública:",null,null,null,null,null,"Caso afirmativo, que tipo de vínculo?"]
[]
[null,null,null,"Formação Académica:"]
[]
[null,null,null,"Exercício de cargo de chefia:"]
[]
[null,null,null,"Formação Académica e formação profissional:"]
[]
[]
[]
[]
[]
[]
[]
[]
[]
[]
[]
[]
[]
[]
[]
[]
[null,null,null,"Função exercida no beneficiário"]
[]
[]
[]
[]
[]
[]
[]
[]
[]
[]
[]
[]
[]
[null,null,null,"Exercício de cargo de chefia"]
[]
[]
[]
[]
[]
[]
[]
[]
[]
[]
[]
[]
[null,null,null,"Tarefas desempenhadas antes do início deste projecto e descrição sucinta dos conhecimentos e experiência passada úteis para o projecto:"]

{"sheet":"CurriculoPessExt(15)","index":23,"n_rows":91,"n_cols":10,"rows_kept":91,"cut":false,"hidden":true,"merged":[[40,16,40,28],[22,5,22,28],[24,5,24,28],[26,5,26,28],[28,5,28,28],[30,5,30,28],[32,5,32,28],[19,5,19,9],[4,2,4,28],[7,2,7,3],[11,2,11,28],[14,2,14,29],[17,5,17,28]]}
[]
[]
[null,null,"BENEFICIÁRIO:"]
[]
[null,null,{"$f":"+CAPA!C9","v":0}]
[]
[null,null,"NIF:"]
[null,null,{"$f":"+CAPA!C12","v":0}]
[]
[null,null,"SISTEMA DE INCENTIVOS:"]
[]
[null,null,{"$f":"+CAPA!C16","v":"PROCIÊNCIA"}]
[]
[]
[null,null,"Curricula dos técnicos afectos ao projecto"]
[null,null,"  "]
[]
[null,null,null,"Técnico:",null,{"$f":"+Base!W16","v":"15 - 0 ( 0 )"}]
[]
[null,null,null,"NIF:",null,{"$f":"+Base!U16","v":0}]
[]
[]
[null,null,null,"Atividades:"]
[]
[]
[]
[]
[]
[]
[]
[]
[]
[]
[]
[]
[]
[null,null,null,null,null,"Sim",null,"Não"]
[]
[null,null,null,"Bolseiro:"]
[]
[null,null,null,"Vínculo à Função Pública:",null,null,null,null,null,"Caso afirmativo, que tipo de vínculo?"]
[]
[null,null,null,"Formação Académica:"]
[]
[null,null,null,"Exercício de cargo de chefia:"]
[]
[null,null,null,"Formação Académica e formação profissional:"]
[]
[]
[]
[]
[]
[]
[]
[]
[]
[]
[]
[]
[]
[]
[]
[]
[null,null,null,"Função exercida no beneficiário"]
[]
[]
[]
[]
[]
[]
[]
[]
[]
[]
[]
[]
[]
[null,null,null,"Exercício de cargo de chefia"]
[]
[]
[]
[]
[]
[]
[]
[]
[]
[]
[]
[]
[null,null,null,"Tarefas desempenhadas antes do início deste projecto e descrição sucinta dos conhecimentos e experiência passada úteis para o projecto:"]

{"sheet":"carat proj 3","index":24,"n_rows":42,"n_cols":4,"rows_kept":42,"cut":false,"hidden":false,"merged":[[43,3,43,8],[4,2,4,14],[7,2,7,5],[11,2,11,14],[14,2,14,15],[35,3,35,7]]}
[]
[]
[null,null,"BENEFICIÁRIO:"]
[]
[null,null,{"$f":"+CAPA!C9","v":0}]
[]
[null,null,"NIF:"]
[null,null,{"$f":"+CAPA!C12","v":0}]
[]
[null,null,"SISTEMA DE INCENTIVOS:"]
[]
[null,null,{"$f":"+CAPA!C16","v":"PROCIÊNCIA"}]
[]
[]
[null,null,"CARACTERIZAÇÃO DO PROJECTO"]
[null,null,"  "]
[]
[null,null,null,"Plano de divulgação de resultados "]
[null,null,null,"Identificar e caracterizar a eventual participação da empresa em eventos de divulgação de resultados, nomeadamente:"]
[null,null,null,"- Acções de divulgação"]
[null,null,null,"- Publicações técnicas/ cientificas"]
[null,null,null,"- Conferencias, seminários ou fóruns"]
[null,null,null,"- teses de mestrado e doutoramento"]
[null,null,null,"- Ações junto dos setores alvo"]
[]
[]
[]
[]
[]
[]
[]
[]
[]
[]
[]
[null,null,null,"Estratégia de valorização de resultados"]
[null,null,null,"Descrever pormenorizadamente a estratégia da empresa, designadamente: "]
[null,null,null,"- Identificação da estratégia de introdução no mercado (mercados geográficos, segementos alvo e posicionamento)"]
[null,null,null,"- Identificação dos canais criticos de acesso, existentes ou a desenvolver"]
[null,null,null,"- Identificação das necessidades de investimento (produtivo) complementares"]
[null,null,null,"- Referência aos principais riscos de natureza comercial e respetivas estratégias de mitigação"]
[null,null,null,"- Estratégia de proteção da propriedade intelectual sobre a forma de patentes ou outros conexos"]

{"sheet":"carat proj 4","index":25,"n_rows":51,"n_cols":14,"rows_kept":51,"cut":false,"hidden":false,"merged":[[46,8,46,9],[47,8,47,9],[48,8,48,9],[20,11,20,12],[21,11,21,12],[22,11,22,12],[20,4,20,9],[21,4,21,9],[22,4,22,9],[24,4,24,9],[25,4,25,9],[23,11,23,12],[24,11,24,12],[25,11,25,12],[23,4,23,9],[26,4,26,9],[4,2,4,15],[7,2,7,5],[11,2,11,15],[14,2,14,15],[19,11,19,12],[19,4,19,9],[41,11,41,12],[42,11,42,12],[43,11,43,12],[26,11,26,12],[29,3,29,8],[42,8,42,9],[43,8,43,9],[47,4,47,7],[48,4,48,7],[47,11,47,12],[48,11,48,12],[41,4,41,7],[41,8,41,9],[42,4,42,7],[43,4,43,7],[44,4,44,7],[45,4,45,7],[44,11,44,12],[45,11,45,12],[46,11,46,12],[46,4,46,7],[44,8,44,9],[45,8,45,9]]}
[]
[]
[null,null,"BENEFICIÁRIO:"]
[]
[null,null,{"$f":"+CAPA!C9","v":0}]
[]
[null,null,"NIF:"]
[null,null,{"$f":"+CAPA!C12","v":0}]
[]
[null,null,"SISTEMA DE INCENTIVOS:"]
[]
[null,null,{"$f":"+CAPA!C16","v":"PROCIÊNCIA"}]
[]
[]
[null,null,"CARACTERIZAÇÃO DO PROJECTO"]
[null,null,"  "]
[]
[null,null,null,"Lista dos marcos (milestones)"]
[]
[null,null,null,"nº","tarefa",null,null,null,null,null,"data","Marco/Milestone",null,"Meios de verificação"]
[null,null,null,1]
[null,null,null,2]
[null,null,null,3]
[null,null,null,4]
[null,null,null,5]
[null,null,null,6]
[null,null,null,7]
[]
[null,null,null,"Identificar os principais marcos do projeto e os respetivos meios de verificação, bem como as tarefas a que estão associados:"]
[]
[]
[]
[]
[]
[]
[]
[]
[]
[]
[null,null,null,"Lista de entregáveis"]
[]
[null,null,null,"nº","Tarefa",null,null,null,"Entregável",null,"data","Tipo",null,"Nível de divulgação"]
[null,null,null,1]
[null,null,null,2]
[null,null,null,3]
[null,null,null,4]
[null,null,null,5]
[null,null,null,6]
[null,null,null,7]
[]
[null,null,null,"Identificar e classificar os entregáveis do projeto, bem como as tarefas a que estão associados:"]

{"sheet":"Amortizações","index":26,"n_rows":30,"n_cols":9,"rows_kept":30,"cut":false,"hidden":true,"merged":[[4,2,4,10],[7,2,7,3],[11,2,11,10],[14,2,14,10],[17,3,19,9]]}
[]
[]
[null,null,"BENEFICIÁRIO:"]
[]
[null,null,{"$f":"+CAPA!C9","v":0}]
[]
[null,null,"NIF:"]
[null,null,{"$f":"+CAPA!C12","v":0}]
[]
[null,null,"SISTEMA DE INCENTIVOS:"]
[]
[null,null,{"$f":"+CAPA!C16","v":"PROCIÊNCIA"}]
[]
[]
[null,null,"CARACTERIZAÇÃO DO PROJECTO"]
[null,null,"  "]
[]
[null,null,null,"Investimentos sujeitos a amortizações \nEste quadro tem como objetivo auxiliar no apuramento das despesas com amortizações dos investimentos passíveis de amortização, nos termos do Regulamento do PROCiência.\nPreencher de acordo com o mapa de despesa e complementar com: \n• Na coluna da Taxa Anual de Amortização preencher a taxa de amortização anual de acordo com as regras contabilísticas aplicáveis. \n• Nas colunas respeitantes ao Período de Afetação deve preencher as datas de início e de fim da afetação de cada equipamento e software, ao projeto. \n"]
[]
[]
[]
[]
[]
[null,null,null,"N","Designação","Classificação das despesas","Valor elegível","Valor elegível","Tx anual de amort"]
[null,null,null,1]
[null,null,null,2]
[null,null,null,3]
[null,null,null,4]
[null,null,null,5]
[null,null,null,6]

{"sheet":"Atividades","index":27,"n_rows":88,"n_cols":9,"rows_kept":88,"cut":false,"hidden":false,"merged":[[83,3,83,8],[84,3,85,9],[87,3,87,9],[59,3,59,4],[60,3,60,4],[61,3,61,4],[62,3,62,4],[63,3,63,4],[75,3,75,5],[54,3,54,4],[55,3,55,4],[56,3,56,4],[57,3,57,4],[58,3,58,4],[4,2,4,9],[7,2,7,4],[11,2,11,9],[14,2,14,10],[68,3,68,5],[52,3,52,4],[53,3,53,4],[43,3,43,4],[44,3,44,4],[45,3,45,4],[46,3,46,4],[47,3,47,4],[48,3,48,4],[49,3,49,4],[50,3,50,4],[51,3,51,4],[19,3,19,4],[20,3,20,4],[21,3,21,4],[23,3,23,4],[27,3,27,4],[22,3,22,4],[38,3,38,4],[39,3,39,4],[24,3,24,4],[25,3,25,4],[26,3,26,4],[34,3,34,4],[35,3,35,4],[36,3,36,4],[37,3,37,4],[28,3,28,4],[29,3,29,4],[30,3,30,4],[31,3,31,4],[32,3,32,4],[33,3,33,4]]}
[]
[]
[null,null,"BENEFICIÁRIO:"]
[]
[null,null,{"$f":"+CAPA!C9","v":0}]
[]
[null,null,"NIF:"]
[null,null,{"$f":"+CAPA!C12","v":0}]
[]
[null,null,"SISTEMA DE INCENTIVOS:"]
[]
[null,null,{"$f":"+CAPA!C16","v":"PROCIÊNCIA"}]
[]
[]
[null,null,"Descrição das actividades de I&DT"]
[null,null,"  "]
[]
[null,null,null,"Atividades Gerais"]
[]
[null,null,null,"Nº da Actividade",null,"Descrição da Atividade","Classificação atividade","Data de Início","Data de conclusão"]
[null,null,null,1]
[null,null,null,2]
[null,null,null,3]
[null,null,null,4]
[null,null,null,5]
[null,null,null,6]
[null,null,null,7]
[null,null,null,8]
[null,null,null,9]
[null,null,null,10]
[null,null,null,11]
[null,null,null,12]
[null,null,null,13]
[null,null,null,14]
[null,null,null,15]
[null,null,null,16]
[null,null,null,17]
[null,null,null,18]
[null,null,null,19]
[null,null,null,20]
[]
[null,null,null,"Atividade por Tarefa"]
[]
[null,null,null,"Nº da Actividade",null,"Descrição da Atividade","Tarefa","Data de Início da tarefa","Data de conclusão da tarefa"]
[null,null,null,1]
[null,null,null,2]
[null,null,null,3]
[null,null,null,4]
[null,null,null,5]
[null,null,null,6]
[null,null,null,7]
[null,null,null,8]
[null,null,null,9]
[null,null,null,10]
[null,null,null,11]
[null,null,null,12]
[null,null,null,13]
[null,null,null,14]
[null,null,null,15]
[null,null,null,16]
[null,null,null,17]
[null,null,null,18]
[null,null,null,19]
[null,null,null,20]
[]
[]
[null,null,null,"Caracterização e fundamentação das actividades/ tarefas"]
[]
[]
[]
[]
[]
[]
[]
[]
[]
[]
[]
[]
[]
[]
[]
[]
[]
[null,null,null,"Atividades do Projeto ou do Conteúdo da Participação \n• Identificar sequencialmente todas as atividades do projeto, não incluindo numa mesma atividade tarefas de investigação industrial e de desenvolvimento experimental na medida em que a sua individualização servirá para identificar as despesas suscetíveis de beneficiar da majoração aplicável à investigação industrial.\n•Data de Início e Data de Conclusão da atividade; "]
[]
[]
[null,null,null,"Tarefas \nCaracterizar as tarefas (uma ou várias) associadas a cada atividade, designadamente no que respeita a: \n• N.º de Tarefa - N.º sequencial atribuído automaticamente a cada tarefa inserida numa mesma atividade; \n• Designação da Tarefa – Descrição da tarefa; \n• Data de Início e Data de Conclusão – Datas de início e de conclusão de cada tarefa; \n"]

{"sheet":"Postos Trabalho","index":28,"n_rows":81,"n_cols":29,"rows_kept":81,"cut":false,"hidden":false,"merged":[[4,2,4,17],[7,2,7,3],[11,2,11,17],[20,3,21,3],[20,4,20,5],[20,6,20,7],[20,8,20,9],[20,10,20,11],[20,12,20,13],[20,26,20,27],[20,22,20,23],[20,24,20,25],[26,3,27,4],[26,5,26,6],[26,8,26,9],[26,10,26,11],[26,14,27,15],[26,16,26,17],[20,14,20,15],[20,16,20,17],[20,18,20,19],[20,20,20,21],[28,3,28,4],[28,14,28,15],[29,3,29,4],[29,14,29,15],[30,3,30,4],[30,5,30,6],[30,14,30,15],[39,3,39,4],[39,10,39,11],[40,3,40,4],[62,3,63,25],[30,16,30,17],[31,3,32,4],[31,5,32,6],[31,14,32,15],[31,16,32,17],[37,3,38,4],[37,5,37,6],[37,10,38,11],[37,12,37,13],[70,8,70,11],[70,12,70,15],[71,3,71,5],[71,6,71,7],[71,8,71,9],[71,10,71,11],[71,12,71,13],[71,14,71,15],[72,14,72,15],[73,3,73,5],[73,6,73,7],[73,8,73,9],[73,10,73,11],[73,12,73,13],[73,14,73,15],[72,3,72,5],[72,6,72,7],[72,8,72,9],[72,10,72,11],[72,12,72,13],[74,14,74,15],[75,3,75,5],[75,6,75,7],[75,8,75,9],[75,10,75,11],[75,12,75,13],[75,14,75,15],[74,3,74,5],[74,6,74,7],[74,8,74,9],[74,10,74,11],[74,12,74,13],[76,14,76,15],[77,3,77,5],[77,6,77,7],[77,8,77,9],[77,10,77,11],[77,12,77,13],[77,14,77,15],[76,3,76,5],[76,6,76,7],[76,8,76,9],[76,10,76,11],[76,12,76,13],[78,14,78,15],[79,3,79,5],[80,3,80,7],[80,8,80,9],[80,10,80,11],[80,12,80,13],[80,14,80,15],[78,3,78,5],[78,6,78,7],[78,8,78,9],[78,10,78,11],[78,12,78,13]]}
[]
[]
[null,null,"BENEFICIÁRIO:"]
[]
[null,null,{"$f":"+CAPA!C9","v":0}]
[]
[null,null,"NIF:"]
[null,null,{"$f":"+CAPA!C12","v":0}]
[]
[null,null,"SISTEMA DE INCENTIVOS:"]
[]
[null,null,{"$f":"+CAPA!C16","v":"PROCIÊNCIA"}]
[]
[]
[null,null,"POSTOS DE TRABALHO"]
[]
[null,null,"  "]
[]
[null,null,null,"Postos de trabalho existentes no ano anterior à data da candidatura"]
[]
[null,null,null,"Postos de trabalho","Jan/n-1",null,"Fev/n-1",null,"Mar/n-1",null,"abr/n-1",null,"Maio/n-1",null,"Jun/n-1",null,"Jul/n-1",null,"Ago/n-1",null,"Set/n-1",null,"Out/n-1",null,"Nov/n-1",null,"Dez/n-1"]
[null,null,null,null,"H","M","H","M","H","M","H","M","H","M","H","M","H","M","H","M","H","M","H","M","H","M","H","M"]
[null,null,null,"Não qualificado",null,null,null,null,null,null,null,null,null,null,null,null,null,null,null,null,null,null,null,null,null,null,null,null,"(inserir)"]
[null,null,null,"Qualificado*",null,null,null,null,null,null,null,null,null,null,null,null,null,null,null,null,null,null,null,null,null,null,null,null,"(inserir)"]
[null,null,null,"* Nivel de qualificação igual ou superior ao Nível VI"]
[]
[null,null,null,"Postos de trabalho",null,"Total"]
[null,null,null,null,null,"H","M"]
[null,null,null,"Não qualificado",null,{"$f":"E23+G23+I23+K23+M23+O23+Q23+S23+U23+W23+Y23+AA23","v":0},{"$f":"F23+H23+J23+L23+N23+P23+R23+T23+V23+X23+Z23+AB23","v":0}]
[null,null,null,"Qualificado*",null,{"$f":"E24+G24+I24+K24+M24+O24+Q24+S24+U24+W24+Y24+AA24","v":0},{"$f":"F24+H24+J24+L24+N24+P24+R24+T24+V24+X24+Z24+AB24","v":0}]
[null,null,null,"Nº meses",null,null,null,"(inserir)"]
[null,null,null,"Média Postos de trabalho",null,{"$f":"(F29+G29+F30+G30)/F31","v":{"$error":"#DIV/0!"}}]
[]
[]
[]
[null,null,null,"Postos de trabalho a criar com o projeto"]
[]
[null,null,null,"Postos de trabalho",null,"Total",null,null,null,null,"Postos de trabalho",null,"Total"]
[null,null,null,null,null,"H","M",null,null,null,null,null,"H","M"]
[null,null,null,"Não qualificado",null,null,null,"(inserir)",null,null,"Jovem",null,null,null,"(inserir)"]
[null,null,null,"Qualificado",null,null,null,"(inserir)"]
[]
[]
[null,null,null,"Fundamentação "]
[null,null,null," - Se os meios humanos são adequados ao desenvolvimento do projeto."]
[null,null,null," - Qual a formação dos postos de trabalho e se a mesma é adequada ao desenvolvimento do projeto."]
[]
[]
[]
[]
[]
[]
[]
[]
[]
[]
[]
[]
[]
[]
[]
[]
[null,null,null,"«Criação líquida de postos de trabalho», o aumento líquido do número de trabalhadores diretamente empregados na empresa, calculado pela diferença entre o número de postos de trabalho existentes no mês anterior à data de apresentação do pedido de pagamento final e a média mensal durante um determinado período de tempo nos meses pré- projeto, com o limite máximo de 12 meses."]
[]
[]
[null,null,null,"Nos termos da Portaria n.º 782/2009 de 23 de julho, os níveis de qualificação de emprego a considerar são:"]
[null,null,null,"•  Nível 6 - Licenciatura\n"]
[null,null,null,"• Nível 7 - Mestrado"]
[null,null,null,"• Nível 8 - Doutoramento"]
[]
[null,null,null,null,null,null,null,null,2014,null,null,null,"Ano fim Proj. + 1"]
[null,null,null,"Área Funcional",null,null,"Nível de Habilitações",null,"Mulheres",null,"Homens",null,"Mulheres",null,"Homens"]
[]
[]
[]
[]
[]
[]
[]
[]
[null,null,null,"TOTAL",null,null,null,null,{"$f":"SUM(I73:J80)","v":0},null,{"$f":"SUM(K73:L80)","v":0},null,{"$f":"SUM(M73:N80)","v":0},null,{"$f":"SUM(O73:P80)","v":0}]

{"sheet":"PessoalTecnico","index":29,"n_rows":82,"n_cols":19,"rows_kept":82,"cut":false,"hidden":false,"merged":[[72,3,73,19],[74,3,75,19],[76,3,77,19],[81,3,89,19],[4,2,4,20],[7,2,7,4],[11,2,11,20],[14,2,14,20],[17,3,17,16],[18,13,18,16],[19,3,20,3],[19,4,20,4],[19,5,20,5],[19,13,20,13],[19,14,20,14],[19,10,20,10],[19,15,19,17],[19,18,20,18],[19,11,20,11],[19,12,20,12],[19,6,20,6],[19,7,20,7],[19,8,20,8],[19,9,20,9]]}
[]
[]
[null,null,"BENEFICIÁRIO:"]
[]
[null,null,{"$f":"+CAPA!C9","v":0}]
[]
[null,null,"NIF:"]
[null,null,{"$f":"+CAPA!C12","v":0}]
[]
[null,null,"SISTEMA DE INCENTIVOS:"]
[]
[null,null,{"$f":"+CAPA!C16","v":"PROCIÊNCIA"}]
[]
[]
[null,null,"PESSOAL TÉCNICO AFETO AO PROJETO"]
[null,null,"  "]
[]
[null,null,null,"Pessoal técnico do promotor a afectar ao projecto"]
[]
[null,null,null,"N.º","Nova Contrat.","NIF","Nome","Género","Vínculo","Nível de Habilitações","Data Contratação","Área Funcional","Taxa de Segurança Social","Remuneração mensal média (imputação de custos reais)","Remuneração anual (imputação de custos simplificados)","Custo/Hora",null,null,"Beneficiário /\nCo-promotor"]
[null,null,null,null,null,null,null,null,null,null,null,null,null,null,null,"Ano","Ano+1","Ano+2"]
[null,null,null,1]
[null,null,null,2]
[null,null,null,3]
[null,null,null,4]
[null,null,null,5]
[null,null,null,6]
[null,null,null,7]
[null,null,null,8]
[null,null,null,9]
[null,null,null,10]
[null,null,null,11]
[null,null,null,12]
[null,null,null,13]
[null,null,null,14]
[null,null,null,15]
[null,null,null,16]
[null,null,null,17]
[null,null,null,18]
[null,null,null,19]
[null,null,null,20]
[null,null,null,21]
[null,null,null,22]
[null,null,null,23]
[null,null,null,24]
[null,null,null,25]
[null,null,null,26]
[null,null,null,27]
[null,null,null,28]
[null,null,null,29]
[null,null,null,30]
[]
[]
[null,null,null,"Nº - N.º sequencial associado a cada técnico; "]
[null,null,null,"Nova Contratação – Para cada técnico assinalar as situações correspondentes a novas contratações (ou seja, contratações depois da data de apresentação da candidatura), sim / não; "]
[null,null,null,"Genero - Indicar o sexo masculino ou feminino do técnico associado ao projeto"]
[null,null,null,"Vínculo – Selecionar o tipo de vínculo contratual para com a entidade beneficiária; "]
[null,null,null,"Nível de habilitações – Selecionar o correspondente nível de qualificação à data da candidatura;"]
[]
[]
[]
[]
[]
[]
[]
[]
[]
[]
[null,null,null,"data da contratação, data que corresponde a contratação"]
[null,null,null,"Área Funcional, áreas que o técnico ocupa"]
[]
[null,null,null,"Taxa da Segurança Social - Para cada perfil curricular, indicar a percentagem de encargos sociais obrigatórios, designadamente para com a Segurança Social/CGA, a que o promotor está obrigado. No caso das entidades com encargos com ADSE, poderá ser somada a taxa referente ao encargo patronal. Este campo deve ser preenchido caso o beneficiário opte pela imputação de custos reais como opção de reembolso das despesas elegíveis realizadas"]
[null,null,null,"Remuneração Mensal Média = salário base mensal do técnico, o qual pode incluir IHT (isenção do horário de trabalho) ou diuturnidades (remunerações de carácter certo e permanente declaradas para efeitos de proteção social do trabalhador), acrescido dos encargos sociais obrigatórios, quando aplicável. Este campo deve ser preenchido caso o beneficiário opte pela imputação de custos reais como opção de reembolso das despesas elegíveis realizadas; "]
[]
[null,null,null,"Remuneração Anual – Referir a remuneração anual auferida por cada perfil curricular (incluindo os encargos sociais obrigatórios). Entende-se por remuneração anual o conjunto de todas as remunerações de carácter certo e permanente sujeitas a tributação fiscal e declaradas para efeitos de proteção social do trabalhador. Este campo deve ser preenchido caso o beneficiário opte pela imputação de custos simplificados como opção de reembolso das despesas elegíveis realizadas;"]
[]
[null,null,null,"Imputação de Custos / Afetação de Recursos \nIndependentemente da escolha do método de imputação dos custos, as despesas elegíveis com pessoal técnico do promotor são determinadas de acordo com a dedicação ao projeto, ou seja, em função da carga horária efetiva despendida por cada técnico no âmbito do projeto e do respetivo custo pessoa-mês. A carga horária despendida no âmbito do projeto é medida em equivalente a tempo integral (ETI) sendo quantificada recorrendo à alocação do número de unidades pessoa-mês às várias atividades do projeto."]
[]
[]
[null,null,null,"Identificar os recursos humanos afetos ao projeto, designadamente a participação de pessoal técnico do promotor e das entidades externas nas diversas atividade"]
[]
[null,null,null,"Apuramento dos Custos com Pessoal \nPara a orçamentação dos custos com o pessoal técnico do promotor, contratado ou a contratar, o beneficiário pode optar pelo método dos custos reais ou simplificados.\nA - Imputação de custos reais \nNa opção por este método, em sede de candidatura, o beneficiário deve indicar a remuneração mensal média dos perfis/técnicos, tendo como referência o salário base mensal (SB) declarado para efeitos de proteção social do trabalhador, o qual pode ser acrescido dos encargos sociais obrigatórios. Considera-se salário base, o conjunto de todas as remunerações de carácter certo e permanente sujeitas a tributação fiscal e declaradas para efeitos de proteção social do trabalhador. As despesas elegíveis com pessoal técnico do promotor são determinadas em função da carga horária, prevista para cada perfil técnico, expressa em termos de n.º de pessoas-mês, e do respetivo custo pessoa-mês estabelecido de acordo com a seguinte metodologia:\ncusto pessoal mês = (SB*14)/11*nº pessoas mês\nEm que: \nSB = salário base mensal declarado para efeitos de proteção social do trabalhador, o qual pode ser acrescido dos encargos sociais obrigatórios. \nPara efeitos de orçamentação assume-se a existência de 14 remunerações anuais (o subsídio de férias e de Natal contam como remunerações adicionais, independentemente do seu pagamento por duodécimos). \nNo método dos custos reais, a determinação do custo horário é diferida para o momento da execução (cálculo \"a posteriori\") sendo aquele calculado com base na remuneração mensal auferida nos meses de trabalho efetivo no projeto. Aquando da apresentação pelo beneficiário da despesa a pagamento (pedidos de reembolso de despesas), é calculado o custo horário a aplicar ao tempo efetivamente despendido na realização das atividades do projeto (carga-horária), dividindo os custos mensais reais documentados com o trabalho pelas horas produtivas. \nComo pessoal técnico do promotor apenas são considerados os casos em que se verifique a existência de vínculo laboral, não sendo admitidas situações de prestação de serviços em regime de profissão liberal. No caso de perfis ainda a designar ou de novas contratações quando, à data da candidatura, não dispuser de elementos relativos aos perfis a contratar, preencher o quadro com dados previsionais.\n\nB Imputação de Custos Simplificados \nNa opção por este método, em sede de candidatura, o beneficiário deve identificar os mais recentes custos anuais brutos documentados com o trabalho para cada perfil/técnico interveniente no projeto. Os mais recentes custos anuais documentados têm obrigatoriamente de ter como referência um período de 12 meses consecutivos e apesar de não existir a obrigatoriedade de verificação previamente ao processamento da despesa, esta informação tem de ser auditável, ou seja, tem de existir a possibilidade dos documentos serem justificados (documentados/verificáveis) por via da contabilidade do beneficiário, de relatórios de processamento de remunerações, entre outros. \nAs despesas elegíveis com pessoal técnico do promotor são determinadas em função da carga horária, prevista para cada perfil técnico, expressa em termos de n.º de pessoas-mês, e do respetivo custo pessoa-mês estabelecido de acordo com a seguinte metodologia: \nCusto pessoal mês = (RB/11)*nº pessoas mês\nem que :\nRB = O conjunto dos últimos 12 salários base mensais acrescidos dos subsídios de férias e Natal, auferidos pelo técnico no exercício da sua atividade a favor da entidade promotora e em função do seu contrato individual de trabalho, os quais podem incluir IHT (isenção do horário de trabalho) ou diuturnidades (remunerações de carácter certo e permanente declaradas para efeitos de proteção social do trabalhador), acrescido dos encargos sociais obrigatórios.\nA metodologia de Custos Simplificados visa o cálculo, “a priori” (aquando da elaboração da candidatura) do custo unitário (taxa horária) aplicável à carga-horária apresentada nos pedidos de reembolso de despesas, calculado dividindo os mais recentes custos anuais brutos documentados com o trabalho pelas horas produtivas."]

{"sheet":"CurriculoPessTec(1)","index":30,"n_rows":93,"n_cols":10,"rows_kept":93,"cut":false,"hidden":true,"merged":[[34,5,34,28],[17,5,17,28],[19,5,19,9],[42,16,42,28],[24,5,24,28],[26,5,26,28],[28,5,28,28],[30,5,30,28],[4,2,4,28],[7,2,7,3],[11,2,11,28],[14,2,14,29],[32,5,32,28]]}
[]
[]
[null,null,"BENEFICIÁRIO:"]
[]
[null,null,{"$f":"+CAPA!C9","v":0}]
[]
[null,null,"NIF:"]
[null,null,{"$f":"+CAPA!C12","v":0}]
[]
[null,null,"SISTEMA DE INCENTIVOS:"]
[]
[null,null,{"$f":"+CAPA!C16","v":"PROCIÊNCIA"}]
[]
[]
[null,null,"Curricula dos técnicos afectos ao projecto"]
[null,null,"  "]
[]
[null,null,null,"Técnico:",null,{"$f":"+Base!Q2","v":"1 - 0 ( 0 )"}]
[]
[null,null,null,"NIF:",null,{"$f":"+Base!O2","v":0}]
[]
[]
[]
[]
[null,null,null,"Atividades:"]
[]
[]
[]
[]
[]
[]
[]
[]
[]
[]
[]
[]
[]
[null,null,null,null,null,"Sim",null,"Não"]
[]
[null,null,null,"Bolseiro:"]
[]
[null,null,null,"Vínculo à Função Pública:",null,null,null,null,null,"Caso afirmativo, que tipo de vínculo?"]
[]
[null,null,null,"Formação Académica:"]
[]
[null,null,null,"Exercício de cargo de chefia:"]
[]
[null,null,null,"Formação Académica e formação profissional:"]
[]
[]
[]
[]
[]
[]
[]
[]
[]
[]
[]
[]
[]
[]
[]
[]
[null,null,null,"Função exercida no beneficiário"]
[]
[]
[]
[]
[]
[]
[]
[]
[]
[]
[]
[]
[]
[null,null,null,"Exercício de cargo de chefia"]
[]
[]
[]
[]
[]
[]
[]
[]
[]
[]
[]
[]
[null,null,null,"Tarefas desempenhadas antes do início deste projecto e descrição sucinta dos conhecimentos e experiência passada úteis para o projecto:"]

{"sheet":"CurriculoPessTec(2)","index":31,"n_rows":91,"n_cols":10,"rows_kept":91,"cut":false,"hidden":true,"merged":[[40,16,40,28],[22,5,22,28],[24,5,24,28],[26,5,26,28],[28,5,28,28],[30,5,30,28],[32,5,32,28],[19,5,19,9],[4,2,4,28],[7,2,7,3],[11,2,11,28],[14,2,14,29],[17,5,17,28]]}
[]
[]
[null,null,"BENEFICIÁRIO:"]
[]
[null,null,{"$f":"+CAPA!C9","v":0}]
[]
[null,null,"NIF:"]
[null,null,{"$f":"+CAPA!C12","v":0}]
[]
[null,null,"SISTEMA DE INCENTIVOS:"]
[]
[null,null,{"$f":"+CAPA!C16","v":"PROCIÊNCIA"}]
[]
[]
[null,null,"Curricula dos técnicos afectos ao projecto"]
[null,null,"  "]
[]
[null,null,null,"Técnico:",null,{"$f":"+Base!Q3","v":"2 - 0 ( 0 )"}]
[]
[null,null,null,"NIF:",null,{"$f":"+Base!O3","v":0}]
[]
[]
[null,null,null,"Atividades:"]
[]
[]
[]
[]
[]
[]
[]
[]
[]
[]
[]
[]
[]
[null,null,null,null,null,"Sim",null,"Não"]
[]
[null,null,null,"Bolseiro:"]
[]
[null,null,null,"Vínculo à Função Pública:",null,null,null,null,null,"Caso afirmativo, que tipo de vínculo?"]
[]
[null,null,null,"Formação Académica:"]
[]
[null,null,null,"Exercício de cargo de chefia:"]
[]
[null,null,null,"Formação Académica e formação profissional:"]
[]
[]
[]
[]
[]
[]
[]
[]
[]
[]
[]
[]
[]
[]
[]
[]
[null,null,null,"Função exercida no beneficiário"]
[]
[]
[]
[]
[]
[]
[]
[]
[]
[]
[]
[]
[]
[null,null,null,"Exercício de cargo de chefia"]
[]
[]
[]
[]
[]
[]
[]
[]
[]
[]
[]
[]
[null,null,null,"Tarefas desempenhadas antes do início deste projecto e descrição sucinta dos conhecimentos e experiência passada úteis para o projecto:"]

{"sheet":"CurriculoPessTec(3)","index":32,"n_rows":91,"n_cols":10,"rows_kept":91,"cut":false,"hidden":true,"merged":[[40,16,40,28],[22,5,22,28],[24,5,24,28],[26,5,26,28],[28,5,28,28],[30,5,30,28],[32,5,32,28],[19,5,19,9],[4,2,4,28],[7,2,7,3],[11,2,11,28],[14,2,14,29],[17,5,17,28]]}
[]
[]
[null,null,"BENEFICIÁRIO:"]
[]
[null,null,{"$f":"+CAPA!C9","v":0}]
[]
[null,null,"NIF:"]
[null,null,{"$f":"+CAPA!C12","v":0}]
[]
[null,null,"SISTEMA DE INCENTIVOS:"]
[]
[null,null,{"$f":"+CAPA!C16","v":"PROCIÊNCIA"}]
[]
[]
[null,null,"Curricula dos técnicos afectos ao projecto"]
[null,null,"  "]
[]
[null,null,null,"Técnico:",null,{"$f":"+Base!Q4","v":"3 - 0 ( 0 )"}]
[]
[null,null,null,"NIF:",null,{"$f":"+Base!O4","v":0}]
[]
[]
[null,null,null,"Atividades:"]
[]
[]
[]
[]
[]
[]
[]
[]
[]
[]
[]
[]
[]
[null,null,null,null,null,"Sim",null,"Não"]
[]
[null,null,null,"Bolseiro:"]
[]
[null,null,null,"Vínculo à Função Pública:",null,null,null,null,null,"Caso afirmativo, que tipo de vínculo?"]
[]
[null,null,null,"Formação Académica:"]
[]
[null,null,null,"Exercício de cargo de chefia:"]
[]
[null,null,null,"Formação Académica e formação profissional:"]
[]
[]
[]
[]
[]
[]
[]
[]
[]
[]
[]
[]
[]
[]
[]
[]
[null,null,null,"Função exercida no beneficiário"]
[]
[]
[]
[]
[]
[]
[]
[]
[]
[]
[]
[]
[]
[null,null,null,"Exercício de cargo de chefia"]
[]
[]
[]
[]
[]
[]
[]
[]
[]
[]
[]
[]
[null,null,null,"Tarefas desempenhadas antes do início deste projecto e descrição sucinta dos conhecimentos e experiência passada úteis para o projecto:"]

{"sheet":"CurriculoPessTec(4)","index":33,"n_rows":91,"n_cols":10,"rows_kept":91,"cut":false,"hidden":true,"merged":[[40,16,40,28],[22,5,22,28],[24,5,24,28],[26,5,26,28],[28,5,28,28],[30,5,30,28],[32,5,32,28],[19,5,19,9],[4,2,4,28],[7,2,7,3],[11,2,11,28],[14,2,14,29],[17,5,17,28]]}
[]
[]
[null,null,"BENEFICIÁRIO:"]
[]
[null,null,{"$f":"+CAPA!C9","v":0}]
[]
[null,null,"NIF:"]
[null,null,{"$f":"+CAPA!C12","v":0}]
[]
[null,null,"SISTEMA DE INCENTIVOS:"]
[]
[null,null,{"$f":"+CAPA!C16","v":"PROCIÊNCIA"}]
[]
[]
[null,null,"Curricula dos técnicos afectos ao projecto"]
[null,null,"  "]
[]
[null,null,null,"Técnico:",null,{"$f":"+Base!Q5","v":"4 - 0 ( 0 )"}]
[]
[null,null,null,"NIF:",null,{"$f":"+Base!O5","v":0}]
[]
[]
[null,null,null,"Atividades:"]
[]
[]
[]
[]
[]
[]
[]
[]
[]
[]
[]
[]
[]
[null,null,null,null,null,"Sim",null,"Não"]
[]
[null,null,null,"Bolseiro:"]
[]
[null,null,null,"Vínculo à Função Pública:",null,null,null,null,null,"Caso afirmativo, que tipo de vínculo?"]
[]
[null,null,null,"Formação Académica:"]
[]
[null,null,null,"Exercício de cargo de chefia:"]
[]
[null,null,null,"Formação Académica e formação profissional:"]
[]
[]
[]
[]
[]
[]
[]
[]
[]
[]
[]
[]
[]
[]
[]
[]
[null,null,null,"Função exercida no beneficiário"]
[]
[]
[]
[]
[]
[]
[]
[]
[]
[]
[]
[]
[]
[null,null,null,"Exercício de cargo de chefia"]
[]
[]
[]
[]
[]
[]
[]
[]
[]
[]
[]
[]
[null,null,null,"Tarefas desempenhadas antes do início deste projecto e descrição sucinta dos conhecimentos e experiência passada úteis para o projecto:"]

{"sheet":"CurriculoPessTec(5)","index":34,"n_rows":91,"n_cols":10,"rows_kept":91,"cut":false,"hidden":true,"merged":[[40,16,40,28],[22,5,22,28],[24,5,24,28],[26,5,26,28],[28,5,28,28],[30,5,30,28],[32,5,32,28],[19,5,19,9],[4,2,4,28],[7,2,7,3],[11,2,11,28],[14,2,14,29],[17,5,17,28]]}
[]
[]
[null,null,"BENEFICIÁRIO:"]
[]
[null,null,{"$f":"+CAPA!C9","v":0}]
[]
[null,null,"NIF:"]
[null,null,{"$f":"+CAPA!C12","v":0}]
[]
[null,null,"SISTEMA DE INCENTIVOS:"]
[]
[null,null,{"$f":"+CAPA!C16","v":"PROCIÊNCIA"}]
[]
[]
[null,null,"Curricula dos técnicos afectos ao projecto"]
[null,null,"  "]
[]
[null,null,null,"Técnico:",null,{"$f":"+Base!Q6","v":"5 - 0 ( 0 )"}]
[]
[null,null,null,"NIF:",null,{"$f":"+Base!O6","v":0}]
[]
[]
[null,null,null,"Atividades:"]
[]
[]
[]
[]
[]
[]
[]
[]
[]
[]
[]
[]
[]
[null,null,null,null,null,"Sim",null,"Não"]
[]
[null,null,null,"Bolseiro:"]
[]
[null,null,null,"Vínculo à Função Pública:",null,null,null,null,null,"Caso afirmativo, que tipo de vínculo?"]
[]
[null,null,null,"Formação Académica:"]
[]
[null,null,null,"Exercício de cargo de chefia:"]
[]
[null,null,null,"Formação Académica e formação profissional:"]
[]
[]
[]
[]
[]
[]
[]
[]
[]
[]
[]
[]
[]
[]
[]
[]
[null,null,null,"Função exercida no beneficiário"]
[]
[]
[]
[]
[]
[]
[]
[]
[]
[]
[]
[]
[]
[null,null,null,"Exercício de cargo de chefia"]
[]
[]
[]
[]
[]
[]
[]
[]
[]
[]
[]
[]
[null,null,null,"Tarefas desempenhadas antes do início deste projecto e descrição sucinta dos conhecimentos e experiência passada úteis para o projecto:"]

{"sheet":"CurriculoPessTec(6)","index":35,"n_rows":91,"n_cols":10,"rows_kept":91,"cut":false,"hidden":true,"merged":[[40,16,40,28],[22,5,22,28],[24,5,24,28],[26,5,26,28],[28,5,28,28],[30,5,30,28],[32,5,32,28],[19,5,19,9],[4,2,4,28],[7,2,7,3],[11,2,11,28],[14,2,14,29],[17,5,17,28]]}
[]
[]
[null,null,"BENEFICIÁRIO:"]
[]
[null,null,{"$f":"+CAPA!C9","v":0}]
[]
[null,null,"NIF:"]
[null,null,{"$f":"+CAPA!C12","v":0}]
[]
[null,null,"SISTEMA DE INCENTIVOS:"]
[]
[null,null,{"$f":"+CAPA!C16","v":"PROCIÊNCIA"}]
[]
[]
[null,null,"Curricula dos técnicos afectos ao projecto"]
[null,null,"  "]
[]
[null,null,null,"Técnico:",null,{"$f":"+Base!Q7","v":"6 - 0 ( 0 )"}]
[]
[null,null,null,"NIF:",null,{"$f":"+Base!O7","v":0}]
[]
[]
[null,null,null,"Atividades:"]
[]
[]
[]
[]
[]
[]
[]
[]
[]
[]
[]
[]
[]
[null,null,null,null,null,"Sim",null,"Não"]
[]
[null,null,null,"Bolseiro:"]
[]
[null,null,null,"Vínculo à Função Pública:",null,null,null,null,null,"Caso afirmativo, que tipo de vínculo?"]
[]
[null,null,null,"Formação Académica:"]
[]
[null,null,null,"Exercício de cargo de chefia:"]
[]
[null,null,null,"Formação Académica e formação profissional:"]
[]
[]
[]
[]
[]
[]
[]
[]
[]
[]
[]
[]
[]
[]
[]
[]
[null,null,null,"Função exercida no beneficiário"]
[]
[]
[]
[]
[]
[]
[]
[]
[]
[]
[]
[]
[]
[null,null,null,"Exercício de cargo de chefia"]
[]
[]
[]
[]
[]
[]
[]
[]
[]
[]
[]
[]
[null,null,null,"Tarefas desempenhadas antes do início deste projecto e descrição sucinta dos conhecimentos e experiência passada úteis para o projecto:"]

{"sheet":"CurriculoPessTec(7)","index":36,"n_rows":91,"n_cols":10,"rows_kept":91,"cut":false,"hidden":true,"merged":[[40,16,40,28],[22,5,22,28],[24,5,24,28],[26,5,26,28],[28,5,28,28],[30,5,30,28],[32,5,32,28],[19,5,19,9],[4,2,4,28],[7,2,7,3],[11,2,11,28],[14,2,14,29],[17,5,17,28]]}
[]
[]
[null,null,"BENEFICIÁRIO:"]
[]
[null,null,{"$f":"+CAPA!C9","v":0}]
[]
[null,null,"NIF:"]
[null,null,{"$f":"+CAPA!C12","v":0}]
[]
[null,null,"SISTEMA DE INCENTIVOS:"]
[]
[null,null,{"$f":"+CAPA!C16","v":"PROCIÊNCIA"}]
[]
[]
[null,null,"Curricula dos técnicos afectos ao projecto"]
[null,null,"  "]
[]
[null,null,null,"Técnico:",null,{"$f":"+Base!Q8","v":"7 - 0 ( 0 )"}]
[]
[null,null,null,"NIF:",null,{"$f":"+Base!O8","v":0}]
[]
[]
[null,null,null,"Atividades:"]
[]
[]
[]
[]
[]
[]
[]
[]
[]
[]
[]
[]
[]
[null,null,null,null,null,"Sim",null,"Não"]
[]
[null,null,null,"Bolseiro:"]
[]
[null,null,null,"Vínculo à Função Pública:",null,null,null,null,null,"Caso afirmativo, que tipo de vínculo?"]
[]
[null,null,null,"Formação Académica:"]
[]
[null,null,null,"Exercício de cargo de chefia:"]
[]
[null,null,null,"Formação Académica e formação profissional:"]
[]
[]
[]
[]
[]
[]
[]
[]
[]
[]
[]
[]
[]
[]
[]
[]
[null,null,null,"Função exercida no beneficiário"]
[]
[]
[]
[]
[]
[]
[]
[]
[]
[]
[]
[]
[]
[null,null,null,"Exercício de cargo de chefia"]
[]
[]
[]
[]
[]
[]
[]
[]
[]
[]
[]
[]
[null,null,null,"Tarefas desempenhadas antes do início deste projecto e descrição sucinta dos conhecimentos e experiência passada úteis para o projecto:"]

{"sheet":"CurriculoPessTec(8)","index":37,"n_rows":91,"n_cols":10,"rows_kept":91,"cut":false,"hidden":true,"merged":[[40,16,40,28],[22,5,22,28],[24,5,24,28],[26,5,26,28],[28,5,28,28],[30,5,30,28],[32,5,32,28],[19,5,19,9],[4,2,4,28],[7,2,7,3],[11,2,11,28],[14,2,14,29],[17,5,17,28]]}
[]
[]
[null,null,"BENEFICIÁRIO:"]
[]
[null,null,{"$f":"+CAPA!C9","v":0}]
[]
[null,null,"NIF:"]
[null,null,{"$f":"+CAPA!C12","v":0}]
[]
[null,null,"SISTEMA DE INCENTIVOS:"]
[]
[null,null,{"$f":"+CAPA!C16","v":"PROCIÊNCIA"}]
[]
[]
[null,null,"Curricula dos técnicos afectos ao projecto"]
[null,null,"  "]
[]
[null,null,null,"Técnico:",null,{"$f":"+Base!Q9","v":"8 - 0 ( 0 )"}]
[]
[null,null,null,"NIF:",null,{"$f":"+Base!O9","v":0}]
[]
[]
[null,null,null,"Atividades:"]
[]
[]
[]
[]
[]
[]
[]
[]
[]
[]
[]
[]
[]
[null,null,null,null,null,"Sim",null,"Não"]
[]
[null,null,null,"Bolseiro:"]
[]
[null,null,null,"Vínculo à Função Pública:",null,null,null,null,null,"Caso afirmativo, que tipo de vínculo?"]
[]
[null,null,null,"Formação Académica:"]
[]
[null,null,null,"Exercício de cargo de chefia:"]
[]
[null,null,null,"Formação Académica e formação profissional:"]
[]
[]
[]
[]
[]
[]
[]
[]
[]
[]
[]
[]
[]
[]
[]
[]
[null,null,null,"Função exercida no beneficiário"]
[]
[]
[]
[]
[]
[]
[]
[]
[]
[]
[]
[]
[]
[null,null,null,"Exercício de cargo de chefia"]
[]
[]
[]
[]
[]
[]
[]
[]
[]
[]
[]
[]
[null,null,null,"Tarefas desempenhadas antes do início deste projecto e descrição sucinta dos conhecimentos e experiência passada úteis para o projecto:"]

{"sheet":"CurriculoPessTec(9)","index":38,"n_rows":91,"n_cols":10,"rows_kept":91,"cut":false,"hidden":true,"merged":[[40,16,40,28],[22,5,22,28],[24,5,24,28],[26,5,26,28],[28,5,28,28],[30,5,30,28],[32,5,32,28],[19,5,19,9],[4,2,4,28],[7,2,7,3],[11,2,11,28],[14,2,14,29],[17,5,17,28]]}
[]
[]
[null,null,"BENEFICIÁRIO:"]
[]
[null,null,{"$f":"+CAPA!C9","v":0}]
[]
[null,null,"NIF:"]
[null,null,{"$f":"+CAPA!C12","v":0}]
[]
[null,null,"SISTEMA DE INCENTIVOS:"]
[]
[null,null,{"$f":"+CAPA!C16","v":"PROCIÊNCIA"}]
[]
[]
[null,null,"Curricula dos técnicos afectos ao projecto"]
[null,null,"  "]
[]
[null,null,null,"Técnico:",null,{"$f":"+Base!Q10","v":"9 - 0 ( 0 )"}]
[]
[null,null,null,"NIF:",null,{"$f":"+Base!O10","v":0}]
[]
[]
[null,null,null,"Atividades:"]
[]
[]
[]
[]
[]
[]
[]
[]
[]
[]
[]
[]
[]
[null,null,null,null,null,"Sim",null,"Não"]
[]
[null,null,null,"Bolseiro:"]
[]
[null,null,null,"Vínculo à Função Pública:",null,null,null,null,null,"Caso afirmativo, que tipo de vínculo?"]
[]
[null,null,null,"Formação Académica:"]
[]
[null,null,null,"Exercício de cargo de chefia:"]
[]
[null,null,null,"Formação Académica e formação profissional:"]
[]
[]
[]
[]
[]
[]
[]
[]
[]
[]
[]
[]
[]
[]
[]
[]
[null,null,null,"Função exercida no beneficiário"]
[]
[]
[]
[]
[]
[]
[]
[]
[]
[]
[]
[]
[]
[null,null,null,"Exercício de cargo de chefia"]
[]
[]
[]
[]
[]
[]
[]
[]
[]
[]
[]
[]
[null,null,null,"Tarefas desempenhadas antes do início deste projecto e descrição sucinta dos conhecimentos e experiência passada úteis para o projecto:"]

{"sheet":"CurriculoPessTec(10)","index":39,"n_rows":91,"n_cols":10,"rows_kept":91,"cut":false,"hidden":true,"merged":[[40,16,40,28],[22,5,22,28],[24,5,24,28],[26,5,26,28],[28,5,28,28],[30,5,30,28],[32,5,32,28],[19,5,19,9],[4,2,4,28],[7,2,7,3],[11,2,11,28],[14,2,14,29],[17,5,17,28]]}
[]
[]
[null,null,"BENEFICIÁRIO:"]
[]
[null,null,{"$f":"+CAPA!C9","v":0}]
[]
[null,null,"NIF:"]
[null,null,{"$f":"+CAPA!C12","v":0}]
[]
[null,null,"SISTEMA DE INCENTIVOS:"]
[]
[null,null,{"$f":"+CAPA!C16","v":"PROCIÊNCIA"}]
[]
[]
[null,null,"Curricula dos técnicos afectos ao projecto"]
[null,null,"  "]
[]
[null,null,null,"Técnico:",null,{"$f":"+Base!Q11","v":"10 - 0 ( 0 )"}]
[]
[null,null,null,"NIF:",null,{"$f":"+Base!O11","v":0}]
[]
[]
[null,null,null,"Atividades:"]
[]
[]
[]
[]
[]
[]
[]
[]
[]
[]
[]
[]
[]
[null,null,null,null,null,"Sim",null,"Não"]
[]
[null,null,null,"Bolseiro:"]
[]
[null,null,null,"Vínculo à Função Pública:",null,null,null,null,null,"Caso afirmativo, que tipo de vínculo?"]
[]
[null,null,null,"Formação Académica:"]
[]
[null,null,null,"Exercício de cargo de chefia:"]
[]
[null,null,null,"Formação Académica e formação profissional:"]
[]
[]
[]
[]
[]
[]
[]
[]
[]
[]
[]
[]
[]
[]
[]
[]
[null,null,null,"Função exercida no beneficiário"]
[]
[]
[]
[]
[]
[]
[]
[]
[]
[]
[]
[]
[]
[null,null,null,"Exercício de cargo de chefia"]
[]
[]
[]
[]
[]
[]
[]
[]
[]
[]
[]
[]
[null,null,null,"Tarefas desempenhadas antes do início deste projecto e descrição sucinta dos conhecimentos e experiência passada úteis para o projecto:"]

{"sheet":"CurriculoPessTec(11)","index":40,"n_rows":91,"n_cols":10,"rows_kept":91,"cut":false,"hidden":true,"merged":[[40,16,40,28],[22,5,22,28],[24,5,24,28],[26,5,26,28],[28,5,28,28],[30,5,30,28],[32,5,32,28],[19,5,19,9],[4,2,4,28],[7,2,7,3],[11,2,11,28],[14,2,14,29],[17,5,17,28]]}
[]
[]
[null,null,"BENEFICIÁRIO:"]
[]
[null,null,{"$f":"+CAPA!C9","v":0}]
[]
[null,null,"NIF:"]
[null,null,{"$f":"+CAPA!C12","v":0}]
[]
[null,null,"SISTEMA DE INCENTIVOS:"]
[]
[null,null,{"$f":"+CAPA!C16","v":"PROCIÊNCIA"}]
[]
[]
[null,null,"Curricula dos técnicos afectos ao projecto"]
[null,null,"  "]
[]
[null,null,null,"Técnico:",null,{"$f":"+Base!Q12","v":"11 - 0 ( 0 )"}]
[]
[null,null,null,"NIF:",null,{"$f":"+Base!O12","v":0}]
[]
[]
[null,null,null,"Atividades:"]
[]
[]
[]
[]
[]
[]
[]
[]
[]
[]
[]
[]
[]
[null,null,null,null,null,"Sim",null,"Não"]
[]
[null,null,null,"Bolseiro:"]
[]
[null,null,null,"Vínculo à Função Pública:",null,null,null,null,null,"Caso afirmativo, que tipo de vínculo?"]
[]
[null,null,null,"Formação Académica:"]
[]
[null,null,null,"Exercício de cargo de chefia:"]
[]
[null,null,null,"Formação Académica e formação profissional:"]
[]
[]
[]
[]
[]
[]
[]
[]
[]
[]
[]
[]
[]
[]
[]
[]
[null,null,null,"Função exercida no beneficiário"]
[]
[]
[]
[]
[]
[]
[]
[]
[]
[]
[]
[]
[]
[null,null,null,"Exercício de cargo de chefia"]
[]
[]
[]
[]
[]
[]
[]
[]
[]
[]
[]
[]
[null,null,null,"Tarefas desempenhadas antes do início deste projecto e descrição sucinta dos conhecimentos e experiência passada úteis para o projecto:"]

{"sheet":"CurriculoPessTec(12)","index":41,"n_rows":91,"n_cols":10,"rows_kept":91,"cut":false,"hidden":true,"merged":[[40,16,40,28],[22,5,22,28],[24,5,24,28],[26,5,26,28],[28,5,28,28],[30,5,30,28],[32,5,32,28],[19,5,19,9],[4,2,4,28],[7,2,7,3],[11,2,11,28],[14,2,14,29],[17,5,17,28]]}
[]
[]
[null,null,"BENEFICIÁRIO:"]
[]
[null,null,{"$f":"+CAPA!C9","v":0}]
[]
[null,null,"NIF:"]
[null,null,{"$f":"+CAPA!C12","v":0}]
[]
[null,null,"SISTEMA DE INCENTIVOS:"]
[]
[null,null,{"$f":"+CAPA!C16","v":"PROCIÊNCIA"}]
[]
[]
[null,null,"Curricula dos técnicos afectos ao projecto"]
[null,null,"  "]
[]
[null,null,null,"Técnico:",null,{"$f":"+Base!Q13","v":"12 - 0 ( 0 )"}]
[]
[null,null,null,"NIF:",null,{"$f":"+Base!O13","v":0}]
[]
[]
[null,null,null,"Atividades:"]
[]
[]
[]
[]
[]
[]
[]
[]
[]
[]
[]
[]
[]
[null,null,null,null,null,"Sim",null,"Não"]
[]
[null,null,null,"Bolseiro:"]
[]
[null,null,null,"Vínculo à Função Pública:",null,null,null,null,null,"Caso afirmativo, que tipo de vínculo?"]
[]
[null,null,null,"Formação Académica:"]
[]
[null,null,null,"Exercício de cargo de chefia:"]
[]
[null,null,null,"Formação Académica e formação profissional:"]
[]
[]
[]
[]
[]
[]
[]
[]
[]
[]
[]
[]
[]
[]
[]
[]
[null,null,null,"Função exercida no beneficiário"]
[]
[]
[]
[]
[]
[]
[]
[]
[]
[]
[]
[]
[]
[null,null,null,"Exercício de cargo de chefia"]
[]
[]
[]
[]
[]
[]
[]
[]
[]
[]
[]
[]
[null,null,null,"Tarefas desempenhadas antes do início deste projecto e descrição sucinta dos conhecimentos e experiência passada úteis para o projecto:"]

{"sheet":"CurriculoPessTec(13)","index":42,"n_rows":91,"n_cols":10,"rows_kept":91,"cut":false,"hidden":true,"merged":[[40,16,40,28],[22,5,22,28],[24,5,24,28],[26,5,26,28],[28,5,28,28],[30,5,30,28],[32,5,32,28],[19,5,19,9],[4,2,4,28],[7,2,7,3],[11,2,11,28],[14,2,14,29],[17,5,17,28]]}
[]
[]
[null,null,"BENEFICIÁRIO:"]
[]
[null,null,{"$f":"+CAPA!C9","v":0}]
[]
[null,null,"NIF:"]
[null,null,{"$f":"+CAPA!C12","v":0}]
[]
[null,null,"SISTEMA DE INCENTIVOS:"]
[]
[null,null,{"$f":"+CAPA!C16","v":"PROCIÊNCIA"}]
[]
[]
[null,null,"Curricula dos técnicos afectos ao projecto"]
[null,null,"  "]
[]
[null,null,null,"Técnico:",null,{"$f":"+Base!Q14","v":"13 - 0 ( 0 )"}]
[]
[null,null,null,"NIF:",null,{"$f":"+Base!O14","v":0}]
[]
[]
[null,null,null,"Atividades:"]
[]
[]
[]
[]
[]
[]
[]
[]
[]
[]
[]
[]
[]
[null,null,null,null,null,"Sim",null,"Não"]
[]
[null,null,null,"Bolseiro:"]
[]
[null,null,null,"Vínculo à Função Pública:",null,null,null,null,null,"Caso afirmativo, que tipo de vínculo?"]
[]
[null,null,null,"Formação Académica:"]
[]
[null,null,null,"Exercício de cargo de chefia:"]
[]
[null,null,null,"Formação Académica e formação profissional:"]
[]
[]
[]
[]
[]
[]
[]
[]
[]
[]
[]
[]
[]
[]
[]
[]
[null,null,null,"Função exercida no beneficiário"]
[]
[]
[]
[]
[]
[]
[]
[]
[]
[]
[]
[]
[]
[null,null,null,"Exercício de cargo de chefia"]
[]
[]
[]
[]
[]
[]
[]
[]
[]
[]
[]
[]
[null,null,null,"Tarefas desempenhadas antes do início deste projecto e descrição sucinta dos conhecimentos e experiência passada úteis para o projecto:"]

{"sheet":"CurriculoPessTec(14)","index":43,"n_rows":91,"n_cols":10,"rows_kept":91,"cut":false,"hidden":true,"merged":[[40,16,40,28],[22,5,22,28],[24,5,24,28],[26,5,26,28],[28,5,28,28],[30,5,30,28],[32,5,32,28],[19,5,19,9],[4,2,4,28],[7,2,7,3],[11,2,11,28],[14,2,14,29],[17,5,17,28]]}
[]
[]
[null,null,"BENEFICIÁRIO:"]
[]
[null,null,{"$f":"+CAPA!C9","v":0}]
[]
[null,null,"NIF:"]
[null,null,{"$f":"+CAPA!C12","v":0}]
[]
[null,null,"SISTEMA DE INCENTIVOS:"]
[]
[null,null,{"$f":"+CAPA!C16","v":"PROCIÊNCIA"}]
[]
[]
[null,null,"Curricula dos técnicos afectos ao projecto"]
[null,null,"  "]
[]
[null,null,null,"Técnico:",null,{"$f":"+Base!Q15","v":"14 - 0 ( 0 )"}]
[]
[null,null,null,"NIF:",null,{"$f":"+Base!O15","v":0}]
[]
[]
[null,null,null,"Atividades:"]
[]
[]
[]
[]
[]
[]
[]
[]
[]
[]
[]
[]
[]
[null,null,null,null,null,"Sim",null,"Não"]
[]
[null,null,null,"Bolseiro:"]
[]
[null,null,null,"Vínculo à Função Pública:",null,null,null,null,null,"Caso afirmativo, que tipo de vínculo?"]
[]
[null,null,null,"Formação Académica:"]
[]
[null,null,null,"Exercício de cargo de chefia:"]
[]
[null,null,null,"Formação Académica e formação profissional:"]
[]
[]
[]
[]
[]
[]
[]
[]
[]
[]
[]
[]
[]
[]
[]
[]
[null,null,null,"Função exercida no beneficiário"]
[]
[]
[]
[]
[]
[]
[]
[]
[]
[]
[]
[]
[]
[null,null,null,"Exercício de cargo de chefia"]
[]
[]
[]
[]
[]
[]
[]
[]
[]
[]
[]
[]
[null,null,null,"Tarefas desempenhadas antes do início deste projecto e descrição sucinta dos conhecimentos e experiência passada úteis para o projecto:"]

{"sheet":"CurriculoPessTec(15)","index":44,"n_rows":91,"n_cols":10,"rows_kept":91,"cut":false,"hidden":true,"merged":[[40,16,40,28],[22,5,22,28],[24,5,24,28],[26,5,26,28],[28,5,28,28],[30,5,30,28],[32,5,32,28],[19,5,19,9],[4,2,4,28],[7,2,7,3],[11,2,11,28],[14,2,14,29],[17,5,17,28]]}
[]
[]
[null,null,"BENEFICIÁRIO:"]
[]
[null,null,{"$f":"+CAPA!C9","v":0}]
[]
[null,null,"NIF:"]
[null,null,{"$f":"+CAPA!C12","v":0}]
[]
[null,null,"SISTEMA DE INCENTIVOS:"]
[]
[null,null,{"$f":"+CAPA!C16","v":"PROCIÊNCIA"}]
[]
[]
[null,null,"Curricula dos técnicos afectos ao projecto"]
[null,null,"  "]
[]
[null,null,null,"Técnico:",null,{"$f":"+Base!Q16","v":"15 - 0 ( 0 )"}]
[]
[null,null,null,"NIF:",null,{"$f":"+Base!O16","v":0}]
[]
[]
[null,null,null,"Atividades:"]
[]
[]
[]
[]
[]
[]
[]
[]
[]
[]
[]
[]
[]
[null,null,null,null,null,"Sim",null,"Não"]
[]
[null,null,null,"Bolseiro:"]
[]
[null,null,null,"Vínculo à Função Pública:",null,null,null,null,null,"Caso afirmativo, que tipo de vínculo?"]
[]
[null,null,null,"Formação Académica:"]
[]
[null,null,null,"Exercício de cargo de chefia:"]
[]
[null,null,null,"Formação Académica e formação profissional:"]
[]
[]
[]
[]
[]
[]
[]
[]
[]
[]
[]
[]
[]
[]
[]
[]
[null,null,null,"Função exercida no beneficiário"]
[]
[]
[]
[]
[]
[]
[]
[]
[]
[]
[]
[]
[]
[null,null,null,"Exercício de cargo de chefia"]
[]
[]
[]
[]
[]
[]
[]
[]
[]
[]
[]
[]
[null,null,null,"Tarefas desempenhadas antes do início deste projecto e descrição sucinta dos conhecimentos e experiência passada úteis para o projecto:"]

{"sheet":"CurriculoPessTec(16)","index":45,"n_rows":91,"n_cols":10,"rows_kept":91,"cut":false,"hidden":true,"merged":[[40,16,40,28],[22,5,22,28],[24,5,24,28],[26,5,26,28],[28,5,28,28],[30,5,30,28],[32,5,32,28],[19,5,19,9],[4,2,4,28],[7,2,7,3],[11,2,11,28],[14,2,14,29],[17,5,17,28]]}
[]
[]
[null,null,"BENEFICIÁRIO:"]
[]
[null,null,{"$f":"+CAPA!C9","v":0}]
[]
[null,null,"NIF:"]
[null,null,{"$f":"+CAPA!C12","v":0}]
[]
[null,null,"SISTEMA DE INCENTIVOS:"]
[]
[null,null,{"$f":"+CAPA!C16","v":"PROCIÊNCIA"}]
[]
[]
[null,null,"Curricula dos técnicos afectos ao projecto"]
[null,null,"  "]
[]
[null,null,null,"Técnico:",null,{"$f":"+Base!Q17","v":"16 - 0 ( 0 )"}]
[]
[null,null,null,"NIF:",null,{"$f":"+Base!O17","v":0}]
[]
[]
[null,null,null,"Atividades:"]
[]
[]
[]
[]
[]
[]
[]
[]
[]
[]
[]
[]
[]
[null,null,null,null,null,"Sim",null,"Não"]
[]
[null,null,null,"Bolseiro:"]
[]
[null,null,null,"Vínculo à Função Pública:",null,null,null,null,null,"Caso afirmativo, que tipo de vínculo?"]
[]
[null,null,null,"Formação Académica:"]
[]
[null,null,null,"Exercício de cargo de chefia:"]
[]
[null,null,null,"Formação Académica e formação profissional:"]
[]
[]
[]
[]
[]
[]
[]
[]
[]
[]
[]
[]
[]
[]
[]
[]
[null,null,null,"Função exercida no beneficiário"]
[]
[]
[]
[]
[]
[]
[]
[]
[]
[]
[]
[]
[]
[null,null,null,"Exercício de cargo de chefia"]
[]
[]
[]
[]
[]
[]
[]
[]
[]
[]
[]
[]
[null,null,null,"Tarefas desempenhadas antes do início deste projecto e descrição sucinta dos conhecimentos e experiência passada úteis para o projecto:"]

{"sheet":"CurriculoPessTec(17)","index":46,"n_rows":91,"n_cols":10,"rows_kept":91,"cut":false,"hidden":true,"merged":[[40,16,40,28],[22,5,22,28],[24,5,24,28],[26,5,26,28],[28,5,28,28],[30,5,30,28],[32,5,32,28],[19,5,19,9],[4,2,4,28],[7,2,7,3],[11,2,11,28],[14,2,14,29],[17,5,17,28]]}
[]
[]
[null,null,"BENEFICIÁRIO:"]
[]
[null,null,{"$f":"+CAPA!C9","v":0}]
[]
[null,null,"NIF:"]
[null,null,{"$f":"+CAPA!C12","v":0}]
[]
[null,null,"SISTEMA DE INCENTIVOS:"]
[]
[null,null,{"$f":"+CAPA!C16","v":"PROCIÊNCIA"}]
[]
[]
[null,null,"Curricula dos técnicos afectos ao projecto"]
[null,null,"  "]
[]
[null,null,null,"Técnico:",null,{"$f":"+Base!Q18","v":"17 - 0 ( 0 )"}]
[]
[null,null,null,"NIF:",null,{"$f":"+Base!O18","v":0}]
[]
[]
[null,null,null,"Atividades:"]
[]
[]
[]
[]
[]
[]
[]
[]
[]
[]
[]
[]
[]
[null,null,null,null,null,"Sim",null,"Não"]
[]
[null,null,null,"Bolseiro:"]
[]
[null,null,null,"Vínculo à Função Pública:",null,null,null,null,null,"Caso afirmativo, que tipo de vínculo?"]
[]
[null,null,null,"Formação Académica:"]
[]
[null,null,null,"Exercício de cargo de chefia:"]
[]
[null,null,null,"Formação Académica e formação profissional:"]
[]
[]
[]
[]
[]
[]
[]
[]
[]
[]
[]
[]
[]
[]
[]
[]
[null,null,null,"Função exercida no beneficiário"]
[]
[]
[]
[]
[]
[]
[]
[]
[]
[]
[]
[]
[]
[null,null,null,"Exercício de cargo de chefia"]
[]
[]
[]
[]
[]
[]
[]
[]
[]
[]
[]
[]
[null,null,null,"Tarefas desempenhadas antes do início deste projecto e descrição sucinta dos conhecimentos e experiência passada úteis para o projecto:"]

{"sheet":"CurriculoPessTec(18)","index":47,"n_rows":91,"n_cols":10,"rows_kept":91,"cut":false,"hidden":true,"merged":[[40,16,40,28],[22,5,22,28],[24,5,24,28],[26,5,26,28],[28,5,28,28],[30,5,30,28],[32,5,32,28],[19,5,19,9],[4,2,4,28],[7,2,7,3],[11,2,11,28],[14,2,14,29],[17,5,17,28]]}
[]
[]
[null,null,"BENEFICIÁRIO:"]
[]
[null,null,{"$f":"+CAPA!C9","v":0}]
[]
[null,null,"NIF:"]
[null,null,{"$f":"+CAPA!C12","v":0}]
[]
[null,null,"SISTEMA DE INCENTIVOS:"]
[]
[null,null,{"$f":"+CAPA!C16","v":"PROCIÊNCIA"}]
[]
[]
[null,null,"Curricula dos técnicos afectos ao projecto"]
[null,null,"  "]
[]
[null,null,null,"Técnico:",null,{"$f":"+Base!Q19","v":"18 - 0 ( 0 )"}]
[]
[null,null,null,"NIF:",null,{"$f":"+Base!O19","v":0}]
[]
[]
[null,null,null,"Atividades:"]
[]
[]
[]
[]
[]
[]
[]
[]
[]
[]
[]
[]
[]
[null,null,null,null,null,"Sim",null,"Não"]
[]
[null,null,null,"Bolseiro:"]
[]
[null,null,null,"Vínculo à Função Pública:",null,null,null,null,null,"Caso afirmativo, que tipo de vínculo?"]
[]
[null,null,null,"Formação Académica:"]
[]
[null,null,null,"Exercício de cargo de chefia:"]
[]
[null,null,null,"Formação Académica e formação profissional:"]
[]
[]
[]
[]
[]
[]
[]
[]
[]
[]
[]
[]
[]
[]
[]
[]
[null,null,null,"Função exercida no beneficiário"]
[]
[]
[]
[]
[]
[]
[]
[]
[]
[]
[]
[]
[]
[null,null,null,"Exercício de cargo de chefia"]
[]
[]
[]
[]
[]
[]
[]
[]
[]
[]
[]
[]
[null,null,null,"Tarefas desempenhadas antes do início deste projecto e descrição sucinta dos conhecimentos e experiência passada úteis para o projecto:"]

{"sheet":"CurriculoPessTec(19)","index":48,"n_rows":91,"n_cols":10,"rows_kept":91,"cut":false,"hidden":true,"merged":[[40,16,40,28],[22,5,22,28],[24,5,24,28],[26,5,26,28],[28,5,28,28],[30,5,30,28],[32,5,32,28],[19,5,19,9],[4,2,4,28],[7,2,7,3],[11,2,11,28],[14,2,14,29],[17,5,17,28]]}
[]
[]
[null,null,"BENEFICIÁRIO:"]
[]
[null,null,{"$f":"+CAPA!C9","v":0}]
[]
[null,null,"NIF:"]
[null,null,{"$f":"+CAPA!C12","v":0}]
[]
[null,null,"SISTEMA DE INCENTIVOS:"]
[]
[null,null,{"$f":"+CAPA!C16","v":"PROCIÊNCIA"}]
[]
[]
[null,null,"Curricula dos técnicos afectos ao projecto"]
[null,null,"  "]
[]
[null,null,null,"Técnico:",null,{"$f":"+Base!Q20","v":"19 - 0 ( 0 )"}]
[]
[null,null,null,"NIF:",null,{"$f":"+Base!O20","v":0}]
[]
[]
[null,null,null,"Atividades:"]
[]
[]
[]
[]
[]
[]
[]
[]
[]
[]
[]
[]
[]
[null,null,null,null,null,"Sim",null,"Não"]
[]
[null,null,null,"Bolseiro:"]
[]
[null,null,null,"Vínculo à Função Pública:",null,null,null,null,null,"Caso afirmativo, que tipo de vínculo?"]
[]
[null,null,null,"Formação Académica:"]
[]
[null,null,null,"Exercício de cargo de chefia:"]
[]
[null,null,null,"Formação Académica e formação profissional:"]
[]
[]
[]
[]
[]
[]
[]
[]
[]
[]
[]
[]
[]
[]
[]
[]
[null,null,null,"Função exercida no beneficiário"]
[]
[]
[]
[]
[]
[]
[]
[]
[]
[]
[]
[]
[]
[null,null,null,"Exercício de cargo de chefia"]
[]
[]
[]
[]
[]
[]
[]
[]
[]
[]
[]
[]
[null,null,null,"Tarefas desempenhadas antes do início deste projecto e descrição sucinta dos conhecimentos e experiência passada úteis para o projecto:"]

{"sheet":"CurriculoPessTec(20)","index":49,"n_rows":91,"n_cols":10,"rows_kept":91,"cut":false,"hidden":true,"merged":[[40,16,40,28],[22,5,22,28],[24,5,24,28],[26,5,26,28],[28,5,28,28],[30,5,30,28],[32,5,32,28],[19,5,19,9],[4,2,4,28],[7,2,7,3],[11,2,11,28],[14,2,14,29],[17,5,17,28]]}
[]
[]
[null,null,"BENEFICIÁRIO:"]
[]
[null,null,{"$f":"+CAPA!C9","v":0}]
[]
[null,null,"NIF:"]
[null,null,{"$f":"+CAPA!C12","v":0}]
[]
[null,null,"SISTEMA DE INCENTIVOS:"]
[]
[null,null,{"$f":"+CAPA!C16","v":"PROCIÊNCIA"}]
[]
[]
[null,null,"Curricula dos técnicos afectos ao projecto"]
[null,null,"  "]
[]
[null,null,null,"Técnico:",null,{"$f":"+Base!Q21","v":"20 - 0 ( 0 )"}]
[]
[null,null,null,"NIF:",null,{"$f":"+Base!O21","v":0}]
[]
[]
[null,null,null,"Atividades:"]
[]
[]
[]
[]
[]
[]
[]
[]
[]
[]
[]
[]
[]
[null,null,null,null,null,"Sim",null,"Não"]
[]
[null,null,null,"Bolseiro:"]
[]
[null,null,null,"Vínculo à Função Pública:",null,null,null,null,null,"Caso afirmativo, que tipo de vínculo?"]
[]
[null,null,null,"Formação Académica:"]
[]
[null,null,null,"Exercício de cargo de chefia:"]
[]
[null,null,null,"Formação Académica e formação profissional:"]
[]
[]
[]
[]
[]
[]
[]
[]
[]
[]
[]
[]
[]
[]
[]
[]
[null,null,null,"Função exercida no beneficiário"]
[]
[]
[]
[]
[]
[]
[]
[]
[]
[]
[]
[]
[]
[null,null,null,"Exercício de cargo de chefia"]
[]
[]
[]
[]
[]
[]
[]
[]
[]
[]
[]
[]
[null,null,null,"Tarefas desempenhadas antes do início deste projecto e descrição sucinta dos conhecimentos e experiência passada úteis para o projecto:"]

{"sheet":"CurriculoPessTec(21)","index":50,"n_rows":91,"n_cols":10,"rows_kept":91,"cut":false,"hidden":true,"merged":[[40,16,40,28],[22,5,22,28],[24,5,24,28],[26,5,26,28],[28,5,28,28],[30,5,30,28],[32,5,32,28],[19,5,19,9],[4,2,4,28],[7,2,7,3],[11,2,11,28],[14,2,14,29],[17,5,17,28]]}
[]
[]
[null,null,"BENEFICIÁRIO:"]
[]
[null,null,{"$f":"+CAPA!C9","v":0}]
[]
[null,null,"NIF:"]
[null,null,{"$f":"+CAPA!C12","v":0}]
[]
[null,null,"SISTEMA DE INCENTIVOS:"]
[]
[null,null,{"$f":"+CAPA!C16","v":"PROCIÊNCIA"}]
[]
[]
[null,null,"Curricula dos técnicos afectos ao projecto"]
[null,null,"  "]
[]
[null,null,null,"Técnico:",null,{"$f":"+Base!Q22","v":"21 - 0 ( 0 )"}]
[]
[null,null,null,"NIF:",null,{"$f":"+Base!O22","v":0}]
[]
[]
[null,null,null,"Atividades:"]
[]
[]
[]
[]
[]
[]
[]
[]
[]
[]
[]
[]
[]
[null,null,null,null,null,"Sim",null,"Não"]
[]
[null,null,null,"Bolseiro:"]
[]
[null,null,null,"Vínculo à Função Pública:",null,null,null,null,null,"Caso afirmativo, que tipo de vínculo?"]
[]
[null,null,null,"Formação Académica:"]
[]
[null,null,null,"Exercício de cargo de chefia:"]
[]
[null,null,null,"Formação Académica e formação profissional:"]
[]
[]
[]
[]
[]
[]
[]
[]
[]
[]
[]
[]
[]
[]
[]
[]
[null,null,null,"Função exercida no beneficiário"]
[]
[]
[]
[]
[]
[]
[]
[]
[]
[]
[]
[]
[]
[null,null,null,"Exercício de cargo de chefia"]
[]
[]
[]
[]
[]
[]
[]
[]
[]
[]
[]
[]
[null,null,null,"Tarefas desempenhadas antes do início deste projecto e descrição sucinta dos conhecimentos e experiência passada úteis para o projecto:"]

{"sheet":"CurriculoPessTec(22)","index":51,"n_rows":91,"n_cols":10,"rows_kept":91,"cut":false,"hidden":true,"merged":[[40,16,40,28],[22,5,22,28],[24,5,24,28],[26,5,26,28],[28,5,28,28],[30,5,30,28],[32,5,32,28],[19,5,19,9],[4,2,4,28],[7,2,7,3],[11,2,11,28],[14,2,14,29],[17,5,17,28]]}
[]
[]
[null,null,"BENEFICIÁRIO:"]
[]
[null,null,{"$f":"+CAPA!C9","v":0}]
[]
[null,null,"NIF:"]
[null,null,{"$f":"+CAPA!C12","v":0}]
[]
[null,null,"SISTEMA DE INCENTIVOS:"]
[]
[null,null,{"$f":"+CAPA!C16","v":"PROCIÊNCIA"}]
[]
[]
[null,null,"Curricula dos técnicos afectos ao projecto"]
[null,null,"  "]
[]
[null,null,null,"Técnico:",null,{"$f":"+Base!Q23","v":"22 - 0 ( 0 )"}]
[]
[null,null,null,"NIF:",null,{"$f":"+Base!O23","v":0}]
[]
[]
[null,null,null,"Atividades:"]
[]
[]
[]
[]
[]
[]
[]
[]
[]
[]
[]
[]
[]
[null,null,null,null,null,"Sim",null,"Não"]
[]
[null,null,null,"Bolseiro:"]
[]
[null,null,null,"Vínculo à Função Pública:",null,null,null,null,null,"Caso afirmativo, que tipo de vínculo?"]
[]
[null,null,null,"Formação Académica:"]
[]
[null,null,null,"Exercício de cargo de chefia:"]
[]
[null,null,null,"Formação Académica e formação profissional:"]
[]
[]
[]
[]
[]
[]
[]
[]
[]
[]
[]
[]
[]
[]
[]
[]
[null,null,null,"Função exercida no beneficiário"]
[]
[]
[]
[]
[]
[]
[]
[]
[]
[]
[]
[]
[]
[null,null,null,"Exercício de cargo de chefia"]
[]
[]
[]
[]
[]
[]
[]
[]
[]
[]
[]
[]
[null,null,null,"Tarefas desempenhadas antes do início deste projecto e descrição sucinta dos conhecimentos e experiência passada úteis para o projecto:"]

{"sheet":"CurriculoPessTec(23)","index":52,"n_rows":91,"n_cols":10,"rows_kept":91,"cut":false,"hidden":true,"merged":[[40,16,40,28],[22,5,22,28],[24,5,24,28],[26,5,26,28],[28,5,28,28],[30,5,30,28],[32,5,32,28],[19,5,19,9],[4,2,4,28],[7,2,7,3],[11,2,11,28],[14,2,14,29],[17,5,17,28]]}
[]
[]
[null,null,"BENEFICIÁRIO:"]
[]
[null,null,{"$f":"+CAPA!C9","v":0}]
[]
[null,null,"NIF:"]
[null,null,{"$f":"+CAPA!C12","v":0}]
[]
[null,null,"SISTEMA DE INCENTIVOS:"]
[]
[null,null,{"$f":"+CAPA!C16","v":"PROCIÊNCIA"}]
[]
[]
[null,null,"Curricula dos técnicos afectos ao projecto"]
[null,null,"  "]
[]
[null,null,null,"Técnico:",null,{"$f":"+Base!Q24","v":"23 - 0 ( 0 )"}]
[]
[null,null,null,"NIF:",null,{"$f":"+Base!O24","v":0}]
[]
[]
[null,null,null,"Atividades:"]
[]
[]
[]
[]
[]
[]
[]
[]
[]
[]
[]
[]
[]
[null,null,null,null,null,"Sim",null,"Não"]
[]
[null,null,null,"Bolseiro:"]
[]
[null,null,null,"Vínculo à Função Pública:",null,null,null,null,null,"Caso afirmativo, que tipo de vínculo?"]
[]
[null,null,null,"Formação Académica:"]
[]
[null,null,null,"Exercício de cargo de chefia:"]
[]
[null,null,null,"Formação Académica e formação profissional:"]
[]
[]
[]
[]
[]
[]
[]
[]
[]
[]
[]
[]
[]
[]
[]
[]
[null,null,null,"Função exercida no beneficiário"]
[]
[]
[]
[]
[]
[]
[]
[]
[]
[]
[]
[]
[]
[null,null,null,"Exercício de cargo de chefia"]
[]
[]
[]
[]
[]
[]
[]
[]
[]
[]
[]
[]
[null,null,null,"Tarefas desempenhadas antes do início deste projecto e descrição sucinta dos conhecimentos e experiência passada úteis para o projecto:"]

{"sheet":"CurriculoPessTec(24)","index":53,"n_rows":91,"n_cols":10,"rows_kept":91,"cut":false,"hidden":true,"merged":[[40,16,40,28],[22,5,22,28],[24,5,24,28],[26,5,26,28],[28,5,28,28],[30,5,30,28],[32,5,32,28],[19,5,19,9],[4,2,4,28],[7,2,7,3],[11,2,11,28],[14,2,14,29],[17,5,17,28]]}
[]
[]
[null,null,"BENEFICIÁRIO:"]
[]
[null,null,{"$f":"+CAPA!C9","v":0}]
[]
[null,null,"NIF:"]
[null,null,{"$f":"+CAPA!C12","v":0}]
[]
[null,null,"SISTEMA DE INCENTIVOS:"]
[]
[null,null,{"$f":"+CAPA!C16","v":"PROCIÊNCIA"}]
[]
[]
[null,null,"Curricula dos técnicos afectos ao projecto"]
[null,null,"  "]
[]
[null,null,null,"Técnico:",null,{"$f":"+Base!Q25","v":"24 - 0 ( 0 )"}]
[]
[null,null,null,"NIF:",null,{"$f":"+Base!O25","v":0}]
[]
[]
[null,null,null,"Atividades:"]
[]
[]
[]
[]
[]
[]
[]
[]
[]
[]
[]
[]
[]
[null,null,null,null,null,"Sim",null,"Não"]
[]
[null,null,null,"Bolseiro:"]
[]
[null,null,null,"Vínculo à Função Pública:",null,null,null,null,null,"Caso afirmativo, que tipo de vínculo?"]
[]
[null,null,null,"Formação Académica:"]
[]
[null,null,null,"Exercício de cargo de chefia:"]
[]
[null,null,null,"Formação Académica e formação profissional:"]
[]
[]
[]
[]
[]
[]
[]
[]
[]
[]
[]
[]
[]
[]
[]
[]
[null,null,null,"Função exercida no beneficiário"]
[]
[]
[]
[]
[]
[]
[]
[]
[]
[]
[]
[]
[]
[null,null,null,"Exercício de cargo de chefia"]
[]
[]
[]
[]
[]
[]
[]
[]
[]
[]
[]
[]
[null,null,null,"Tarefas desempenhadas antes do início deste projecto e descrição sucinta dos conhecimentos e experiência passada úteis para o projecto:"]

{"sheet":"CurriculoPessTec(25)","index":54,"n_rows":91,"n_cols":10,"rows_kept":91,"cut":false,"hidden":true,"merged":[[40,16,40,28],[22,5,22,28],[24,5,24,28],[26,5,26,28],[28,5,28,28],[30,5,30,28],[32,5,32,28],[19,5,19,9],[4,2,4,28],[7,2,7,3],[11,2,11,28],[14,2,14,29],[17,5,17,28]]}
[]
[]
[null,null,"BENEFICIÁRIO:"]
[]
[null,null,{"$f":"+CAPA!C9","v":0}]
[]
[null,null,"NIF:"]
[null,null,{"$f":"+CAPA!C12","v":0}]
[]
[null,null,"SISTEMA DE INCENTIVOS:"]
[]
[null,null,{"$f":"+CAPA!C16","v":"PROCIÊNCIA"}]
[]
[]
[null,null,"Curricula dos técnicos afectos ao projecto"]
[null,null,"  "]
[]
[null,null,null,"Técnico:",null,{"$f":"+Base!Q26","v":"25 - 0 ( 0 )"}]
[]
[null,null,null,"NIF:",null,{"$f":"+Base!O26","v":0}]
[]
[]
[null,null,null,"Atividades:"]
[]
[]
[]
[]
[]
[]
[]
[]
[]
[]
[]
[]
[]
[null,null,null,null,null,"Sim",null,"Não"]
[]
[null,null,null,"Bolseiro:"]
[]
[null,null,null,"Vínculo à Função Pública:",null,null,null,null,null,"Caso afirmativo, que tipo de vínculo?"]
[]
[null,null,null,"Formação Académica:"]
[]
[null,null,null,"Exercício de cargo de chefia:"]
[]
[null,null,null,"Formação Académica e formação profissional:"]
[]
[]
[]
[]
[]
[]
[]
[]
[]
[]
[]
[]
[]
[]
[]
[]
[null,null,null,"Função exercida no beneficiário"]
[]
[]
[]
[]
[]
[]
[]
[]
[]
[]
[]
[]
[]
[null,null,null,"Exercício de cargo de chefia"]
[]
[]
[]
[]
[]
[]
[]
[]
[]
[]
[]
[]
[null,null,null,"Tarefas desempenhadas antes do início deste projecto e descrição sucinta dos conhecimentos e experiência passada úteis para o projecto:"]

{"sheet":"CurriculoPessTec(26)","index":55,"n_rows":91,"n_cols":10,"rows_kept":91,"cut":false,"hidden":true,"merged":[[40,16,40,28],[22,5,22,28],[24,5,24,28],[26,5,26,28],[28,5,28,28],[30,5,30,28],[32,5,32,28],[19,5,19,9],[4,2,4,28],[7,2,7,3],[11,2,11,28],[14,2,14,29],[17,5,17,28]]}
[]
[]
[null,null,"BENEFICIÁRIO:"]
[]
[null,null,{"$f":"+CAPA!C9","v":0}]
[]
[null,null,"NIF:"]
[null,null,{"$f":"+CAPA!C12","v":0}]
[]
[null,null,"SISTEMA DE INCENTIVOS:"]
[]
[null,null,{"$f":"+CAPA!C16","v":"PROCIÊNCIA"}]
[]
[]
[null,null,"Curricula dos técnicos afectos ao projecto"]
[null,null,"  "]
[]
[null,null,null,"Técnico:",null,{"$f":"+Base!Q27","v":"26 - 0 ( 0 )"}]
[]
[null,null,null,"NIF:",null,{"$f":"+Base!O27","v":0}]
[]
[]
[null,null,null,"Atividades:"]
[]
[]
[]
[]
[]
[]
[]
[]
[]
[]
[]
[]
[]
[null,null,null,null,null,"Sim",null,"Não"]
[]
[null,null,null,"Bolseiro:"]
[]
[null,null,null,"Vínculo à Função Pública:",null,null,null,null,null,"Caso afirmativo, que tipo de vínculo?"]
[]
[null,null,null,"Formação Académica:"]
[]
[null,null,null,"Exercício de cargo de chefia:"]
[]
[null,null,null,"Formação Académica e formação profissional:"]
[]
[]
[]
[]
[]
[]
[]
[]
[]
[]
[]
[]
[]
[]
[]
[]
[null,null,null,"Função exercida no beneficiário"]
[]
[]
[]
[]
[]
[]
[]
[]
[]
[]
[]
[]
[]
[null,null,null,"Exercício de cargo de chefia"]
[]
[]
[]
[]
[]
[]
[]
[]
[]
[]
[]
[]
[null,null,null,"Tarefas desempenhadas antes do início deste projecto e descrição sucinta dos conhecimentos e experiência passada úteis para o projecto:"]

{"sheet":"CurriculoPessTec(27)","index":56,"n_rows":91,"n_cols":10,"rows_kept":91,"cut":false,"hidden":true,"merged":[[40,16,40,28],[22,5,22,28],[24,5,24,28],[26,5,26,28],[28,5,28,28],[30,5,30,28],[32,5,32,28],[19,5,19,9],[4,2,4,28],[7,2,7,3],[11,2,11,28],[14,2,14,29],[17,5,17,28]]}
[]
[]
[null,null,"BENEFICIÁRIO:"]
[]
[null,null,{"$f":"+CAPA!C9","v":0}]
[]
[null,null,"NIF:"]
[null,null,{"$f":"+CAPA!C12","v":0}]
[]
[null,null,"SISTEMA DE INCENTIVOS:"]
[]
[null,null,{"$f":"+CAPA!C16","v":"PROCIÊNCIA"}]
[]
[]
[null,null,"Curricula dos técnicos afectos ao projecto"]
[null,null,"  "]
[]
[null,null,null,"Técnico:",null,{"$f":"+Base!Q28","v":"27 - 0 ( 0 )"}]
[]
[null,null,null,"NIF:",null,{"$f":"+Base!O28","v":0}]
[]
[]
[null,null,null,"Atividades:"]
[]
[]
[]
[]
[]
[]
[]
[]
[]
[]
[]
[]
[]
[null,null,null,null,null,"Sim",null,"Não"]
[]
[null,null,null,"Bolseiro:"]
[]
[null,null,null,"Vínculo à Função Pública:",null,null,null,null,null,"Caso afirmativo, que tipo de vínculo?"]
[]
[null,null,null,"Formação Académica:"]
[]
[null,null,null,"Exercício de cargo de chefia:"]
[]
[null,null,null,"Formação Académica e formação profissional:"]
[]
[]
[]
[]
[]
[]
[]
[]
[]
[]
[]
[]
[]
[]
[]
[]
[null,null,null,"Função exercida no beneficiário"]
[]
[]
[]
[]
[]
[]
[]
[]
[]
[]
[]
[]
[]
[null,null,null,"Exercício de cargo de chefia"]
[]
[]
[]
[]
[]
[]
[]
[]
[]
[]
[]
[]
[null,null,null,"Tarefas desempenhadas antes do início deste projecto e descrição sucinta dos conhecimentos e experiência passada úteis para o projecto:"]

{"sheet":"CurriculoPessTec(28)","index":57,"n_rows":91,"n_cols":10,"rows_kept":91,"cut":false,"hidden":true,"merged":[[40,16,40,28],[22,5,22,28],[24,5,24,28],[26,5,26,28],[28,5,28,28],[30,5,30,28],[32,5,32,28],[19,5,19,9],[4,2,4,28],[7,2,7,3],[11,2,11,28],[14,2,14,29],[17,5,17,28]]}
[]
[]
[null,null,"BENEFICIÁRIO:"]
[]
[null,null,{"$f":"+CAPA!C9","v":0}]
[]
[null,null,"NIF:"]
[null,null,{"$f":"+CAPA!C12","v":0}]
[]
[null,null,"SISTEMA DE INCENTIVOS:"]
[]
[null,null,{"$f":"+CAPA!C16","v":"PROCIÊNCIA"}]
[]
[]
[null,null,"Curricula dos técnicos afectos ao projecto"]
[null,null,"  "]
[]
[null,null,null,"Técnico:",null,{"$f":"+Base!Q29","v":"28 - 0 ( 0 )"}]
[]
[null,null,null,"NIF:",null,{"$f":"+Base!O29","v":0}]
[]
[]
[null,null,null,"Atividades:"]
[]
[]
[]
[]
[]
[]
[]
[]
[]
[]
[]
[]
[]
[null,null,null,null,null,"Sim",null,"Não"]
[]
[null,null,null,"Bolseiro:"]
[]
[null,null,null,"Vínculo à Função Pública:",null,null,null,null,null,"Caso afirmativo, que tipo de vínculo?"]
[]
[null,null,null,"Formação Académica:"]
[]
[null,null,null,"Exercício de cargo de chefia:"]
[]
[null,null,null,"Formação Académica e formação profissional:"]
[]
[]
[]
[]
[]
[]
[]
[]
[]
[]
[]
[]
[]
[]
[]
[]
[null,null,null,"Função exercida no beneficiário"]
[]
[]
[]
[]
[]
[]
[]
[]
[]
[]
[]
[]
[]
[null,null,null,"Exercício de cargo de chefia"]
[]
[]
[]
[]
[]
[]
[]
[]
[]
[]
[]
[]
[null,null,null,"Tarefas desempenhadas antes do início deste projecto e descrição sucinta dos conhecimentos e experiência passada úteis para o projecto:"]

{"sheet":"CurriculoPessTec(29)","index":58,"n_rows":91,"n_cols":10,"rows_kept":91,"cut":false,"hidden":true,"merged":[[40,16,40,28],[22,5,22,28],[24,5,24,28],[26,5,26,28],[28,5,28,28],[30,5,30,28],[32,5,32,28],[19,5,19,9],[4,2,4,28],[7,2,7,3],[11,2,11,28],[14,2,14,29],[17,5,17,28]]}
[]
[]
[null,null,"BENEFICIÁRIO:"]
[]
[null,null,{"$f":"+CAPA!C9","v":0}]
[]
[null,null,"NIF:"]
[null,null,{"$f":"+CAPA!C12","v":0}]
[]
[null,null,"SISTEMA DE INCENTIVOS:"]
[]
[null,null,{"$f":"+CAPA!C16","v":"PROCIÊNCIA"}]
[]
[]
[null,null,"Curricula dos técnicos afectos ao projecto"]
[null,null,"  "]
[]
[null,null,null,"Técnico:",null,{"$f":"+Base!Q30","v":"29 - 0 ( 0 )"}]
[]
[null,null,null,"NIF:",null,{"$f":"+Base!O30","v":0}]
[]
[]
[null,null,null,"Atividades:"]
[]
[]
[]
[]
[]
[]
[]
[]
[]
[]
[]
[]
[]
[null,null,null,null,null,"Sim",null,"Não"]
[]
[null,null,null,"Bolseiro:"]
[]
[null,null,null,"Vínculo à Função Pública:",null,null,null,null,null,"Caso afirmativo, que tipo de vínculo?"]
[]
[null,null,null,"Formação Académica:"]
[]
[null,null,null,"Exercício de cargo de chefia:"]
[]
[null,null,null,"Formação Académica e formação profissional:"]
[]
[]
[]
[]
[]
[]
[]
[]
[]
[]
[]
[]
[]
[]
[]
[]
[null,null,null,"Função exercida no beneficiário"]
[]
[]
[]
[]
[]
[]
[]
[]
[]
[]
[]
[]
[]
[null,null,null,"Exercício de cargo de chefia"]
[]
[]
[]
[]
[]
[]
[]
[]
[]
[]
[]
[]
[null,null,null,"Tarefas desempenhadas antes do início deste projecto e descrição sucinta dos conhecimentos e experiência passada úteis para o projecto:"]

{"sheet":"CurriculoPessTec(30)","index":59,"n_rows":91,"n_cols":10,"rows_kept":91,"cut":false,"hidden":true,"merged":[[40,16,40,28],[22,5,22,28],[24,5,24,28],[26,5,26,28],[28,5,28,28],[30,5,30,28],[32,5,32,28],[19,5,19,9],[4,2,4,28],[7,2,7,3],[11,2,11,28],[14,2,14,29],[17,5,17,28]]}
[]
[]
[null,null,"BENEFICIÁRIO:"]
[]
[null,null,{"$f":"+CAPA!C9","v":0}]
[]
[null,null,"NIF:"]
[null,null,{"$f":"+CAPA!C12","v":0}]
[]
[null,null,"SISTEMA DE INCENTIVOS:"]
[]
[null,null,{"$f":"+CAPA!C16","v":"PROCIÊNCIA"}]
[]
[]
[null,null,"Curricula dos técnicos afectos ao projecto"]
[null,null,"  "]
[]
[null,null,null,"Técnico:",null,{"$f":"+Base!Q31","v":"30 - 0 ( 0 )"}]
[]
[null,null,null,"NIF:",null,{"$f":"+Base!O31","v":0}]
[]
[]
[null,null,null,"Atividades:"]
[]
[]
[]
[]
[]
[]
[]
[]
[]
[]
[]
[]
[]
[null,null,null,null,null,"Sim",null,"Não"]
[]
[null,null,null,"Bolseiro:"]
[]
[null,null,null,"Vínculo à Função Pública:",null,null,null,null,null,"Caso afirmativo, que tipo de vínculo?"]
[]
[null,null,null,"Formação Académica:"]
[]
[null,null,null,"Exercício de cargo de chefia:"]
[]
[null,null,null,"Formação Académica e formação profissional:"]
[]
[]
[]
[]
[]
[]
[]
[]
[]
[]
[]
[]
[]
[]
[]
[]
[null,null,null,"Função exercida no beneficiário"]
[]
[]
[]
[]
[]
[]
[]
[]
[]
[]
[]
[]
[]
[null,null,null,"Exercício de cargo de chefia"]
[]
[]
[]
[]
[]
[]
[]
[]
[]
[]
[]
[]
[null,null,null,"Tarefas desempenhadas antes do início deste projecto e descrição sucinta dos conhecimentos e experiência passada úteis para o projecto:"]

{"sheet":"CRITERIOS_SELECAO_AUTOVAL","index":60,"n_rows":218,"n_cols":10,"rows_kept":218,"cut":false,"hidden":false,"merged":[[190,3,190,6],[188,8,188,9],[189,8,189,9],[190,8,190,9],[151,3,151,10],[169,3,169,10],[187,3,187,10],[188,3,188,4],[189,3,189,6],[152,3,152,4],[137,3,137,10],[59,3,59,10],[118,3,118,10],[136,3,136,10],[117,3,117,4],[133,3,133,10],[134,3,134,4],[3,2,3,11],[6,2,6,5],[12,2,12,11],[18,3,18,10],[135,3,135,4],[23,3,24,10],[78,3,79,10],[20,3,20,10],[19,3,19,10],[10,2,10,11],[41,3,41,9],[57,3,57,10]]}
[]
[null,null,"BENEFICIÁRIO:"]
[]
[null,null,{"$f":"+CAPA!C9","v":0}]
[]
[null,null,"NIF:"]
[null,null,{"$f":"+CAPA!C12","v":0}]
[]
[null,null,"SISTEMA DE INCENTIVOS:"]
[]
[null,null,{"$f":"+CAPA!C16","v":"PROCIÊNCIA"}]
[]
[null,null,"Critérios de Seleção – Autoavaliação do Beneficiário"]
[]
[null,null,"  "]
[]
[null,null,null,"CRITÉRIO A – QUALIDADE DO PROJETO"]
[null,null,null,"Fatores a Valorizar"]
[null,null,null,"A1 – Coerência e razoabilidade do projeto - avalia as atividades a desenvolver face ao investimento previsto, a estratégia da empresa e metodologia científica/tecnológica utilizada"]
[null,null,null,"A1.1 - Qualidade da metodologia científico-tecnológica e coerência do plano de trabalhos para alcançar os objetivos propostos – avalia a coerência do plano de trabalhos e metodologia que vai ser seguida para alcançar os objetivos propostos na estratégia da empresa, em particular a adequação das tarefas (descrição, duração e participantes) e dos marcos e entregáveis (pertinência e momento de disponibilização)."]
[null,null,null,"A1.2 - Coerência do plano de investimentos/adequação dos recursos envolvidos face aos objetivos propostos – avalia a pertinência dos recursos envolvidos face aos objetivos propostos."]
[]
[null,null,null,"Fundamentação do subcritério A1.1"]
[null,null,null," - Identificação clara da estratégia e metodologia científica/tecnológica utilizada. Dando enfase a adequação das tarefas (descrição, duração e participantes) e dos marcos e entregáveis (pertinência e momento de disponibilização)"]
[]
[]
[]
[]
[]
[]
[]
[]
[]
[]
[]
[]
[]
[]
[]
[]
[null,null,null,"Fundamentação do subcritério A1.2"]
[null,null,null," -Identificação da pertinencia dos recursos envolvidos face aos objetivos propostos.                                                                                                                                          Nos projetos em copromoção deverá ser tida em consideração a estratégia do consórcio."]
[]
[]
[]
[]
[]
[]
[]
[]
[]
[]
[]
[]
[]
[]
[]
[null,null,null,"A2 – Equipa de I&DT com perfil adequado à realização do projeto - apreciação da composição da(s) equipa(s) técnica(s) do promotor(es) e de eventuais entidades externas envolvidas no projeto, com destaque para as competências nucleares relativamente a conhecimentos científicos e técnicos avançados, bem como a adequação dos currículos das equipas de I&D do(s) promotor(es) e externas."]
[null,null,null,"Fundamentação do subcritério A2"]
[null,null,null," - Equipa técnica                                                                                                                                                                                                                                    Nos projetos em copromoção deve igualmente ser tido em consideração a qualidade da equipa que constitui o consórcio                         "]
[]
[]
[]
[]
[]
[]
[]
[]
[]
[]
[]
[]
[]
[]
[]
[null,null,null,"A3 – Conhecimento revelado do estado da arte e caracterização científica e técnica"]
[]
[null,null,null,"Fundamentação do subcritério A3"]
[null,null,null,"Avaliação - estado da arte e caracterização científica e técnica.                                                                                                                                                                                                                                                   Nos projetos em copromoção deve igualmente ser tido em consideração a eficácia dos mecanismos de transferência de utilização de conhecimento."]
[]
[]
[]
[]
[]
[]
[]
[]
[]
[]
[]
[null,null,null,"Critério B - Contributo do projeto para a competitividade da(s) empresa(s) promotora(s)"]
[null,null,null,"B1 – Grau de inovação do projeto – com vista a obtenção de novos ou significativamente melhorados produtos, processos e serviços."]
[null,null,null,"Fundamentação do subcritério B1"]
[null,null,null,"a) Grau de novidade do produto/serviço para o mercado ou do processo comparativamente com os meios correntemente utilizados em aplicações similares/Risco de mercado;"]
[null,null,null,"b) Grau de novidade das atividades propostas em termos de conhecimento científico e tecnológico (state of the art)/Incerteza e risco científico e tecnológico associado."]
[]
[]
[]
[]
[]
[]
[]
[]
[]
[]
[]
[]
[]
[]
[]
[]
[]
[]
[]
[]
[]
[null,null,null,"B2 – Aumento da capacidade de penetração no mercado internacional – avalia a capacidade de exportação resultante do projeto e do nível de inovação."]
[null,null,null,"Fundamentação do subcritério B2"]
[null,null,null,"a) Natureza exportável dos produtos/processos/serviços resultantes do projeto - Insere-se nos objetivos da empresa de intensificação do volume de negócios nos mercados externos;"]
[null,null,null,"b) Inovação a nível internacional - Existência de parceiros internacionais e/ou envolvimento de outros agentes facilitadores do acesso ou presença nos mercados externos."]
[]
[]
[]
[]
[]
[]
[]
[]
[]
[]
[]
[]
[]
[null,null,null,"B3 – Criação de mecanismos de transferência de utilização de conhecimento – avalia a criação de laços de cooperação, o grau de mobilidade dos quadros técnicos assim como a existência de registo de propriedade industrial, através da seguinte fórmula:"]
[null,null,null,"B3.1 – Criação de laços de cooperação e grau de mobilidade de quadros técnicos"]
[null,null,null,"Fundamentação do subcritério B3.1"]
[null,null,null,"a) Criação de laços de cooperação com entidades das áreas da investigação, desenvolvimento e inovação - avalia a existência de parcerias e outras interações e inserção em Redes e Programas Nacionais e Internacionais de I&D"]
[null,null,null,"b) Grau de mobilidade de quadros técnicos especializados e altamente qualificados de entidades não empresariais do SRDITI para as empresas."]
[]
[]
[]
[]
[]
[]
[]
[]
[]
[]
[]
[]
[]
[null,null,null,"B3.2 – Existência de Registo da Propriedade Industrial – avalia a existência ou não de proteção de propriedade industrial."]
[null,null,null,"Fundamentação do subcritério B3.2"]
[]
[]
[]
[]
[]
[]
[]
[]
[]
[]
[]
[]
[]
[]
[null,null,null,"Critério C - Contributo do projeto para a competitividade regional"]
[]
[null,null,null,"C1 – Criação de Valor – medido pelo peso das despesas em investigação no valor acrescentado gerado pela empresa. Avalia-se se o projeto contribui para o indicador de resultado “Despesa de I&D das empresas no VAB”, sendo valorizadas as empresas com maior intensidade de I&D e aquelas que mais contribuem para o aumento da Despesa de I&D."]
[null,null,null,null,null,null,null,"VAB pós projeto",null,"(inserir)"]
[null,null,null,null,null,{"$f":"+IF(ISERROR(+(I173/I171*100)),\"\",(I173/I171*100))","v":""}]
[null,null,null,null,null,null,null,"Despesa em I&D pós projeto",null,"(inserir)"]
[null,null,null,"Fundamentação do critério C1"]
[]
[]
[]
[]
[]
[]
[]
[]
[]
[]
[]
[]
[]
[null,null,null,"C2 – Contributo para a criação de emprego qualificado (níveis VI a VIII) - avalia a capacidade de potenciar novas competências qualificadas na empresa, resultante da contratação de meios humanos qualificados para o desenvolvimento das atividades de I&D&I, assim como a participação de doutorados nas equipas de projeto."]
[null,null,null,"Fundamentação do subcritério C2"]
[null,null,null,"a)    Número de novas contratações com grau igual ou superior a licenciatura;"]
[null,null,null,"a)    Participação de doutorados nas equipas de projeto."]
[]
[]
[]
[]
[]
[]
[]
[]
[]
[]
[]
[]
[]
[null,null,null,"Notas:"]
[]
[null,null,null,"Subcritério C1:"]
[null,null,null,"VAB = VBP - Consumos Intermédios "]
[null,null,null,"VBP = Volume de Negócios + Variação nos inventários da produção + Trabalhos para a própria empresa + Rendimentos Suplementares + Subsídios à Exploração "]
[null,null,null,"Volume de Negócios = Vendas de Produtos + Vendas de Mercadorias + Prestação de serviços "]
[null,null,null,"Consumos Intermédios = Custo das Mercadorias + Custo das Matérias-Primas e Subsidiárias Consumidas + Fornecimentos e Serviços Externos + Impostos Indiretos"]
[null,null,null,"Despesas em I&D = Despesas totais em investigação industrial e desenvolvimento experimental."]
[]
[null,null,null,"Subcritério C2"]
[null,null,null,"Nos termos da Portaria n.º 782/2009 de 23 de julho, os níveis de qualificação de emprego a considerar no presente  subcritério são:"]
[null,null,null,"•  Nível 6 - Licenciatura"]
[null,null,null,"• Nível 7 - Mestrado"]
[null,null,null,"• Nível 8 - Doutoramento"]

{"sheet":"Majorações","index":61,"n_rows":50,"n_cols":21,"rows_kept":50,"cut":false,"hidden":false,"merged":[[56,4,56,9],[21,4,21,14],[24,4,24,14],[27,4,27,14],[4,2,4,18],[7,2,7,6],[11,2,11,18],[14,2,14,22],[45,5,46,14],[29,5,29,14],[31,6,31,14],[33,6,33,14],[35,6,35,14],[38,5,38,14],[40,6,40,14],[42,6,42,14]]}
[]
[]
[null,null,"BENEFICIÁRIO:"]
[]
[null,null,{"$f":"+CAPA!C9","v":0}]
[]
[null,null,"NIF:"]
[null,null,{"$f":"+CAPA!C12","v":0}]
[]
[null,null,"SISTEMA DE INCENTIVOS:"]
[]
[null,null,{"$f":"+CAPA!C16","v":"PROCIÊNCIA"}]
[]
[]
[null,null,"MAJORAÇÔES"]
[]
[]
[null,null,null,"Majorações"]
[null,null,null,"O promotor pretende beneficiar de majoração relativa a:",null,null,null,null,null,null,null,null,null,null,null,null,null,null,"Sim",null,"Não"]
[]
[]
[null,null,null,null,"a) Majoração «Investigação industrial»: 25 p.p. a atribuir a atividades de I&D classificadas como tal;"]
[]
[]
[null,null,null,null,"b) Majoração «Tipo de empresa»: 10 p.p. a atribuir a médias empresas ou 20 p.p. a atribuir a micro e pequenas empresas;"]
[]
[]
[null,null,null,null,"c) Majoração de 15 p.p. quando se verifique pelo menos uma das seguintes situações:"]
[]
[null,null,null,null,null,"c.1) Majoração «Cooperação entre empresas», a atribuir quando o projeto verificar cumulativamente as seguintes condições:"]
[]
[null,null,null,null,null,null,"i) Envolver uma cooperação efetiva entre empresas autónomas umas das outras;"]
[]
[null,null,null,null,null,null,"ii) Nenhuma empresa suportar mais de 70% das despesas elegíveis do projeto;"]
[]
[null,null,null,null,null,null,"iii) Envolver uma cooperação com pelo menos uma PME ou envolver atividades de I&D em pelo menos dois Estados membros;"]
[]
[]
[null,null,null,null,null,"c.2) Majoração «Cooperação com entidades não empresariais do SRDITI», a atribuir quando se verifiquem cumulativamente as seguintes condições:"]
[]
[null,null,null,null,null,null,"i) A participação das entidades não empresariais do SRDITI representa pelo menos 10% das despesas elegíveis do projeto;"]
[]
[null,null,null,null,null,null,"ii) As entidades não empresariais do SRDITI têm o direito de publicar os resultados do projeto que resultem da I&D realizada por essa entidade;"]
[]
[]
[null,null,null,null,null,"c.3) Majoração «Divulgação ampla dos resultados», desde que os resultados do projeto sejam objeto de divulgação ampla através de conferências técnicas e científicas ou publicação em revistas científicas ou técnicas ou armazenados em bases de dados de acesso livre, ou seja, às quais é livre o acesso aos dados de investigação brutos ou através de um software gratuito ou público."]
[]
[]
[]
[null,null,null,"Fundamentação"]

{"sheet":"Financiamento","index":62,"n_rows":106,"n_cols":30,"rows_kept":106,"cut":false,"hidden":false,"merged":[[23,25,23,29],[27,3,27,9],[27,10,27,12],[27,13,27,15],[27,16,27,19],[27,20,27,24],[27,25,27,29],[25,3,25,9],[25,10,25,12],[25,13,25,15],[25,16,25,19],[25,20,25,24],[25,25,25,29],[24,3,24,9],[24,10,24,12],[24,13,24,15],[24,16,24,19],[24,20,24,24],[4,2,4,18],[7,2,7,5],[11,2,11,18],[24,25,24,29],[93,3,93,30],[94,3,94,30],[96,3,96,29],[97,4,97,29],[98,4,98,29],[26,3,26,9],[26,10,26,12],[26,13,26,15],[26,16,26,19],[26,20,26,24],[26,25,26,29],[28,3,28,29],[29,3,29,9],[29,10,29,12],[29,13,29,15],[29,16,29,19],[29,20,29,24],[29,25,29,29],[63,24,63,28],[23,3,23,9],[22,25,22,29],[20,3,20,29],[21,3,21,9],[21,10,21,12],[21,13,21,15],[21,16,21,19],[21,20,21,24],[21,25,21,29],[14,2,14,30],[19,3,19,9],[19,10,19,12],[19,13,19,15],[19,16,19,19],[19,20,19,24],[19,25,19,29],[32,16,32,19],[32,20,32,24],[22,3,22,9],[22,10,22,12],[22,13,22,15],[22,16,22,19],[22,20,22,24],[23,10,23,12],[23,13,23,15],[23,16,23,19],[23,20,23,24],[32,3,32,9],[32,10,32,12],[32,13,32,15],[34,3,34,9],[34,10,34,12],[34,13,34,15],[34,16,34,19],[34,20,34,24],[34,25,34,29],[30,3,30,9],[30,10,30,12],[30,13,30,15],[30,16,30,19],[30,20,30,24],[30,25,30,29],[32,25,32,29],[33,3,33,9],[33,10,33,12],[33,13,33,15],[33,16,33,19],[33,20,33,24],[33,25,33,29],[31,10,31,12],[31,13,31,15],[31,16,31,19],[31,20,31,24],[31,25,31,29],[36,3,36,9],[36,10,36,12],[36,13,36,15],[36,16,36,19],[36,20,36,24],[36,25,36,29],[35,3,35,9],[35,10,35,12],[35,13,35,15],[35,16,35,19],[35,20,35,24],[35,25,35,29],[38,3,38,9],[38,10,38,12],[38,13,38,15],[38,16,38,19],[38,20,38,24],[38,25,38,29],[37,3,37,9],[37,10,37,12],[37,13,37,15],[37,16,37,19],[37,20,37,24],[37,25,37,29],[40,3,40,9],[40,10,40,12],[40,13,40,15],[40,16,40,19],[40,20,40,24],[40,25,40,29],[39,3,39,9],[39,10,39,12],[39,13,39,15],[39,16,39,19],[39,20,39,24],[39,25,39,29],[47,3,47,9],[47,14,47,25],[49,22,49,24],[50,22,50,24],[59,24,59,28],[55,14,55,22],[55,24,55,28],[56,15,56,21],[58,24,58,28],[58,14,58,22],[59,15,59,21],[56,24,56,28],[57,24,57,28],[55,3,55,4],[53,3,53,9],[53,14,54,22],[53,24,54,28],[56,3,56,4],[49,3,49,4],[60,24,60,28],[61,24,61,28],[61,14,61,22],[62,15,62,21],[62,24,62,28],[90,4,91,29],[102,4,102,29],[105,3,105,29],[84,3,84,29],[85,3,85,29],[86,3,86,29],[87,3,87,29],[88,4,88,29],[89,4,89,29],[99,4,99,29],[100,4,100,29],[101,4,101,29],[82,3,82,29]]}
[]
[]
[null,null,"BENEFICIÁRIO:"]
[]
[null,null,{"$f":"+CAPA!C9","v":0}]
[]
[null,null,"NIF:"]
[null,null,{"$f":"+CAPA!C12","v":0}]
[]
[null,null,"SISTEMA DE INCENTIVOS:"]
[]
[null,null,{"$f":"+CAPA!C16","v":"PROCIÊNCIA"}]
[]
[]
[null,null,"FINANCIAMENTO DO PROJECTO"]
[]
[]
[null,null,null," Estrutura de Financiamento (Recursos Financeiros)    "]
[]
[null,null,null,"Fontes",null,null,null,null,null,null,"n",null,null,"n+1",null,null,"n+2",null,null,null,"Total",null,null,null,null,"% Investimento"]
[null,null,null,"1. Capitais Próprios (1)"]
[null,null,null,"Capital",null,null,null,null,null,null,null,null,null,null,null,null,null,null,null,null,{"$f":"SUM(K22:T22)","v":0},null,null,null,null,{"$f":"IF(ISERROR(U22/$U$41),\"0%\",U22/$U$41)","v":"0%"}]
[null,null,null,"Prestações Suplementares de Capital",null,null,null,null,null,null,null,null,null,null,null,null,null,null,null,null,0,null,null,null,null,"0%"]
[null,null,null,"Suprimentos Consolidados (2)",null,null,null,null,null,null,null,null,null,null,null,null,null,null,null,null,0,null,null,null,null,"0%"]
[null,null,null,"Sub-Total 1",null,null,null,null,null,null,{"$f":"+K24+K23+K22","v":0},null,null,{"$f":"+N24+N23+N22","v":0},null,null,{"$f":"+Q24+Q23+Q22","v":0},null,null,null,0,null,null,null,null,"0%"]
[null,null,null,"2. Autofinanciamento (3)",null,null,null,null,null,null,null,null,null,null,null,null,null,null,null,null,0,null,null,null,null,"0%"]
[null,null,null,"3. Outros (4)",null,null,null,null,null,null,null,null,null,null,null,null,null,null,null,null,0,null,null,null,null,"0%"]
[null,null,null,"Sub-Total 2",null,null,null,null,null,null,{"$f":"+K26+K27","v":0},null,null,{"$f":"+N26+N27","v":0},null,null,{"$f":"+Q26+Q27","v":0},null,null,null,0,null,null,null,null,"0%"]
[null,null,null,"4. Capitais Alheios"]
[null,null,null,"Dívidas a Instituições de Crédito",null,null,null,null,null,null,null,null,null,null,null,null,null,null,null,null,{"$f":"SUM(K30:T30)","v":0},null,null,null,null,{"$f":"IF(ISERROR(U30/$U$41),\"0%\",U30/$U$41)","v":"0%"}]
[null,null,null,"Empréstimos Obrigacionistas",null,null,null,null,null,null,null,null,null,null,null,null,null,null,null,null,0,null,null,null,null,{"$f":"IF(ISERROR(U31/$U$41),\"0%\",U31/$U$41)","v":"0%"}]
[null,null,null,"Outras dívidas a Sócios / accionistas",null,null,null,null,null,null,null,null,null,null,null,null,null,null,null,null,0,null,null,null,null,{"$f":"IF(ISERROR(U32/$U$41),\"0%\",U32/$U$41)","v":"0%"}]
[null,null,null,"Fornecedores Imobilizado",null,null,null,null,null,null,null,null,null,null,null,null,null,null,null,null,0,null,null,null,null,"0%"]
[null,null,null,"Locação Financeira",null,null,null,null,null,null,null,null,null,null,null,null,null,null,null,null,0,null,null,null,null,"0%"]
[null,null,null,"Outros",null,null,null,null,null,null,null,null,null,null,null,null,null,null,null,null,0,null,null,null,null,"0%"]
[null,null,null,"Sub-Total 3",null,null,null,null,null,null,{"$f":"+K35+K34+K33+K32+K31+K30","v":0},null,null,{"$f":"+N35+N34+N33+N32+N31+N30","v":0},null,null,{"$f":"+Q35+Q34+Q33+Q32+Q31+Q30","v":0},null,null,null,{"$f":"SUM(K36:T36)","v":0},null,null,null,null,"0%"]
[null,null,null,"Incentivo Não Reembolsável (INR)",null,null,null,null,null,null,null,null,null,null,null,null,null,null,null,null,{"$f":"SUM(K37:T37)","v":0},null,null,null,null,"0%"]
[null,null,null,"Incentivo não Reembolsável (INR)",null,null,null,null,null,null,null,null,null,null,null,null,null,null,null,null,{"$f":"SUM(K38:T38)","v":0},null,null,null,null,"0%"]
[null,null,null,"Sub-Total 4",null,null,null,null,null,null,{"$f":"+K37+K38","v":0},null,null,{"$f":"+N37+N38","v":0},null,null,{"$f":"+Q37+Q38","v":0},null,null,null,{"$f":"SUM(K39:T39)","v":0},null,null,null,null,"0%"]
[null,null,null,"FINANCIAMENTO TOTAL",null,null,null,null,null,null,{"$f":"+K39+K36+K25","v":0},null,null,{"$f":"+N39+N36+N25","v":0},null,null,{"$f":"+Q39+Q36+Q25","v":0},null,null,null,{"$f":"SUM(K40:T40)","v":0},null,null,null,null,"0%"]
[null,null,null,"INVESTIMENTO TOTAL",null,null,null,null,null,null,null,null,null,null,null,null,null,null,null,null,{"$f":"+K41+N41+Q41","v":0}]
[null,null,null,"(1) Novos capitais próprios"]
[null,null,null,"2) Novos suprimentos a incorporar em capital próprio até ao encerramento do projecto, para efeitos de cumprimento da condição de elegibilidade do projeto"]
[null,null,null,"(3) Resultado líquido do exercício + imparidades + provisões + gastos/reversões de depreciação e amortização, do ano pré-projecto"]
[null,null,null,"(4) Reafectação de valores do activo sem reflexo no autofinanciamento"]
[null,null,null,"(5) Investimento total de preencimento obrigatório"]
[]
[null,null,null,"Financiamento Bancário Assegurado",null,null,null,null,null,null,null,null,null,null,"Modalidades de Intervenção da Instituição de Crédito"]
[null,null,null,null,null,null,null,null,null,null,null,null,null,null,"Pedido de Financiamento à Instituição de Crédito:"]
[null,null,null,"Sim",null,null,null,"Não",null,null,null,null,null,null,"Crédito Bancário",null,null,null,null,null,"Montante:"]
[null,null,null,null,null,null,null,null,null,null,null,null,null,null,"Locação Financeira",null,null,null,null,null,"Montante:"]
[null,null,null,null,null,null,null,null,null,null,null,null,null,null,"Prestação de Garantia Bancária"]
[]
[null,null,null,"Outras Formas Financiamento",null,null,null,null,null,null,null,null,null,null,"Fontes de financiamento",null,null,null,null,null,null,null,null,null,"Capital Próprio Projeto - CPp"]
[]
[null,null,null,"Garantia Mútua",null,null,null,"Outra:",null,null,null,null,null,null,"(CPp/DEp) ≥ 15%",null,null,null,null,null,null,null,null,null,{"$f":"+U25","v":0}]
[null,null,null,"Capital Risco",null,null,null,null,null,null,null,null,null,null,null,{"$f":"IF(ISERROR(+Y56/Y60),\"\",Y56/Y60)","v":""},null,null,null,null,null,null,null,null,"Capital Alheios Projeto - CAp"]
[null,null,null,null,null,null,null,null,null,null,null,null,null,null,null,null,null,null,"ou",null,null,null,null,null,{"$f":"+U36","v":0}]
[null,null,null,null,null,null,null,null,null,null,null,null,null,null,"(CPe + CPp) /(AT+ DEp ) ≥ 15%",null,null,null,null,null,null,null,null,null,"Despesa elegível projeto - Dep"]
[null,null,null,null,null,null,null,null,null,null,null,null,null,null,null,{"$f":"IF(ISERROR((+Y56+Y62)/(Y64+Y60)),\"\",(+Y56+Y62)/(Y60+Y64))","v":""},null,null,null,null,null,null,null,null,null,null,null,null,null,"(inserir)"]
[null,null,null,null,null,null,null,null,null,null,null,null,null,null,null,null,null,null,"e",null,null,null,null,null,"Capital próprio empresa - Cpe"]
[null,null,null,null,null,null,null,null,null,null,null,null,null,null,"(CPp + CAp) / DEp ≥ 15%",null,null,null,null,null,null,null,null,null,null,null,null,null,null,"(inserir)"]
[null,null,null,null,null,null,null,null,null,null,null,null,null,null,null,{"$f":"IF(ISERROR(+(Y56+Y58)/Y60),\"\",(Y56+Y58)/Y60)","v":""},null,null,null,null,null,null,null,null,"Ativo total da empresa - AT"]
[null,null,null,null,null,null,null,null,null,null,null,null,null,null,null,null,null,null,null,null,null,null,null,null,null,null,null,null,null,"(inserir)"]
[]
[]
[]
[null,null,null,"Demonstração e justificação das Fontes de Financiamento, do benefeciário e copromotores caso aplicável"]
[]
[]
[]
[]
[]
[]
[]
[]
[]
[]
[]
[]
[]
[null,null,null,"Descrição das Fontes de Financiamento: "]
[null,null,null,"O beneficiário deverá justificar os valores e fontes indicadas na tabela, através de uma breve descrição, justificando as fontes por benefeciário e copromotor, caso aplicável. "]
[]
[null,null,null,"Pretende-se, no quadro de Estrutura de Financiamento (Recursos Financeiros) do projeto, a indicação dos meios de financiamento do investimento nos anos da sua execução. "]
[null,null,null,"O financiamento total e anual deve ser coincidente com o correspondente investimento total e anual, inserido no quadro dos investimentos "]
[null,null,null,"O beneficiário tem de evidenciar que as fontes de financiamento estão asseguradas, devendo os correspondentes documentos comprovativos constar do Dossier de Projeto: "]
[null,null,null,"Capitais Próprios "]
[null,null,null,null,"Capital - indicação de qual o aumento de capital que, eventualmente, irá financiar o investimento. "]
[null,null,null,null,"Prestações Suplementares de Capital - indicação de qual o aumento de prestações suplementares que, eventualmente, irá financiar o investimento. "]
[null,null,null,null,"Suprimentos -  Novos suprimentos a incorporar em capital próprio até ao encerramento do projecto, para efeitos de cumprimento da condição de elegibilidade do projeto e do critério D (FP)."]
[]
[null,null,null,"Autofinanciamento "]
[null,null,null,"Poderá ser utilizado em cada ano de execução do investimento, um valor de autofinanciamento, que tenha como limite os meios libertos líquidos\n (Resultados Líquidos do Período + Gastos/Reversões de Depreciação e de Amortização + Imparidades + Provisões + Aumentos/reduções de justo valor)."]
[null,null,null,"Outros, poderão ser utilizadas outras forma de financiamento."]
[]
[null,null,null,"Capitais Alheios: "]
[null,null,null,null,"Dividas Instituições de Crédito - indicação de qual o valor de empréstimos bancários que, eventualmente, irá financiar o investimento. Na fase de candidatura, deverá entregar o documento comprovativo da aprovação do financiamento bancário ou de intenção de financiamento. "]
[null,null,null,null,"Empréstimos por Obrigações - Indicação de qual o valor de empréstimos obrigacionistas que, eventualmente, irá financiar o investimento. Na fase de candidatura, deverá dispor no Dossier do Projeto, da cópia da ata deliberativa da realização do empréstimo obrigacionista, incluindo as respetivas condições, nomeadamente, o montante, a taxa de juro, o valor nominal, o preço de emissão, o valor de reembolso e o método de amortização das obrigações. "]
[null,null,null,null,"Dívidas a Sócios/Acionistas - Indicação de qual o valor de outras eventuais dívidas a sócios/acionistas, que irão financiar o investimento. "]
[null,null,null,null,"Fornecedores imobilizado - indicação de qual o valor de fornecedores de imobilizado que, eventualmente, irá financiar o investimento. A maturidade do crédito concedido por Fornecedores de Imobilizado terá de ser igual ao prazo de execução do investimento. Na fase de candidatura, o documento comprovativo do acordo com o fornecedor de imobilizado, deverá integrar o Dossier de Projeto. "]
[null,null,null,null,"Locação Financeira – referência ao valor de locação financeira que, eventualmente, irá financiar o investimento. O beneficiário deve comprometer-se a concretizar a opção de compra do bem locado, no final do contrato de locação financeira. "]
[null,null,null,null,"Outros - Indicação de qual o valor de outras eventuais outras fontes, que irão financiar o investimento. "]
[]
[null,null,null,"Incentivos: "]
[null,null,null,"O beneficiário deverá indicar o montante de incentivo reembolsável que previsivelmente lhe venha a ser atribuído de acordo com as taxas e regras constantes do Regulamento. "]

{"sheet":"Balanço empresa ","index":63,"n_rows":84,"n_cols":18,"rows_kept":84,"cut":false,"hidden":false,"merged":[[10,2,10,17],[6,2,6,5],[3,2,3,17],[16,3,16,4],[16,16,16,17],[12,2,12,18],[14,2,14,7],[14,8,14,10],[17,3,17,13],[17,14,17,15],[18,3,18,13],[18,14,18,15],[19,3,19,13],[19,14,19,15],[20,3,20,13],[20,14,20,15],[21,3,21,13],[21,14,21,15],[22,3,22,13],[22,14,22,15],[23,3,23,13],[23,14,23,15],[24,3,24,13],[24,14,24,15],[25,3,25,13],[25,14,25,15],[26,3,26,13],[26,14,26,15],[27,3,27,13],[27,14,27,15],[28,3,28,13],[28,14,28,15],[40,14,40,15],[30,3,30,13],[30,14,30,15],[31,14,31,15],[32,14,32,15],[33,14,33,15],[34,14,34,15],[35,14,35,15],[36,14,36,15],[37,14,37,15],[38,14,38,15],[39,14,39,15],[41,14,41,15],[42,14,42,15],[43,14,43,15],[44,14,44,15],[46,3,46,13],[46,14,46,15],[58,14,58,15],[47,14,47,15],[48,14,48,15],[49,14,49,15],[50,14,50,15],[51,14,51,15],[52,14,52,15],[53,14,53,15],[54,14,54,15],[55,14,55,15],[56,14,56,15],[57,14,57,15],[71,14,71,15],[59,14,59,15],[60,14,60,15],[62,14,62,15],[63,14,63,15],[64,14,64,15],[65,14,65,15],[66,14,66,15],[67,14,67,15],[68,14,68,15],[69,14,69,15],[70,14,70,15],[83,14,83,15],[72,14,72,15],[73,14,73,15],[74,14,74,15],[75,14,75,15],[76,14,76,15],[77,14,77,15],[78,14,78,15],[79,14,79,15],[80,14,80,15],[81,14,81,15],[82,14,82,15]]}
[]
[null,null,"BENEFICIÁRIO:"]
[]
[null,null,{"$f":"+CAPA!C9","v":0}]
[]
[null,null,"NIF:"]
[null,null,{"$f":"+CAPA!C12","v":0}]
[]
[null,null,"SISTEMA DE INCENTIVOS:"]
[]
[null,null,{"$f":"+CAPA!C16","v":"PROCIÊNCIA"}]
[]
[null,null,"BALANÇO DA EMPRESA Pré candidatura"]
[]
[null,null,"Data da candidatura:"]
[]
[null,null,null,"(euros)",null,null,null,null,null,null,null,null,null,null,null,null,"EMPRESA PRÉ CANDIDATURA"]
[null,null,null,"ACTIVO",null,null,null,null,null,null,null,null,null,null,"Notas",null,{"$f":"IF(YEAR($I$15)=\"\",\"\",YEAR($I$15)-2)","v":1898},{"$f":"IF(YEAR($I$15)=\"\",\"\",YEAR($I$15)-1)","v":1899}]
[null,null,null,"Activo não corrente"]
[null,null,null,"activos fixos tangíveis"]
[null,null,null,"Propriedades de investimento"]
[null,null,null,"Goodwill"]
[null,null,null,"Activos Intangíveis"]
[null,null,null,"Activos biológicos"]
[null,null,null,"Participações financeiras - método da equivalência patrimonial"]
[null,null,null,"Participações financeiras - outros métodos"]
[null,null,null,"Accionistas/sócios"]
[null,null,null,"Outros activos financeiros"]
[null,null,null,"Activos por impostos diferidos"]
[null,null,null,null,null,null,null,null,null,null,null,null,null,null,null,null,{"$f":"+Q19+Q20+Q21+Q22+Q23+Q24+Q25+Q26+Q27+Q28+Q29","v":0},{"$f":"+R19+R20+R21+R22+R23+R24+R25+R26+R27+R28+R29","v":0}]
[null,null,null,"Activo corrente"]
[null,null,null,"Inventários "]
[null,null,null,"Activos biológicos"]
[null,null,null,"Clientes"]
[null,null,null,"Adiantamentos a fornecedores"]
[null,null,null,"Estado e outros entes públicos"]
[null,null,null,"Accionistas/sócios"]
[null,null,null,"Outras contas a receber"]
[null,null,null,"Diferimentos"]
[null,null,null,"Activos financeiros detidos para negociação"]
[null,null,null,"Outros activos financeiros"]
[null,null,null,"Activos não correntes detidos para venda"]
[null,null,null,"Caixa e depósitos bancários"]
[null,null,null,null,null,null,null,null,null,null,null,null,null,null,null,null,{"$f":"+Q31+Q32+Q33+Q34+Q35+Q36+Q37+Q38+Q39+Q40+Q41+Q42+Q43","v":0},{"$f":"+R31+R32+R33+R34+R35+R36+R37+R38+R39+R40+R41+R42+R43","v":0}]
[null,null,null,"TOTAL DO ACTIVO",null,null,null,null,null,null,null,null,null,null,null,null,{"$f":"+Q30+Q44","v":0},{"$f":"+R30+R44","v":0}]
[]
[null,null,null,"CAPITAL PRÓPRIO E PASSIVO"]
[null,null,null,"CAPITAL PRÓPRIO  "]
[null,null,null,"Capital realizado"]
[null,null,null,"Acções (quotas) próprias "]
[null,null,null,"Outros instrumentos de capital próprio"]
[null,null,null,"Prémios de emissão"]
[null,null,null,"Reservas legais"]
[null,null,null,"Outras reservas"]
[null,null,null,"Resultados transitados"]
[null,null,null,"Ajustamentos em activos financeiros"]
[null,null,null,"Excedentes de revalorização"]
[null,null,null,"Outras variações no capital próprio"]
[null,null,null,"Resultado líquido do período "]
[null,null,null,"Interesses minoritários"]
[null,null,null,"Total do capital próprio",null,null,null,null,null,null,null,null,null,null,null,null,{"$f":"+Q48+Q49+Q50+Q51+Q52+Q53+Q54+Q55+Q56+Q57+Q58+Q59+Q60","v":0},{"$f":"+R48+R49+R50+R51+R52+R53+R54+R55+R56+R57+R58+R59+R60","v":0}]
[]
[null,null,null,"Passivo"]
[null,null,null,"Passivo não corrente"]
[null,null,null,"Provisões"]
[null,null,null,"Financiamentos obtidos"]
[null,null,null,"Responsabilidades por belefícios pós-emprego"]
[null,null,null,"Passivos por impostos diferidos"]
[null,null,null,"Outras contas a pagar"]
[null,null,null,null,null,null,null,null,null,null,null,null,null,null,null,null,{"$f":"+Q63+Q64+Q65+Q66+Q67+Q68+Q69","v":0},{"$f":"+R63+R64+R65+R66+R67+R68+R69","v":0}]
[null,null,null,"Passivo corrente"]
[null,null,null,"Fornecedores"]
[null,null,null,"Adiantamento de clientes"]
[null,null,null,"Estado e outros entes públicos"]
[null,null,null,"Accionistas/sócios"]
[null,null,null,"Financiamentos obtidos"]
[null,null,null,"Outras contas a pagar"]
[null,null,null,"Diferimentos"]
[null,null,null,"Passivos financeiros detidos para negociação"]
[null,null,null,"Outros passivos financeiros"]
[null,null,null,"Passivos não correntes detidos para venda"]
[null,null,null,null,null,null,null,null,null,null,null,null,null,null,null,null,{"$f":"+Q71+Q72+Q73+Q74+Q75+Q76+Q77+Q78+Q79+Q80+Q81","v":0},{"$f":"+R71+R72+R73+R74+R75+R76+R77+R78+R79+R80+R81","v":0}]
[null,null,null,"Total do passivo",null,null,null,null,null,null,null,null,null,null,null,null,{"$f":"+Q70+Q82","v":0},{"$f":"+R70+R82","v":0}]
[null,null,null,"Total do capital próprio e do passivo",null,null,null,null,null,null,null,null,null,null,null,null,{"$f":"+Q61+Q83","v":0},{"$f":"+R61+R83","v":0}]

{"sheet":"Balanço da empresa pós Proj","index":64,"n_rows":84,"n_cols":26,"rows_kept":84,"cut":false,"hidden":false,"merged":[[16,3,16,4],[16,16,16,25],[12,2,12,26],[14,2,14,7],[14,8,14,10],[17,3,17,13],[17,14,17,15],[18,3,18,13],[18,14,18,15],[19,3,19,13],[19,14,19,15],[20,3,20,13],[20,14,20,15],[21,3,21,13],[21,14,21,15],[22,3,22,13],[22,14,22,15],[23,3,23,13],[23,14,23,15],[24,3,24,13],[24,14,24,15],[25,3,25,13],[25,14,25,15],[26,3,26,13],[26,14,26,15],[27,3,27,13],[27,14,27,15],[28,3,28,13],[28,14,28,15],[40,14,40,15],[30,3,30,13],[30,14,30,15],[31,14,31,15],[32,14,32,15],[33,14,33,15],[34,14,34,15],[35,14,35,15],[36,14,36,15],[37,14,37,15],[38,14,38,15],[39,14,39,15],[41,14,41,15],[42,14,42,15],[43,14,43,15],[44,14,44,15],[46,3,46,13],[46,14,46,15],[70,14,70,15],[58,14,58,15],[47,14,47,15],[48,14,48,15],[49,14,49,15],[50,14,50,15],[51,14,51,15],[52,14,52,15],[53,14,53,15],[54,14,54,15],[55,14,55,15],[56,14,56,15],[57,14,57,15],[65,14,65,15],[66,14,66,15],[67,14,67,15],[68,14,68,15],[69,14,69,15],[59,14,59,15],[60,14,60,15],[62,14,62,15],[63,14,63,15],[64,14,64,15],[3,2,3,17],[6,2,6,5],[10,2,10,17],[83,14,83,15],[72,14,72,15],[73,14,73,15],[74,14,74,15],[75,14,75,15],[76,14,76,15],[77,14,77,15],[78,14,78,15],[79,14,79,15],[80,14,80,15],[81,14,81,15],[82,14,82,15],[71,14,71,15]]}
[]
[null,null,"BENEFICIÁRIO:"]
[]
[null,null,{"$f":"+CAPA!C9","v":0}]
[]
[null,null,"NIF:"]
[null,null,{"$f":"+CAPA!C12","v":0}]
[]
[null,null,"SISTEMA DE INCENTIVOS:"]
[]
[null,null,{"$f":"+CAPA!C16","v":"PROCIÊNCIA"}]
[]
[null,null,"BALANÇO DA EMPRESA PÓS PROJECTO"]
[]
[null,null,"Data de Inicio da despesa:"]
[]
[null,null,null,"(euros)",null,null,null,null,null,null,null,null,null,null,null,null,"EMPRESA PÓS PROJETO"]
[null,null,null,"ACTIVO",null,null,null,null,null,null,null,null,null,null,"Notas",null,{"$f":"IF(YEAR($I$15)=\"\",\"\",YEAR($I$15))","v":1900},{"$f":"IF(YEAR($I$15)=\"\",\"\",YEAR($I$15)+1)","v":1901},{"$f":"IF(YEAR($I$15)=\"\",\"\",YEAR($I$15)+2)","v":1902},{"$f":"IF(YEAR($I$15)=\"\",\"\",YEAR($I$15)+3)","v":1903},{"$f":"IF(YEAR($I$15)=\"\",\"\",YEAR($I$15)+4)","v":1904},{"$f":"IF(YEAR($I$15)=\"\",\"\",YEAR($I$15)+5)","v":1905},{"$f":"IF(YEAR($I$15)=\"\",\"\",YEAR($I$15)+6)","v":1906},{"$f":"IF(YEAR($I$15)=\"\",\"\",YEAR($I$15)+7)","v":1907},{"$f":"IF(YEAR($I$15)=\"\",\"\",YEAR($I$15)+8)","v":1908},{"$f":"IF(YEAR($I$15)=\"\",\"\",YEAR($I$15)+9)","v":1909}]
[null,null,null,"Activo não corrente"]
[null,null,null,"activos fixos tangíveis"]
[null,null,null,"Propriedades de investimento"]
[null,null,null,"Goodwill"]
[null,null,null,"Activos Intangíveis"]
[null,null,null,"Activos biológicos"]
[null,null,null,"Participações financeiras - método da equivalência patrimonial"]
[null,null,null,"Participações financeiras - outros métodos"]
[null,null,null,"Accionistas/sócios"]
[null,null,null,"Outros activos financeiros"]
[null,null,null,"Activos por impostos diferidos"]
[null,null,null,null,null,null,null,null,null,null,null,null,null,null,null,null,{"$f":"+Q20+Q21+Q22+Q23+Q24+Q25+Q26+Q27+Q28+Q29","v":0},{"$f":"+R20+R21+R22+R23+R24+R25+R26+R27+R28+R29","v":0},0,0,0,0,0,0,0,0]
[null,null,null,"Activo corrente"]
[null,null,null,"Inventários "]
[null,null,null,"Activos biológicos"]
[null,null,null,"Clientes"]
[null,null,null,"Adiantamentos a fornecedores"]
[null,null,null,"Estado e outros entes públicos"]
[null,null,null,"Accionistas/sócios"]
[null,null,null,"Outras contas a receber"]
[null,null,null,"Diferimentos"]
[null,null,null,"Activos financeiros detidos para negociação"]
[null,null,null,"Outros activos financeiros"]
[null,null,null,"Activos não correntes detidos para venda"]
[null,null,null,"Caixa e depósitos bancários"]
[null,null,null,null,null,null,null,null,null,null,null,null,null,null,null,null,{"$f":"+Q32+Q33+Q34+Q35+Q36+Q37+Q38+Q39+Q40+Q41+Q42+Q43","v":0},{"$f":"+R32+R33+R34+R35+R36+R37+R38+R39+R40+R41+R42+R43","v":0},0,0,0,0,0,0,0,0]
[null,null,null,"TOTAL DO ACTIVO",null,null,null,null,null,null,null,null,null,null,null,null,{"$f":"+Q30+Q44","v":0},0,0,0,0,0,0,0,0,0]
[]
[null,null,null,"CAPITAL PRÓPRIO E PASSIVO"]
[null,null,null,"CAPITAL PRÓPRIO  "]
[null,null,null,"Capital realizado"]
[null,null,null,"Acções (quotas) próprias "]
[null,null,null,"Outros instrumentos de capital próprio"]
[null,null,null,"Prémios de emissão"]
[null,null,null,"Reservas legais"]
[null,null,null,"Outras reservas"]
[null,null,null,"Resultados transitados"]
[null,null,null,"Ajustamentos em activos financeiros"]
[null,null,null,"Excedentes de revalorização"]
[null,null,null,"Outras variações no capital próprio"]
[null,null,null,"Resultado líquido do período "]
[null,null,null,"Interesses minoritários"]
[null,null,null,"Total do capital próprio",null,null,null,null,null,null,null,null,null,null,null,null,{"$f":"+Q48+Q49+Q50+Q51+Q52+Q53+Q54+Q55+Q56+Q57+Q58+Q59+Q60","v":0},0,0,0,0,0,0,0,0,0]
[]
[null,null,null,"Passivo"]
[null,null,null,"Passivo não corrente"]
[null,null,null,"Provisões"]
[null,null,null,"Financiamentos obtidos"]
[null,null,null,"Responsabilidades por belefícios pós-emprego"]
[null,null,null,"Passivos por impostos diferidos"]
[null,null,null,"Outras contas a pagar"]
[null,null,null,null,null,null,null,null,null,null,null,null,null,null,null,null,{"$f":"++Q65+Q66+Q67+Q68+Q69","v":0},{"$f":"+R63+R64+R65+R66+R67+R68+R69","v":0},0,0,0,0,0,0,0,0]
[null,null,null,"Passivo corrente"]
[null,null,null,"Fornecedores"]
[null,null,null,"Adiantamento de clientes"]
[null,null,null,"Estado e outros entes públicos"]
[null,null,null,"Accionistas/sócios"]
[null,null,null,"Financiamentos obtidos"]
[null,null,null,"Outras contas a pagar"]
[null,null,null,"Diferimentos"]
[null,null,null,"Passivos financeiros detidos para negociação"]
[null,null,null,"Outros passivos financeiros"]
[null,null,null,"Passivos não correntes detidos para venda"]
[null,null,null,null,null,null,null,null,null,null,null,null,null,null,null,null,{"$f":"+Q72+Q73+Q74+Q75+Q76+Q77+Q78+Q79+Q80+Q81","v":0},{"$f":"+R72+R73+R74+R75+R76+R77+R78+R79+R80+R81","v":0},0,0,0,0,0,0,0,0]
[null,null,null,"Total do passivo",null,null,null,null,null,null,null,null,null,null,null,null,{"$f":"+Q70+Q82","v":0},0,0,0,0,0,0,0,0,0]
[null,null,null,"Total do capital próprio e do passivo",null,null,null,null,null,null,null,null,null,null,null,null,{"$f":"+Q61+Q83","v":0},0,0,0,0,0,0,0,0,0]

{"sheet":"D. Resultados empresa","index":65,"n_rows":54,"n_cols":18,"rows_kept":54,"cut":false,"hidden":false,"merged":[[51,3,51,13],[51,14,51,15],[52,3,52,13],[52,14,52,15],[53,3,53,13],[53,14,53,15],[3,2,3,17],[6,2,6,5],[10,2,10,17],[12,2,12,18],[15,16,15,17],[19,3,19,13],[22,3,22,13],[16,3,16,13],[17,3,17,13],[17,14,17,15],[18,3,18,13],[26,3,26,13],[27,3,27,13],[28,3,28,13],[23,3,23,13],[24,3,24,13],[25,3,25,13],[32,3,32,13],[33,3,33,13],[34,3,34,13],[29,3,29,13],[30,3,30,13],[31,3,31,13],[38,3,38,13],[39,3,39,13],[40,3,40,13],[35,3,35,13],[36,3,36,13],[37,3,37,13],[41,3,41,13],[43,3,43,13],[43,14,43,15],[45,3,45,13],[45,14,45,15],[49,3,49,13],[49,14,49,15],[46,3,46,13],[46,14,46,15],[47,3,47,13],[47,14,47,15]]}
[]
[null,null,"BENEFICIÁRIO:"]
[]
[null,null,{"$f":"+CAPA!C9","v":0}]
[]
[null,null,"NIF:"]
[null,null,{"$f":"+CAPA!C12","v":0}]
[]
[null,null,"SISTEMA DE INCENTIVOS:"]
[]
[null,null,{"$f":"+CAPA!C16","v":"PROCIÊNCIA"}]
[]
[null,null,"DEMONSTRAÇÃO DE RESULTADOS pré candidatura"]
[null,null,"  "]
[]
[null,null,null,null,null,null,null,null,null,null,null,null,null,null,null,null,"EMPRESA PRÉ CANDIDATURA"]
[null,null,null,null,null,null,null,null,null,null,null,null,null,null,"Notas",null,{"$f":"+'Balanço empresa '!Q18","v":1898},{"$f":"+'Balanço empresa '!R18","v":1899}]
[null,null,null,"RENDIMENTOS E GASTOS"]
[null,null,null,"Vendas e serviços prestados",null,null,null,null,null,null,null,null,null,null,null,"+"]
[null,null,null,"Subsídios à exploração",null,null,null,null,null,null,null,null,null,null,null,"+"]
[null,null,null,"Ganhos/perdas imputados de subsidiárias, associadas e empreendimentos conjuntos",null,null,null,null,null,null,null,null,null,null,null,"+/-"]
[null,null,null,"Variação nos inventários da produção",null,null,null,null,null,null,null,null,null,null,null,"+/-"]
[null,null,null,"Trabalhos para a própria entidade",null,null,null,null,null,null,null,null,null,null,null,"+"]
[null,null,null,"Custo das mercadorias vendidas e das matérias consumidas",null,null,null,null,null,null,null,null,null,null,null,"-"]
[null,null,null,"Fornecimentos e serviços externos",null,null,null,null,null,null,null,null,null,null,null,"-"]
[null,null,null,"Gastos com o pessoal",null,null,null,null,null,null,null,null,null,null,null,"-"]
[null,null,null,"Imparidade de inventários (perdas/reversões)",null,null,null,null,null,null,null,null,null,null,null,"-/+"]
[null,null,null,"Imparidade de dívidas a receber (perdas/reversões)",null,null,null,null,null,null,null,null,null,null,null,"-/+"]
[null,null,null,"Provisões (perdas/reduções)",null,null,null,null,null,null,null,null,null,null,null,"-/+"]
[null,null,null,"Imparidade de investimentos não depreciáveis/amortizações (perdas/reversões)",null,null,null,null,null,null,null,null,null,null,null,"-/+"]
[null,null,null,"Aumentos/reduções de justo valor",null,null,null,null,null,null,null,null,null,null,null,"+/-"]
[null,null,null,"Outros rendimentos e ganhos",null,null,null,null,null,null,null,null,null,null,null,"+"]
[null,null,null,"Outros gastos e perdas",null,null,null,null,null,null,null,null,null,null,null,"-"]
[null,null,null,"Resultados antes de depreciações, gastos de financiamento e impostos",null,null,null,null,null,null,null,null,null,null,null,"=",{"$f":"SUM(Q19:Q33)","v":0},{"$f":"SUM(R19:R33)","v":0}]
[null,null,null,"Gastos/reversões de depreciação e de amortização",null,null,null,null,null,null,null,null,null,null,null,"-/+"]
[null,null,null,"Imparidade de investimentos depreciáveis/amorizáveis (perdas/reversões)",null,null,null,null,null,null,null,null,null,null,null,"-/+"]
[null,null,null,"Resultado operacional (antes de gastos de financiamento e impostos)",null,null,null,null,null,null,null,null,null,null,null,"=",{"$f":"+Q34+Q35+Q36","v":0},{"$f":"+R34+R35+R36","v":0}]
[null,null,null,"Juros e rendimentos similares obtidos",null,null,null,null,null,null,null,null,null,null,null,"+"]
[null,null,null,"Juros e gastos similares suportados",null,null,null,null,null,null,null,null,null,null,null,"-"]
[null,null,null,"Resultado antes de impostos",null,null,null,null,null,null,null,null,null,null,null,"=",{"$f":"+Q37+Q38+Q39","v":0},{"$f":"+R37+R38+R39","v":0}]
[null,null,null,"Imposto sobre o rendimento do período",null,null,null,null,null,null,null,null,null,null,null,"-/+"]
[null,null,null,"Resultado líquido do período",null,null,null,null,null,null,null,null,null,null,null,"=",{"$f":"+Q40+Q41","v":0},{"$f":"+R40+R41","v":0}]
[]
[null,null,null,"Resultado das actividades descontinuadas (líquido de impostos) incluido no resultado líquido do período"]
[]
[null,null,null,"Resultado líquido do período atribuível a: (2)"]
[null,null,null,"Detentores do capital da empresa-mãe"]
[null,null,null,"Interesses minoritários"]
[null,null,null,null,null,null,null,null,null,null,null,null,null,null,null,"=",{"$f":"+Q47+Q48","v":0},{"$f":"+R47+R48","v":0}]
[null,null,null,"Resultado por acção básico"]
[]
[null,null,null,"Outros Dados"]
[null,null,null,"Gastos de Amortização"]
[null,null,null,"Volume de Negócios Internacional "]

{"sheet":"D. Result da empresa pós Proj","index":66,"n_rows":54,"n_cols":26,"rows_kept":54,"cut":false,"hidden":false,"merged":[[51,3,51,13],[51,14,51,15],[52,3,52,13],[52,14,52,15],[53,3,53,13],[53,14,53,15],[3,2,3,17],[6,2,6,5],[10,2,10,17],[12,2,12,26],[15,16,15,25],[19,3,19,13],[22,3,22,13],[16,3,16,13],[17,3,17,13],[17,14,17,15],[18,3,18,13],[26,3,26,13],[27,3,27,13],[28,3,28,13],[23,3,23,13],[24,3,24,13],[25,3,25,13],[32,3,32,13],[33,3,33,13],[34,3,34,13],[29,3,29,13],[30,3,30,13],[31,3,31,13],[38,3,38,13],[39,3,39,13],[40,3,40,13],[35,3,35,13],[36,3,36,13],[37,3,37,13],[41,3,41,13],[43,3,43,13],[43,14,43,15],[45,3,45,13],[45,14,45,15],[49,3,49,13],[49,14,49,15],[46,3,46,13],[46,14,46,15],[47,3,47,13],[47,14,47,15]]}
[]
[null,null,"BENEFICIÁRIO:"]
[]
[null,null,{"$f":"+CAPA!C9","v":0}]
[]
[null,null,"NIF:"]
[null,null,{"$f":"+CAPA!C12","v":0}]
[]
[null,null,"SISTEMA DE INCENTIVOS:"]
[]
[null,null,{"$f":"+CAPA!C16","v":"PROCIÊNCIA"}]
[]
[null,null,"DEMONSTRAÇÃO DE RESULTADOS DA EMPRESA PÓS PROJECTO"]
[null,null,"  "]
[]
[null,null,null,null,null,null,null,null,null,null,null,null,null,null,null,null,"EMPRESA PÓS PROJETO"]
[null,null,null,null,null,null,null,null,null,null,null,null,null,null,"Notas",null,{"$f":"+'Balanço do Projeto'!Q18","v":1900},{"$f":"+'Balanço do Projeto'!R18","v":1901},{"$f":"+'Balanço do Projeto'!S18","v":1902},{"$f":"+'Balanço do Projeto'!T18","v":1903},{"$f":"+'Balanço do Projeto'!U18","v":1904},{"$f":"+'Balanço do Projeto'!V18","v":1905},{"$f":"+'Balanço do Projeto'!W18","v":1906},{"$f":"+'Balanço do Projeto'!X18","v":1907},{"$f":"+'Balanço do Projeto'!Y18","v":1908},{"$f":"+'Balanço do Projeto'!Z18","v":1909}]
[null,null,null,"RENDIMENTOS E GASTOS"]
[null,null,null,"Vendas e serviços prestados",null,null,null,null,null,null,null,null,null,null,null,"+"]
[null,null,null,"Subsídios à exploração",null,null,null,null,null,null,null,null,null,null,null,"+"]
[null,null,null,"Ganhos/perdas imputados de subsidiárias, associadas e empreendimentos conjuntos",null,null,null,null,null,null,null,null,null,null,null,"+/-"]
[null,null,null,"Variação nos inventários da produção",null,null,null,null,null,null,null,null,null,null,null,"+/-"]
[null,null,null,"Trabalhos para a própria entidade",null,null,null,null,null,null,null,null,null,null,null,"+"]
[null,null,null,"Custo das mercadorias vendidas e das matérias consumidas",null,null,null,null,null,null,null,null,null,null,null,"-"]
[null,null,null,"Fornecimentos e serviços externos",null,null,null,null,null,null,null,null,null,null,null,"-"]
[null,null,null,"Gastos com o pessoal",null,null,null,null,null,null,null,null,null,null,null,"-"]
[null,null,null,"Imparidade de inventários (perdas/reversões)",null,null,null,null,null,null,null,null,null,null,null,"-/+"]
[null,null,null,"Imparidade de dívidas a receber (perdas/reversões)",null,null,null,null,null,null,null,null,null,null,null,"-/+"]
[null,null,null,"Provisões (perdas/reduções)",null,null,null,null,null,null,null,null,null,null,null,"-/+"]
[null,null,null,"Imparidade de investimentos não depreciáveis/amortizações (perdas/reversões)",null,null,null,null,null,null,null,null,null,null,null,"-/+"]
[null,null,null,"Aumentos/reduções de justo valor",null,null,null,null,null,null,null,null,null,null,null,"+/-"]
[null,null,null,"Outros rendimentos e ganhos",null,null,null,null,null,null,null,null,null,null,null,"+"]
[null,null,null,"Outros gastos e perdas",null,null,null,null,null,null,null,null,null,null,null,"-"]
[null,null,null,"Resultados antes de depreciações, gastos de financiamento e impostos",null,null,null,null,null,null,null,null,null,null,null,"=",{"$f":"SUM(Q19:Q33)","v":0},{"$f":"SUM(R19:R33)","v":0},0,0,0,0,0,0,0,0]
[null,null,null,"Gastos/reversões de depreciação e de amortização",null,null,null,null,null,null,null,null,null,null,null,"-/+"]
[null,null,null,"Imparidade de investimentos depreciáveis/amorizáveis (perdas/reversões)",null,null,null,null,null,null,null,null,null,null,null,"-/+"]
[null,null,null,"Resultado operacional (antes de gastos de financiamento e impostos)",null,null,null,null,null,null,null,null,null,null,null,"=",{"$f":"+Q34+Q35+Q36","v":0},0,0,0,0,0,0,0,0,0]
[null,null,null,"Juros e rendimentos similares obtidos",null,null,null,null,null,null,null,null,null,null,null,"+"]
[null,null,null,"Juros e gastos similares suportados",null,null,null,null,null,null,null,null,null,null,null,"-"]
[null,null,null,"Resultado antes de impostos",null,null,null,null,null,null,null,null,null,null,null,"=",{"$f":"+Q37+Q38+Q39","v":0},0,0,0,0,0,0,0,0,0]
[null,null,null,"Imposto sobre o rendimento do período",null,null,null,null,null,null,null,null,null,null,null,"-/+"]
[null,null,null,"Resultado líquido do período",null,null,null,null,null,null,null,null,null,null,null,"=",{"$f":"+Q40+Q41","v":0},0,0,0,0,0,0,0,0,0]
[]
[null,null,null,"Resultado das actividades descontinuadas (líquido de impostos) incluido no resultado líquido do período"]
[]
[null,null,null,"Resultado líquido do período atribuível a: (2)"]
[null,null,null,"Detentores do capital da empresa-mãe"]
[null,null,null,"Interesses minoritários"]
[null,null,null,null,null,null,null,null,null,null,null,null,null,null,null,"=",{"$f":"+Q47+Q48","v":0},0,0,0,0,0,0,0,0,0]
[null,null,null,"Resultado por acção básico"]
[]
[null,null,null,"Outros Dados"]
[null,null,null,"Gastos de Amortização"]
[null,null,null,"Volume de Negócios Internacional "]

{"sheet":"Balanço empresa  (Cop1)","index":67,"n_rows":86,"n_cols":18,"rows_kept":86,"cut":false,"hidden":true,"merged":[[84,14,84,15],[85,14,85,15],[10,2,10,18],[14,5,14,18],[78,14,78,15],[79,14,79,15],[80,14,80,15],[81,14,81,15],[82,14,82,15],[83,14,83,15],[72,14,72,15],[73,14,73,15],[74,14,74,15],[75,14,75,15],[76,14,76,15],[77,14,77,15],[71,14,71,15],[59,14,59,15],[60,14,60,15],[61,14,61,15],[62,14,62,15],[64,14,64,15],[65,14,65,15],[66,14,66,15],[67,14,67,15],[68,14,68,15],[69,14,69,15],[70,14,70,15],[58,14,58,15],[48,3,48,13],[48,14,48,15],[49,14,49,15],[50,14,50,15],[51,14,51,15],[52,14,52,15],[53,14,53,15],[54,14,54,15],[55,14,55,15],[56,14,56,15],[57,14,57,15],[46,14,46,15],[35,14,35,15],[36,14,36,15],[37,14,37,15],[38,14,38,15],[39,14,39,15],[40,14,40,15],[41,14,41,15],[42,14,42,15],[43,14,43,15],[44,14,44,15],[45,14,45,15],[34,14,34,15],[27,3,27,13],[27,14,27,15],[28,3,28,13],[28,14,28,15],[29,3,29,13],[29,14,29,15],[30,3,30,13],[30,14,30,15],[32,3,32,13],[32,14,32,15],[33,14,33,15],[24,3,24,13],[24,14,24,15],[25,3,25,13],[25,14,25,15],[26,3,26,13],[26,14,26,15],[21,3,21,13],[21,14,21,15],[22,3,22,13],[22,14,22,15],[23,3,23,13],[23,14,23,15],[18,3,18,4],[18,16,18,17],[19,3,19,13],[19,14,19,15],[20,3,20,13],[20,14,20,15],[3,2,3,17],[6,2,6,5],[12,2,12,18],[16,2,16,7],[16,8,16,10]]}
[]
[null,null,"BENEFICIÁRIO:"]
[]
[null,null,{"$f":"+CAPA!C9","v":0}]
[]
[null,null,"NIF:"]
[null,null,{"$f":"+CAPA!C12","v":0}]
[]
[null,null,"SISTEMA DE INCENTIVOS:"]
[]
[null,null,{"$f":"+CAPA!C16","v":"PROCIÊNCIA"}]
[]
[null,null,"BALANÇO DA EMPRESA Pré candidatura"]
[]
[null,null,"Copromotor1",null,null,{"$f":"+CAPA!G20","v":0}]
[]
[null,null,"Data da candidatura:"]
[]
[null,null,null,"(euros)",null,null,null,null,null,null,null,null,null,null,null,null,"EMPRESA PRÉ CANDIDATURA"]
[null,null,null,"ACTIVO",null,null,null,null,null,null,null,null,null,null,"Notas",null,{"$f":"IF(YEAR($I$17)=\"\",\"\",YEAR($I$17)-2)","v":1898},{"$f":"IF(YEAR($I$17)=\"\",\"\",YEAR($I$17)-1)","v":1899}]
[null,null,null,"Activo não corrente"]
[null,null,null,"activos fixos tangíveis"]
[null,null,null,"Propriedades de investimento"]
[null,null,null,"Goodwill"]
[null,null,null,"Activos Intangíveis"]
[null,null,null,"Activos biológicos"]
[null,null,null,"Participações financeiras - método da equivalência patrimonial"]
[null,null,null,"Participações financeiras - outros métodos"]
[null,null,null,"Accionistas/sócios"]
[null,null,null,"Outros activos financeiros"]
[null,null,null,"Activos por impostos diferidos"]
[null,null,null,null,null,null,null,null,null,null,null,null,null,null,null,null,{"$f":"+Q21+Q22+Q23+Q24+Q25+Q26+Q27+Q28+Q29+Q30+Q31","v":0},{"$f":"+R21+R22+R23+R24+R25+R26+R27+R28+R29+R30+R31","v":0}]
[null,null,null,"Activo corrente"]
[null,null,null,"Inventários "]
[null,null,null,"Activos biológicos"]
[null,null,null,"Clientes"]
[null,null,null,"Adiantamentos a fornecedores"]
[null,null,null,"Estado e outros entes públicos"]
[null,null,null,"Accionistas/sócios"]
[null,null,null,"Outras contas a receber"]
[null,null,null,"Diferimentos"]
[null,null,null,"Activos financeiros detidos para negociação"]
[null,null,null,"Outros activos financeiros"]
[null,null,null,"Activos não correntes detidos para venda"]
[null,null,null,"Caixa e depósitos bancários"]
[null,null,null,null,null,null,null,null,null,null,null,null,null,null,null,null,{"$f":"+Q33+Q34+Q35+Q36+Q37+Q38+Q39+Q40+Q41+Q42+Q43+Q44+Q45","v":0},{"$f":"+R33+R34+R35+R36+R37+R38+R39+R40+R41+R42+R43+R44+R45","v":0}]
[null,null,null,"TOTAL DO ACTIVO",null,null,null,null,null,null,null,null,null,null,null,null,{"$f":"+Q32+Q46","v":0},{"$f":"+R32+R46","v":0}]
[]
[null,null,null,"CAPITAL PRÓPRIO E PASSIVO"]
[null,null,null,"CAPITAL PRÓPRIO  "]
[null,null,null,"Capital realizado"]
[null,null,null,"Acções (quotas) próprias "]
[null,null,null,"Outros instrumentos de capital próprio"]
[null,null,null,"Prémios de emissão"]
[null,null,null,"Reservas legais"]
[null,null,null,"Outras reservas"]
[null,null,null,"Resultados transitados"]
[null,null,null,"Ajustamentos em activos financeiros"]
[null,null,null,"Excedentes de revalorização"]
[null,null,null,"Outras variações no capital próprio"]
[null,null,null,"Resultado líquido do período "]
[null,null,null,"Interesses minoritários"]
[null,null,null,"Total do capital próprio",null,null,null,null,null,null,null,null,null,null,null,null,{"$f":"+Q50+Q51+Q52+Q53+Q54+Q55+Q56+Q57+Q58+Q59+Q60+Q61+Q62","v":0},{"$f":"+R50+R51+R52+R53+R54+R55+R56+R57+R58+R59+R60+R61+R62","v":0}]
[]
[null,null,null,"Passivo"]
[null,null,null,"Passivo não corrente"]
[null,null,null,"Provisões"]
[null,null,null,"Financiamentos obtidos"]
[null,null,null,"Responsabilidades por belefícios pós-emprego"]
[null,null,null,"Passivos por impostos diferidos"]
[null,null,null,"Outras contas a pagar"]
[null,null,null,null,null,null,null,null,null,null,null,null,null,null,null,null,{"$f":"+Q65+Q66+Q67+Q68+Q69+Q70+Q71","v":0},{"$f":"+R65+R66+R67+R68+R69+R70+R71","v":0}]
[null,null,null,"Passivo corrente"]
[null,null,null,"Fornecedores"]
[null,null,null,"Adiantamento de clientes"]
[null,null,null,"Estado e outros entes públicos"]
[null,null,null,"Accionistas/sócios"]
[null,null,null,"Financiamentos obtidos"]
[null,null,null,"Outras contas a pagar"]
[null,null,null,"Diferimentos"]
[null,null,null,"Passivos financeiros detidos para negociação"]
[null,null,null,"Outros passivos financeiros"]
[null,null,null,"Passivos não correntes detidos para venda"]
[null,null,null,null,null,null,null,null,null,null,null,null,null,null,null,null,{"$f":"+Q73+Q74+Q75+Q76+Q77+Q78+Q79+Q80+Q81+Q82+Q83","v":0},{"$f":"+R73+R74+R75+R76+R77+R78+R79+R80+R81+R82+R83","v":0}]
[null,null,null,"Total do passivo",null,null,null,null,null,null,null,null,null,null,null,null,{"$f":"+Q72+Q84","v":0},{"$f":"+R72+R84","v":0}]
[null,null,null,"Total do capital próprio e do passivo",null,null,null,null,null,null,null,null,null,null,null,null,{"$f":"+Q63+Q85","v":0},{"$f":"+R63+R85","v":0}]

{"sheet":"Balanço empresa pós Proj (Cop1)","index":68,"n_rows":86,"n_cols":26,"rows_kept":86,"cut":false,"hidden":true,"merged":[[84,14,84,15],[85,14,85,15],[14,8,14,26],[78,14,78,15],[79,14,79,15],[80,14,80,15],[81,14,81,15],[82,14,82,15],[83,14,83,15],[72,14,72,15],[73,14,73,15],[74,14,74,15],[75,14,75,15],[76,14,76,15],[77,14,77,15],[66,14,66,15],[67,14,67,15],[68,14,68,15],[69,14,69,15],[70,14,70,15],[71,14,71,15],[65,14,65,15],[53,14,53,15],[54,14,54,15],[55,14,55,15],[56,14,56,15],[57,14,57,15],[58,14,58,15],[59,14,59,15],[60,14,60,15],[61,14,61,15],[62,14,62,15],[64,14,64,15],[48,3,48,13],[48,14,48,15],[49,14,49,15],[50,14,50,15],[51,14,51,15],[52,14,52,15],[41,14,41,15],[42,14,42,15],[43,14,43,15],[44,14,44,15],[45,14,45,15],[46,14,46,15],[40,14,40,15],[30,3,30,13],[30,14,30,15],[32,3,32,13],[32,14,32,15],[33,14,33,15],[34,14,34,15],[35,14,35,15],[36,14,36,15],[37,14,37,15],[38,14,38,15],[39,14,39,15],[27,3,27,13],[27,14,27,15],[28,3,28,13],[28,14,28,15],[29,3,29,13],[29,14,29,15],[24,3,24,13],[24,14,24,15],[25,3,25,13],[25,14,25,15],[26,3,26,13],[26,14,26,15],[21,3,21,13],[21,14,21,15],[22,3,22,13],[22,14,22,15],[23,3,23,13],[23,14,23,15],[18,3,18,4],[18,16,18,25],[19,3,19,13],[19,14,19,15],[20,3,20,13],[20,14,20,15],[3,2,3,17],[6,2,6,5],[10,2,10,17],[12,2,12,26],[16,2,16,7],[16,8,16,10]]}
[]
[null,null,"BENEFICIÁRIO:"]
[]
[null,null,{"$f":"+CAPA!C9","v":0}]
[]
[null,null,"NIF:"]
[null,null,{"$f":"+CAPA!C12","v":0}]
[]
[null,null,"SISTEMA DE INCENTIVOS:"]
[]
[null,null,{"$f":"+CAPA!C16","v":"PROCIÊNCIA"}]
[]
[null,null,"BALANÇO DA EMPRESA PÓS PROJECTO"]
[]
[null,null,"Copromotor1",null,null,null,null,null,{"$f":"+'Balanço empresa  (Cop1)'!F15","v":0}]
[]
[null,null,"Data de Inicio da despesa:"]
[]
[null,null,null,"(euros)",null,null,null,null,null,null,null,null,null,null,null,null,"EMPRESA PÓS PROJETO"]
[null,null,null,"ACTIVO",null,null,null,null,null,null,null,null,null,null,"Notas",null,{"$f":"IF(YEAR($I$17)=\"\",\"\",YEAR($I$17))","v":1900},{"$f":"IF(YEAR($I$17)=\"\",\"\",YEAR($I$17)+1)","v":1901},{"$f":"IF(YEAR($I$17)=\"\",\"\",YEAR($I$17)+2)","v":1902},{"$f":"IF(YEAR($I$17)=\"\",\"\",YEAR($I$17)+3)","v":1903},{"$f":"IF(YEAR($I$17)=\"\",\"\",YEAR($I$17)+4)","v":1904},{"$f":"IF(YEAR($I$17)=\"\",\"\",YEAR($I$17)+5)","v":1905},{"$f":"IF(YEAR($I$17)=\"\",\"\",YEAR($I$17)+6)","v":1906},{"$f":"IF(YEAR($I$17)=\"\",\"\",YEAR($I$17)+7)","v":1907},{"$f":"IF(YEAR($I$17)=\"\",\"\",YEAR($I$17)+8)","v":1908},{"$f":"IF(YEAR($I$17)=\"\",\"\",YEAR($I$17)+9)","v":1909}]
[null,null,null,"Activo não corrente"]
[null,null,null,"activos fixos tangíveis"]
[null,null,null,"Propriedades de investimento"]
[null,null,null,"Goodwill"]
[null,null,null,"Activos Intangíveis"]
[null,null,null,"Activos biológicos"]
[null,null,null,"Participações financeiras - método da equivalência patrimonial"]
[null,null,null,"Participações financeiras - outros métodos"]
[null,null,null,"Accionistas/sócios"]
[null,null,null,"Outros activos financeiros"]
[null,null,null,"Activos por impostos diferidos"]
[null,null,null,null,null,null,null,null,null,null,null,null,null,null,null,null,{"$f":"+Q22+Q23+Q24+Q25+Q26+Q27+Q28+Q29+Q30+Q31","v":0},{"$f":"+R22+R23+R24+R25+R26+R27+R28+R29+R30+R31","v":0},0,0,0,0,0,0,0,0]
[null,null,null,"Activo corrente"]
[null,null,null,"Inventários "]
[null,null,null,"Activos biológicos"]
[null,null,null,"Clientes"]
[null,null,null,"Adiantamentos a fornecedores"]
[null,null,null,"Estado e outros entes públicos"]
[null,null,null,"Accionistas/sócios"]
[null,null,null,"Outras contas a receber"]
[null,null,null,"Diferimentos"]
[null,null,null,"Activos financeiros detidos para negociação"]
[null,null,null,"Outros activos financeiros"]
[null,null,null,"Activos não correntes detidos para venda"]
[null,null,null,"Caixa e depósitos bancários"]
[null,null,null,null,null,null,null,null,null,null,null,null,null,null,null,null,{"$f":"+Q34+Q35+Q36+Q37+Q38+Q39+Q40+Q41+Q42+Q43+Q44+Q45","v":0},{"$f":"+R34+R35+R36+R37+R38+R39+R40+R41+R42+R43+R44+R45","v":0},0,0,0,0,0,0,0,0]
[null,null,null,"TOTAL DO ACTIVO",null,null,null,null,null,null,null,null,null,null,null,null,{"$f":"+Q32+Q46","v":0},0,0,0,0,0,0,0,0,0]
[]
[null,null,null,"CAPITAL PRÓPRIO E PASSIVO"]
[null,null,null,"CAPITAL PRÓPRIO  "]
[null,null,null,"Capital realizado"]
[null,null,null,"Acções (quotas) próprias "]
[null,null,null,"Outros instrumentos de capital próprio"]
[null,null,null,"Prémios de emissão"]
[null,null,null,"Reservas legais"]
[null,null,null,"Outras reservas"]
[null,null,null,"Resultados transitados"]
[null,null,null,"Ajustamentos em activos financeiros"]
[null,null,null,"Excedentes de revalorização"]
[null,null,null,"Outras variações no capital próprio"]
[null,null,null,"Resultado líquido do período "]
[null,null,null,"Interesses minoritários"]
[null,null,null,"Total do capital próprio",null,null,null,null,null,null,null,null,null,null,null,null,{"$f":"+Q50+Q51+Q52+Q53+Q54+Q55+Q56+Q57+Q58+Q59+Q60+Q61+Q62","v":0},0,0,0,0,0,0,0,0,0]
[]
[null,null,null,"Passivo"]
[null,null,null,"Passivo não corrente"]
[null,null,null,"Provisões"]
[null,null,null,"Financiamentos obtidos"]
[null,null,null,"Responsabilidades por belefícios pós-emprego"]
[null,null,null,"Passivos por impostos diferidos"]
[null,null,null,"Outras contas a pagar"]
[null,null,null,null,null,null,null,null,null,null,null,null,null,null,null,null,{"$f":"++Q67+Q68+Q69+Q70+Q71","v":0},{"$f":"+R65+R66+R67+R68+R69+R70+R71","v":0},0,0,0,0,0,0,0,0]
[null,null,null,"Passivo corrente"]
[null,null,null,"Fornecedores"]
[null,null,null,"Adiantamento de clientes"]
[null,null,null,"Estado e outros entes públicos"]
[null,null,null,"Accionistas/sócios"]
[null,null,null,"Financiamentos obtidos"]
[null,null,null,"Outras contas a pagar"]
[null,null,null,"Diferimentos"]
[null,null,null,"Passivos financeiros detidos para negociação"]
[null,null,null,"Outros passivos financeiros"]
[null,null,null,"Passivos não correntes detidos para venda"]
[null,null,null,null,null,null,null,null,null,null,null,null,null,null,null,null,{"$f":"+Q74+Q75+Q76+Q77+Q78+Q79+Q80+Q81+Q82+Q83","v":0},{"$f":"+R74+R75+R76+R77+R78+R79+R80+R81+R82+R83","v":0},0,0,0,0,0,0,0,0]
[null,null,null,"Total do passivo",null,null,null,null,null,null,null,null,null,null,null,null,{"$f":"+Q72+Q84","v":0},0,0,0,0,0,0,0,0,0]
[null,null,null,"Total do capital próprio e do passivo",null,null,null,null,null,null,null,null,null,null,null,null,{"$f":"+Q63+Q85","v":0},0,0,0,0,0,0,0,0,0]

{"sheet":"D. Resultados empresa (Cop1)","index":69,"n_rows":56,"n_cols":18,"rows_kept":56,"cut":false,"hidden":true,"merged":[[54,3,54,13],[54,14,54,15],[55,3,55,13],[55,14,55,15],[14,6,14,18],[49,3,49,13],[49,14,49,15],[51,3,51,13],[51,14,51,15],[53,3,53,13],[53,14,53,15],[45,3,45,13],[45,14,45,15],[47,3,47,13],[47,14,47,15],[48,3,48,13],[48,14,48,15],[38,3,38,13],[39,3,39,13],[40,3,40,13],[41,3,41,13],[42,3,42,13],[43,3,43,13],[37,3,37,13],[26,3,26,13],[27,3,27,13],[28,3,28,13],[29,3,29,13],[30,3,30,13],[31,3,31,13],[32,3,32,13],[33,3,33,13],[34,3,34,13],[35,3,35,13],[36,3,36,13],[25,3,25,13],[3,2,3,17],[6,2,6,5],[10,2,10,17],[12,2,12,18],[17,16,17,17],[18,3,18,13],[19,3,19,13],[19,14,19,15],[20,3,20,13],[21,3,21,13],[24,3,24,13]]}
[]
[null,null,"BENEFICIÁRIO:"]
[]
[null,null,{"$f":"+CAPA!C9","v":0}]
[]
[null,null,"NIF:"]
[null,null,{"$f":"+CAPA!C12","v":0}]
[]
[null,null,"SISTEMA DE INCENTIVOS:"]
[]
[null,null,{"$f":"+CAPA!C16","v":"PROCIÊNCIA"}]
[]
[null,null,"DEMONSTRAÇÃO DE RESULTADOS pré candidatura"]
[]
[null,null,"Copromotor1",null,null,null,{"$f":"+'Balanço empresa  (Cop1)'!F15","v":0}]
[null,null,"  "]
[]
[null,null,null,null,null,null,null,null,null,null,null,null,null,null,null,null,"EMPRESA PRÉ CANDIDATURA"]
[null,null,null,null,null,null,null,null,null,null,null,null,null,null,"Notas",null,{"$f":"+'Balanço empresa  (Cop1)'!Q20","v":1898},{"$f":"+'Balanço empresa  (Cop1)'!R20","v":1899}]
[null,null,null,"RENDIMENTOS E GASTOS"]
[null,null,null,"Vendas e serviços prestados",null,null,null,null,null,null,null,null,null,null,null,"+"]
[null,null,null,"Subsídios à exploração",null,null,null,null,null,null,null,null,null,null,null,"+"]
[null,null,null,"Ganhos/perdas imputados de subsidiárias, associadas e empreendimentos conjuntos",null,null,null,null,null,null,null,null,null,null,null,"+/-"]
[null,null,null,"Variação nos inventários da produção",null,null,null,null,null,null,null,null,null,null,null,"+/-"]
[null,null,null,"Trabalhos para a própria entidade",null,null,null,null,null,null,null,null,null,null,null,"+"]
[null,null,null,"Custo das mercadorias vendidas e das matérias consumidas",null,null,null,null,null,null,null,null,null,null,null,"-"]
[null,null,null,"Fornecimentos e serviços externos",null,null,null,null,null,null,null,null,null,null,null,"-"]
[null,null,null,"Gastos com o pessoal",null,null,null,null,null,null,null,null,null,null,null,"-"]
[null,null,null,"Imparidade de inventários (perdas/reversões)",null,null,null,null,null,null,null,null,null,null,null,"-/+"]
[null,null,null,"Imparidade de dívidas a receber (perdas/reversões)",null,null,null,null,null,null,null,null,null,null,null,"-/+"]
[null,null,null,"Provisões (perdas/reduções)",null,null,null,null,null,null,null,null,null,null,null,"-/+"]
[null,null,null,"Imparidade de investimentos não depreciáveis/amortizações (perdas/reversões)",null,null,null,null,null,null,null,null,null,null,null,"-/+"]
[null,null,null,"Aumentos/reduções de justo valor",null,null,null,null,null,null,null,null,null,null,null,"+/-"]
[null,null,null,"Outros rendimentos e ganhos",null,null,null,null,null,null,null,null,null,null,null,"+"]
[null,null,null,"Outros gastos e perdas",null,null,null,null,null,null,null,null,null,null,null,"-"]
[null,null,null,"Resultados antes de depreciações, gastos de financiamento e impostos",null,null,null,null,null,null,null,null,null,null,null,"=",{"$f":"SUM(Q21:Q35)","v":0},{"$f":"SUM(R21:R35)","v":0}]
[null,null,null,"Gastos/reversões de depreciação e de amortização",null,null,null,null,null,null,null,null,null,null,null,"-/+"]
[null,null,null,"Imparidade de investimentos depreciáveis/amorizáveis (perdas/reversões)",null,null,null,null,null,null,null,null,null,null,null,"-/+"]
[null,null,null,"Resultado operacional (antes de gastos de financiamento e impostos)",null,null,null,null,null,null,null,null,null,null,null,"=",{"$f":"+Q36+Q37+Q38","v":0},{"$f":"+R36+R37+R38","v":0}]
[null,null,null,"Juros e rendimentos similares obtidos",null,null,null,null,null,null,null,null,null,null,null,"+"]
[null,null,null,"Juros e gastos similares suportados",null,null,null,null,null,null,null,null,null,null,null,"-"]
[null,null,null,"Resultado antes de impostos",null,null,null,null,null,null,null,null,null,null,null,"=",{"$f":"+Q39+Q40+Q41","v":0},{"$f":"+R39+R40+R41","v":0}]
[null,null,null,"Imposto sobre o rendimento do período",null,null,null,null,null,null,null,null,null,null,null,"-/+"]
[null,null,null,"Resultado líquido do período",null,null,null,null,null,null,null,null,null,null,null,"=",{"$f":"+Q42+Q43","v":0},{"$f":"+R42+R43","v":0}]
[]
[null,null,null,"Resultado das actividades descontinuadas (líquido de impostos) incluido no resultado líquido do período"]
[]
[null,null,null,"Resultado líquido do período atribuível a: (2)"]
[null,null,null,"Detentores do capital da empresa-mãe"]
[null,null,null,"Interesses minoritários"]
[null,null,null,null,null,null,null,null,null,null,null,null,null,null,null,"=",{"$f":"+Q49+Q50","v":0},{"$f":"+R49+R50","v":0}]
[null,null,null,"Resultado por acção básico"]
[]
[null,null,null,"Outros Dados"]
[null,null,null,"Gastos de Amortização"]
[null,null,null,"Volume de Negócios Internacional "]

{"sheet":"D. Result empresa pós Pr (Cop1)","index":70,"n_rows":56,"n_cols":26,"rows_kept":56,"cut":false,"hidden":true,"merged":[[54,3,54,13],[54,14,54,15],[55,3,55,13],[55,14,55,15],[14,6,14,26],[49,3,49,13],[49,14,49,15],[51,3,51,13],[51,14,51,15],[53,3,53,13],[53,14,53,15],[45,3,45,13],[45,14,45,15],[47,3,47,13],[47,14,47,15],[48,3,48,13],[48,14,48,15],[38,3,38,13],[39,3,39,13],[40,3,40,13],[41,3,41,13],[42,3,42,13],[43,3,43,13],[37,3,37,13],[26,3,26,13],[27,3,27,13],[28,3,28,13],[29,3,29,13],[30,3,30,13],[31,3,31,13],[32,3,32,13],[33,3,33,13],[34,3,34,13],[35,3,35,13],[36,3,36,13],[25,3,25,13],[3,2,3,17],[6,2,6,5],[10,2,10,17],[12,2,12,26],[17,16,17,25],[18,3,18,13],[19,3,19,13],[19,14,19,15],[20,3,20,13],[21,3,21,13],[24,3,24,13]]}
[]
[null,null,"BENEFICIÁRIO:"]
[]
[null,null,{"$f":"+CAPA!C9","v":0}]
[]
[null,null,"NIF:"]
[null,null,{"$f":"+CAPA!C12","v":0}]
[]
[null,null,"SISTEMA DE INCENTIVOS:"]
[]
[null,null,{"$f":"+CAPA!C16","v":"PROCIÊNCIA"}]
[]
[null,null,"DEMONSTRAÇÃO DE RESULTADOS DA EMPRESA PÓS PROJECTO"]
[]
[null,null,"Copromotor1",null,null,null,{"$f":"+'Balanço empresa  (Cop1)'!F15","v":0}]
[null,null,"  "]
[]
[null,null,null,null,null,null,null,null,null,null,null,null,null,null,null,null,"EMPRESA PÓS PROJETO"]
[null,null,null,null,null,null,null,null,null,null,null,null,null,null,"Notas",null,{"$f":"+'Balanço do Projeto'!Q18","v":1900},{"$f":"+'Balanço do Projeto'!R18","v":1901},{"$f":"+'Balanço do Projeto'!S18","v":1902},{"$f":"+'Balanço do Projeto'!T18","v":1903},{"$f":"+'Balanço do Projeto'!U18","v":1904},{"$f":"+'Balanço do Projeto'!V18","v":1905},{"$f":"+'Balanço do Projeto'!W18","v":1906},{"$f":"+'Balanço do Projeto'!X18","v":1907},{"$f":"+'Balanço do Projeto'!Y18","v":1908},{"$f":"+'Balanço do Projeto'!Z18","v":1909}]
[null,null,null,"RENDIMENTOS E GASTOS"]
[null,null,null,"Vendas e serviços prestados",null,null,null,null,null,null,null,null,null,null,null,"+"]
[null,null,null,"Subsídios à exploração",null,null,null,null,null,null,null,null,null,null,null,"+"]
[null,null,null,"Ganhos/perdas imputados de subsidiárias, associadas e empreendimentos conjuntos",null,null,null,null,null,null,null,null,null,null,null,"+/-"]
[null,null,null,"Variação nos inventários da produção",null,null,null,null,null,null,null,null,null,null,null,"+/-"]
[null,null,null,"Trabalhos para a própria entidade",null,null,null,null,null,null,null,null,null,null,null,"+"]
[null,null,null,"Custo das mercadorias vendidas e das matérias consumidas",null,null,null,null,null,null,null,null,null,null,null,"-"]
[null,null,null,"Fornecimentos e serviços externos",null,null,null,null,null,null,null,null,null,null,null,"-"]
[null,null,null,"Gastos com o pessoal",null,null,null,null,null,null,null,null,null,null,null,"-"]
[null,null,null,"Imparidade de inventários (perdas/reversões)",null,null,null,null,null,null,null,null,null,null,null,"-/+"]
[null,null,null,"Imparidade de dívidas a receber (perdas/reversões)",null,null,null,null,null,null,null,null,null,null,null,"-/+"]
[null,null,null,"Provisões (perdas/reduções)",null,null,null,null,null,null,null,null,null,null,null,"-/+"]
[null,null,null,"Imparidade de investimentos não depreciáveis/amortizações (perdas/reversões)",null,null,null,null,null,null,null,null,null,null,null,"-/+"]
[null,null,null,"Aumentos/reduções de justo valor",null,null,null,null,null,null,null,null,null,null,null,"+/-"]
[null,null,null,"Outros rendimentos e ganhos",null,null,null,null,null,null,null,null,null,null,null,"+"]
[null,null,null,"Outros gastos e perdas",null,null,null,null,null,null,null,null,null,null,null,"-"]
[null,null,null,"Resultados antes de depreciações, gastos de financiamento e impostos",null,null,null,null,null,null,null,null,null,null,null,"=",{"$f":"SUM(Q21:Q35)","v":0},{"$f":"SUM(R21:R35)","v":0},0,0,0,0,0,0,0,0]
[null,null,null,"Gastos/reversões de depreciação e de amortização",null,null,null,null,null,null,null,null,null,null,null,"-/+"]
[null,null,null,"Imparidade de investimentos depreciáveis/amorizáveis (perdas/reversões)",null,null,null,null,null,null,null,null,null,null,null,"-/+"]
[null,null,null,"Resultado operacional (antes de gastos de financiamento e impostos)",null,null,null,null,null,null,null,null,null,null,null,"=",{"$f":"+Q36+Q37+Q38","v":0},0,0,0,0,0,0,0,0,0]
[null,null,null,"Juros e rendimentos similares obtidos",null,null,null,null,null,null,null,null,null,null,null,"+"]
[null,null,null,"Juros e gastos similares suportados",null,null,null,null,null,null,null,null,null,null,null,"-"]
[null,null,null,"Resultado antes de impostos",null,null,null,null,null,null,null,null,null,null,null,"=",{"$f":"+Q39+Q40+Q41","v":0},0,0,0,0,0,0,0,0,0]
[null,null,null,"Imposto sobre o rendimento do período",null,null,null,null,null,null,null,null,null,null,null,"-/+"]
[null,null,null,"Resultado líquido do período",null,null,null,null,null,null,null,null,null,null,null,"=",{"$f":"+Q42+Q43","v":0},0,0,0,0,0,0,0,0,0]
[]
[null,null,null,"Resultado das actividades descontinuadas (líquido de impostos) incluido no resultado líquido do período"]
[]
[null,null,null,"Resultado líquido do período atribuível a: (2)"]
[null,null,null,"Detentores do capital da empresa-mãe"]
[null,null,null,"Interesses minoritários"]
[null,null,null,null,null,null,null,null,null,null,null,null,null,null,null,"=",{"$f":"+Q49+Q50","v":0},0,0,0,0,0,0,0,0,0]
[null,null,null,"Resultado por acção básico"]
[]
[null,null,null,"Outros Dados"]
[null,null,null,"Gastos de Amortização"]
[null,null,null,"Volume de Negócios Internacional "]

{"sheet":"Balanço empresa  (Cop2)","index":71,"n_rows":86,"n_cols":18,"rows_kept":86,"cut":false,"hidden":true,"merged":[[84,14,84,15],[85,14,85,15],[14,5,14,18],[78,14,78,15],[79,14,79,15],[80,14,80,15],[81,14,81,15],[82,14,82,15],[83,14,83,15],[72,14,72,15],[73,14,73,15],[74,14,74,15],[75,14,75,15],[76,14,76,15],[77,14,77,15],[66,14,66,15],[67,14,67,15],[68,14,68,15],[69,14,69,15],[70,14,70,15],[71,14,71,15],[65,14,65,15],[53,14,53,15],[54,14,54,15],[55,14,55,15],[56,14,56,15],[57,14,57,15],[58,14,58,15],[59,14,59,15],[60,14,60,15],[61,14,61,15],[62,14,62,15],[64,14,64,15],[48,3,48,13],[48,14,48,15],[49,14,49,15],[50,14,50,15],[51,14,51,15],[52,14,52,15],[41,14,41,15],[42,14,42,15],[43,14,43,15],[44,14,44,15],[45,14,45,15],[46,14,46,15],[40,14,40,15],[30,3,30,13],[30,14,30,15],[32,3,32,13],[32,14,32,15],[33,14,33,15],[34,14,34,15],[35,14,35,15],[36,14,36,15],[37,14,37,15],[38,14,38,15],[39,14,39,15],[27,3,27,13],[27,14,27,15],[28,3,28,13],[28,14,28,15],[29,3,29,13],[29,14,29,15],[24,3,24,13],[24,14,24,15],[25,3,25,13],[25,14,25,15],[26,3,26,13],[26,14,26,15],[21,3,21,13],[21,14,21,15],[22,3,22,13],[22,14,22,15],[23,3,23,13],[23,14,23,15],[18,3,18,4],[18,16,18,17],[19,3,19,13],[19,14,19,15],[20,3,20,13],[20,14,20,15],[3,2,3,17],[6,2,6,5],[10,2,10,17],[12,2,12,18],[16,2,16,7],[16,8,16,10]]}
[]
[null,null,"BENEFICIÁRIO:"]
[]
[null,null,{"$f":"+CAPA!C9","v":0}]
[]
[null,null,"NIF:"]
[null,null,{"$f":"+CAPA!C12","v":0}]
[]
[null,null,"SISTEMA DE INCENTIVOS:"]
[]
[null,null,{"$f":"+CAPA!C16","v":"PROCIÊNCIA"}]
[]
[null,null,"BALANÇO DA EMPRESA Pré candidatura"]
[]
[null,null,"Copromotor2",null,null,{"$f":"+CAPA!G21","v":0}]
[]
[null,null,"Data da candidatura:"]
[]
[null,null,null,"(euros)",null,null,null,null,null,null,null,null,null,null,null,null,"EMPRESA PRÉ CANDIDATURA"]
[null,null,null,"ACTIVO",null,null,null,null,null,null,null,null,null,null,"Notas",null,{"$f":"IF(YEAR($I$17)=\"\",\"\",YEAR($I$17)-2)","v":1898},{"$f":"IF(YEAR($I$17)=\"\",\"\",YEAR($I$17)-1)","v":1899}]
[null,null,null,"Activo não corrente"]
[null,null,null,"activos fixos tangíveis"]
[null,null,null,"Propriedades de investimento"]
[null,null,null,"Goodwill"]
[null,null,null,"Activos Intangíveis"]
[null,null,null,"Activos biológicos"]
[null,null,null,"Participações financeiras - método da equivalência patrimonial"]
[null,null,null,"Participações financeiras - outros métodos"]
[null,null,null,"Accionistas/sócios"]
[null,null,null,"Outros activos financeiros"]
[null,null,null,"Activos por impostos diferidos"]
[null,null,null,null,null,null,null,null,null,null,null,null,null,null,null,null,{"$f":"+Q21+Q22+Q23+Q24+Q25+Q26+Q27+Q28+Q29+Q30+Q31","v":0},{"$f":"+R21+R22+R23+R24+R25+R26+R27+R28+R29+R30+R31","v":0}]
[null,null,null,"Activo corrente"]
[null,null,null,"Inventários "]
[null,null,null,"Activos biológicos"]
[null,null,null,"Clientes"]
[null,null,null,"Adiantamentos a fornecedores"]
[null,null,null,"Estado e outros entes públicos"]
[null,null,null,"Accionistas/sócios"]
[null,null,null,"Outras contas a receber"]
[null,null,null,"Diferimentos"]
[null,null,null,"Activos financeiros detidos para negociação"]
[null,null,null,"Outros activos financeiros"]
[null,null,null,"Activos não correntes detidos para venda"]
[null,null,null,"Caixa e depósitos bancários"]
[null,null,null,null,null,null,null,null,null,null,null,null,null,null,null,null,{"$f":"+Q33+Q34+Q35+Q36+Q37+Q38+Q39+Q40+Q41+Q42+Q43+Q44+Q45","v":0},{"$f":"+R33+R34+R35+R36+R37+R38+R39+R40+R41+R42+R43+R44+R45","v":0}]
[null,null,null,"TOTAL DO ACTIVO",null,null,null,null,null,null,null,null,null,null,null,null,{"$f":"+Q32+Q46","v":0},{"$f":"+R32+R46","v":0}]
[]
[null,null,null,"CAPITAL PRÓPRIO E PASSIVO"]
[null,null,null,"CAPITAL PRÓPRIO  "]
[null,null,null,"Capital realizado"]
[null,null,null,"Acções (quotas) próprias "]
[null,null,null,"Outros instrumentos de capital próprio"]
[null,null,null,"Prémios de emissão"]
[null,null,null,"Reservas legais"]
[null,null,null,"Outras reservas"]
[null,null,null,"Resultados transitados"]
[null,null,null,"Ajustamentos em activos financeiros"]
[null,null,null,"Excedentes de revalorização"]
[null,null,null,"Outras variações no capital próprio"]
[null,null,null,"Resultado líquido do período "]
[null,null,null,"Interesses minoritários"]
[null,null,null,"Total do capital próprio",null,null,null,null,null,null,null,null,null,null,null,null,{"$f":"+Q50+Q51+Q52+Q53+Q54+Q55+Q56+Q57+Q58+Q59+Q60+Q61+Q62","v":0},{"$f":"+R50+R51+R52+R53+R54+R55+R56+R57+R58+R59+R60+R61+R62","v":0}]
[]
[null,null,null,"Passivo"]
[null,null,null,"Passivo não corrente"]
[null,null,null,"Provisões"]
[null,null,null,"Financiamentos obtidos"]
[null,null,null,"Responsabilidades por belefícios pós-emprego"]
[null,null,null,"Passivos por impostos diferidos"]
[null,null,null,"Outras contas a pagar"]
[null,null,null,null,null,null,null,null,null,null,null,null,null,null,null,null,{"$f":"+Q65+Q66+Q67+Q68+Q69+Q70+Q71","v":0},{"$f":"+R65+R66+R67+R68+R69+R70+R71","v":0}]
[null,null,null,"Passivo corrente"]
[null,null,null,"Fornecedores"]
[null,null,null,"Adiantamento de clientes"]
[null,null,null,"Estado e outros entes públicos"]
[null,null,null,"Accionistas/sócios"]
[null,null,null,"Financiamentos obtidos"]
[null,null,null,"Outras contas a pagar"]
[null,null,null,"Diferimentos"]
[null,null,null,"Passivos financeiros detidos para negociação"]
[null,null,null,"Outros passivos financeiros"]
[null,null,null,"Passivos não correntes detidos para venda"]
[null,null,null,null,null,null,null,null,null,null,null,null,null,null,null,null,{"$f":"+Q73+Q74+Q75+Q76+Q77+Q78+Q79+Q80+Q81+Q82+Q83","v":0},{"$f":"+R73+R74+R75+R76+R77+R78+R79+R80+R81+R82+R83","v":0}]
[null,null,null,"Total do passivo",null,null,null,null,null,null,null,null,null,null,null,null,{"$f":"+Q72+Q84","v":0},{"$f":"+R72+R84","v":0}]
[null,null,null,"Total do capital próprio e do passivo",null,null,null,null,null,null,null,null,null,null,null,null,{"$f":"+Q63+Q85","v":0},{"$f":"+R63+R85","v":0}]

{"sheet":"Balanço empresa pós Proj (Cop2)","index":72,"n_rows":86,"n_cols":26,"rows_kept":86,"cut":false,"hidden":true,"merged":[[84,14,84,15],[85,14,85,15],[14,8,14,26],[78,14,78,15],[79,14,79,15],[80,14,80,15],[81,14,81,15],[82,14,82,15],[83,14,83,15],[72,14,72,15],[73,14,73,15],[74,14,74,15],[75,14,75,15],[76,14,76,15],[77,14,77,15],[66,14,66,15],[67,14,67,15],[68,14,68,15],[69,14,69,15],[70,14,70,15],[71,14,71,15],[65,14,65,15],[53,14,53,15],[54,14,54,15],[55,14,55,15],[56,14,56,15],[57,14,57,15],[58,14,58,15],[59,14,59,15],[60,14,60,15],[61,14,61,15],[62,14,62,15],[64,14,64,15],[48,3,48,13],[48,14,48,15],[49,14,49,15],[50,14,50,15],[51,14,51,15],[52,14,52,15],[41,14,41,15],[42,14,42,15],[43,14,43,15],[44,14,44,15],[45,14,45,15],[46,14,46,15],[40,14,40,15],[30,3,30,13],[30,14,30,15],[32,3,32,13],[32,14,32,15],[33,14,33,15],[34,14,34,15],[35,14,35,15],[36,14,36,15],[37,14,37,15],[38,14,38,15],[39,14,39,15],[27,3,27,13],[27,14,27,15],[28,3,28,13],[28,14,28,15],[29,3,29,13],[29,14,29,15],[24,3,24,13],[24,14,24,15],[25,3,25,13],[25,14,25,15],[26,3,26,13],[26,14,26,15],[21,3,21,13],[21,14,21,15],[22,3,22,13],[22,14,22,15],[23,3,23,13],[23,14,23,15],[18,3,18,4],[18,16,18,25],[19,3,19,13],[19,14,19,15],[20,3,20,13],[20,14,20,15],[3,2,3,17],[6,2,6,5],[10,2,10,17],[12,2,12,26],[16,2,16,7],[16,8,16,10]]}
[]
[null,null,"BENEFICIÁRIO:"]
[]
[null,null,{"$f":"+CAPA!C9","v":0}]
[]
[null,null,"NIF:"]
[null,null,{"$f":"+CAPA!C12","v":0}]
[]
[null,null,"SISTEMA DE INCENTIVOS:"]
[]
[null,null,{"$f":"+CAPA!C16","v":"PROCIÊNCIA"}]
[]
[null,null,"BALANÇO DA EMPRESA PÓS PROJECTO"]
[]
[null,null,"Copromotor2",null,null,null,null,null,{"$f":"+'Balanço empresa  (Cop2)'!F15","v":0}]
[]
[null,null,"Data de Inicio da despesa:"]
[]
[null,null,null,"(euros)",null,null,null,null,null,null,null,null,null,null,null,null,"EMPRESA PÓS PROJETO"]
[null,null,null,"ACTIVO",null,null,null,null,null,null,null,null,null,null,"Notas",null,{"$f":"IF(YEAR($I$17)=\"\",\"\",YEAR($I$17))","v":1900},{"$f":"IF(YEAR($I$17)=\"\",\"\",YEAR($I$17)+1)","v":1901},{"$f":"IF(YEAR($I$17)=\"\",\"\",YEAR($I$17)+2)","v":1902},{"$f":"IF(YEAR($I$17)=\"\",\"\",YEAR($I$17)+3)","v":1903},{"$f":"IF(YEAR($I$17)=\"\",\"\",YEAR($I$17)+4)","v":1904},{"$f":"IF(YEAR($I$17)=\"\",\"\",YEAR($I$17)+5)","v":1905},{"$f":"IF(YEAR($I$17)=\"\",\"\",YEAR($I$17)+6)","v":1906},{"$f":"IF(YEAR($I$17)=\"\",\"\",YEAR($I$17)+7)","v":1907},{"$f":"IF(YEAR($I$17)=\"\",\"\",YEAR($I$17)+8)","v":1908},{"$f":"IF(YEAR($I$17)=\"\",\"\",YEAR($I$17)+9)","v":1909}]
[null,null,null,"Activo não corrente"]
[null,null,null,"activos fixos tangíveis"]
[null,null,null,"Propriedades de investimento"]
[null,null,null,"Goodwill"]
[null,null,null,"Activos Intangíveis"]
[null,null,null,"Activos biológicos"]
[null,null,null,"Participações financeiras - método da equivalência patrimonial"]
[null,null,null,"Participações financeiras - outros métodos"]
[null,null,null,"Accionistas/sócios"]
[null,null,null,"Outros activos financeiros"]
[null,null,null,"Activos por impostos diferidos"]
[null,null,null,null,null,null,null,null,null,null,null,null,null,null,null,null,{"$f":"+Q22+Q23+Q24+Q25+Q26+Q27+Q28+Q29+Q30+Q31","v":0},{"$f":"+R22+R23+R24+R25+R26+R27+R28+R29+R30+R31","v":0},0,0,0,0,0,0,0,0]
[null,null,null,"Activo corrente"]
[null,null,null,"Inventários "]
[null,null,null,"Activos biológicos"]
[null,null,null,"Clientes"]
[null,null,null,"Adiantamentos a fornecedores"]
[null,null,null,"Estado e outros entes públicos"]
[null,null,null,"Accionistas/sócios"]
[null,null,null,"Outras contas a receber"]
[null,null,null,"Diferimentos"]
[null,null,null,"Activos financeiros detidos para negociação"]
[null,null,null,"Outros activos financeiros"]
[null,null,null,"Activos não correntes detidos para venda"]
[null,null,null,"Caixa e depósitos bancários"]
[null,null,null,null,null,null,null,null,null,null,null,null,null,null,null,null,{"$f":"+Q34+Q35+Q36+Q37+Q38+Q39+Q40+Q41+Q42+Q43+Q44+Q45","v":0},{"$f":"+R34+R35+R36+R37+R38+R39+R40+R41+R42+R43+R44+R45","v":0},0,0,0,0,0,0,0,0]
[null,null,null,"TOTAL DO ACTIVO",null,null,null,null,null,null,null,null,null,null,null,null,{"$f":"+Q32+Q46","v":0},0,0,0,0,0,0,0,0,0]
[]
[null,null,null,"CAPITAL PRÓPRIO E PASSIVO"]
[null,null,null,"CAPITAL PRÓPRIO  "]
[null,null,null,"Capital realizado"]
[null,null,null,"Acções (quotas) próprias "]
[null,null,null,"Outros instrumentos de capital próprio"]
[null,null,null,"Prémios de emissão"]
[null,null,null,"Reservas legais"]
[null,null,null,"Outras reservas"]
[null,null,null,"Resultados transitados"]
[null,null,null,"Ajustamentos em activos financeiros"]
[null,null,null,"Excedentes de revalorização"]
[null,null,null,"Outras variações no capital próprio"]
[null,null,null,"Resultado líquido do período "]
[null,null,null,"Interesses minoritários"]
[null,null,null,"Total do capital próprio",null,null,null,null,null,null,null,null,null,null,null,null,{"$f":"+Q50+Q51+Q52+Q53+Q54+Q55+Q56+Q57+Q58+Q59+Q60+Q61+Q62","v":0},0,0,0,0,0,0,0,0,0]
[]
[null,null,null,"Passivo"]
[null,null,null,"Passivo não corrente"]
[null,null,null,"Provisões"]
[null,null,null,"Financiamentos obtidos"]
[null,null,null,"Responsabilidades por belefícios pós-emprego"]
[null,null,null,"Passivos por impostos diferidos"]
[null,null,null,"Outras contas a pagar"]
[null,null,null,null,null,null,null,null,null,null,null,null,null,null,null,null,{"$f":"++Q67+Q68+Q69+Q70+Q71","v":0},{"$f":"+R65+R66+R67+R68+R69+R70+R71","v":0},0,0,0,0,0,0,0,0]
[null,null,null,"Passivo corrente"]
[null,null,null,"Fornecedores"]
[null,null,null,"Adiantamento de clientes"]
[null,null,null,"Estado e outros entes públicos"]
[null,null,null,"Accionistas/sócios"]
[null,null,null,"Financiamentos obtidos"]
[null,null,null,"Outras contas a pagar"]
[null,null,null,"Diferimentos"]
[null,null,null,"Passivos financeiros detidos para negociação"]
[null,null,null,"Outros passivos financeiros"]
[null,null,null,"Passivos não correntes detidos para venda"]
[null,null,null,null,null,null,null,null,null,null,null,null,null,null,null,null,{"$f":"+Q74+Q75+Q76+Q77+Q78+Q79+Q80+Q81+Q82+Q83","v":0},{"$f":"+R74+R75+R76+R77+R78+R79+R80+R81+R82+R83","v":0},0,0,0,0,0,0,0,0]
[null,null,null,"Total do passivo",null,null,null,null,null,null,null,null,null,null,null,null,{"$f":"+Q72+Q84","v":0},0,0,0,0,0,0,0,0,0]
[null,null,null,"Total do capital próprio e do passivo",null,null,null,null,null,null,null,null,null,null,null,null,{"$f":"+Q63+Q85","v":0},0,0,0,0,0,0,0,0,0]

{"sheet":"D. Resultados empresa (Cop2)","index":73,"n_rows":56,"n_cols":18,"rows_kept":56,"cut":false,"hidden":true,"merged":[[54,3,54,13],[54,14,54,15],[55,3,55,13],[55,14,55,15],[14,6,14,18],[49,3,49,13],[49,14,49,15],[51,3,51,13],[51,14,51,15],[53,3,53,13],[53,14,53,15],[45,3,45,13],[45,14,45,15],[47,3,47,13],[47,14,47,15],[48,3,48,13],[48,14,48,15],[38,3,38,13],[39,3,39,13],[40,3,40,13],[41,3,41,13],[42,3,42,13],[43,3,43,13],[37,3,37,13],[26,3,26,13],[27,3,27,13],[28,3,28,13],[29,3,29,13],[30,3,30,13],[31,3,31,13],[32,3,32,13],[33,3,33,13],[34,3,34,13],[35,3,35,13],[36,3,36,13],[25,3,25,13],[3,2,3,17],[6,2,6,5],[10,2,10,17],[12,2,12,18],[17,16,17,17],[18,3,18,13],[19,3,19,13],[19,14,19,15],[20,3,20,13],[21,3,21,13],[24,3,24,13]]}
[]
[null,null,"BENEFICIÁRIO:"]
[]
[null,null,{"$f":"+CAPA!C9","v":0}]
[]
[null,null,"NIF:"]
[null,null,{"$f":"+CAPA!C12","v":0}]
[]
[null,null,"SISTEMA DE INCENTIVOS:"]
[]
[null,null,{"$f":"+CAPA!C16","v":"PROCIÊNCIA"}]
[]
[null,null,"DEMONSTRAÇÃO DE RESULTADOS pré candidatura"]
[]
[null,null,"Copromotor2",null,null,null,{"$f":"+'Balanço empresa  (Cop2)'!F15","v":0}]
[null,null,"  "]
[]
[null,null,null,null,null,null,null,null,null,null,null,null,null,null,null,null,"EMPRESA PRÉ CANDIDATURA"]
[null,null,null,null,null,null,null,null,null,null,null,null,null,null,"Notas",null,{"$f":"+'Balanço empresa  (Cop2)'!Q20","v":1898},{"$f":"+'Balanço empresa  (Cop2)'!R20","v":1899}]
[null,null,null,"RENDIMENTOS E GASTOS"]
[null,null,null,"Vendas e serviços prestados",null,null,null,null,null,null,null,null,null,null,null,"+"]
[null,null,null,"Subsídios à exploração",null,null,null,null,null,null,null,null,null,null,null,"+"]
[null,null,null,"Ganhos/perdas imputados de subsidiárias, associadas e empreendimentos conjuntos",null,null,null,null,null,null,null,null,null,null,null,"+/-"]
[null,null,null,"Variação nos inventários da produção",null,null,null,null,null,null,null,null,null,null,null,"+/-"]
[null,null,null,"Trabalhos para a própria entidade",null,null,null,null,null,null,null,null,null,null,null,"+"]
[null,null,null,"Custo das mercadorias vendidas e das matérias consumidas",null,null,null,null,null,null,null,null,null,null,null,"-"]
[null,null,null,"Fornecimentos e serviços externos",null,null,null,null,null,null,null,null,null,null,null,"-"]
[null,null,null,"Gastos com o pessoal",null,null,null,null,null,null,null,null,null,null,null,"-"]
[null,null,null,"Imparidade de inventários (perdas/reversões)",null,null,null,null,null,null,null,null,null,null,null,"-/+"]
[null,null,null,"Imparidade de dívidas a receber (perdas/reversões)",null,null,null,null,null,null,null,null,null,null,null,"-/+"]
[null,null,null,"Provisões (perdas/reduções)",null,null,null,null,null,null,null,null,null,null,null,"-/+"]
[null,null,null,"Imparidade de investimentos não depreciáveis/amortizações (perdas/reversões)",null,null,null,null,null,null,null,null,null,null,null,"-/+"]
[null,null,null,"Aumentos/reduções de justo valor",null,null,null,null,null,null,null,null,null,null,null,"+/-"]
[null,null,null,"Outros rendimentos e ganhos",null,null,null,null,null,null,null,null,null,null,null,"+"]
[null,null,null,"Outros gastos e perdas",null,null,null,null,null,null,null,null,null,null,null,"-"]
[null,null,null,"Resultados antes de depreciações, gastos de financiamento e impostos",null,null,null,null,null,null,null,null,null,null,null,"=",{"$f":"SUM(Q21:Q35)","v":0},{"$f":"SUM(R21:R35)","v":0}]
[null,null,null,"Gastos/reversões de depreciação e de amortização",null,null,null,null,null,null,null,null,null,null,null,"-/+"]
[null,null,null,"Imparidade de investimentos depreciáveis/amorizáveis (perdas/reversões)",null,null,null,null,null,null,null,null,null,null,null,"-/+"]
[null,null,null,"Resultado operacional (antes de gastos de financiamento e impostos)",null,null,null,null,null,null,null,null,null,null,null,"=",{"$f":"+Q36+Q37+Q38","v":0},{"$f":"+R36+R37+R38","v":0}]
[null,null,null,"Juros e rendimentos similares obtidos",null,null,null,null,null,null,null,null,null,null,null,"+"]
[null,null,null,"Juros e gastos similares suportados",null,null,null,null,null,null,null,null,null,null,null,"-"]
[null,null,null,"Resultado antes de impostos",null,null,null,null,null,null,null,null,null,null,null,"=",{"$f":"+Q39+Q40+Q41","v":0},{"$f":"+R39+R40+R41","v":0}]
[null,null,null,"Imposto sobre o rendimento do período",null,null,null,null,null,null,null,null,null,null,null,"-/+"]
[null,null,null,"Resultado líquido do período",null,null,null,null,null,null,null,null,null,null,null,"=",{"$f":"+Q42+Q43","v":0},{"$f":"+R42+R43","v":0}]
[]
[null,null,null,"Resultado das actividades descontinuadas (líquido de impostos) incluido no resultado líquido do período"]
[]
[null,null,null,"Resultado líquido do período atribuível a: (2)"]
[null,null,null,"Detentores do capital da empresa-mãe"]
[null,null,null,"Interesses minoritários"]
[null,null,null,null,null,null,null,null,null,null,null,null,null,null,null,"=",{"$f":"+Q49+Q50","v":0},{"$f":"+R49+R50","v":0}]
[null,null,null,"Resultado por acção básico"]
[]
[null,null,null,"Outros Dados"]
[null,null,null,"Gastos de Amortização"]
[null,null,null,"Volume de Negócios Internacional "]

{"sheet":"D. Result empresa pós Pr (Cop2)","index":74,"n_rows":56,"n_cols":26,"rows_kept":56,"cut":false,"hidden":true,"merged":[[54,3,54,13],[54,14,54,15],[55,3,55,13],[55,14,55,15],[14,7,14,26],[49,3,49,13],[49,14,49,15],[51,3,51,13],[51,14,51,15],[53,3,53,13],[53,14,53,15],[45,3,45,13],[45,14,45,15],[47,3,47,13],[47,14,47,15],[48,3,48,13],[48,14,48,15],[38,3,38,13],[39,3,39,13],[40,3,40,13],[41,3,41,13],[42,3,42,13],[43,3,43,13],[37,3,37,13],[26,3,26,13],[27,3,27,13],[28,3,28,13],[29,3,29,13],[30,3,30,13],[31,3,31,13],[32,3,32,13],[33,3,33,13],[34,3,34,13],[35,3,35,13],[36,3,36,13],[25,3,25,13],[3,2,3,17],[6,2,6,5],[10,2,10,17],[12,2,12,26],[17,16,17,25],[18,3,18,13],[19,3,19,13],[19,14,19,15],[20,3,20,13],[21,3,21,13],[24,3,24,13]]}
[]
[null,null,"BENEFICIÁRIO:"]
[]
[null,null,{"$f":"+CAPA!C9","v":0}]
[]
[null,null,"NIF:"]
[null,null,{"$f":"+CAPA!C12","v":0}]
[]
[null,null,"SISTEMA DE INCENTIVOS:"]
[]
[null,null,{"$f":"+CAPA!C16","v":"PROCIÊNCIA"}]
[]
[null,null,"DEMONSTRAÇÃO DE RESULTADOS DA EMPRESA PÓS PROJECTO"]
[]
[null,null,"Copromotor2",null,null,null,null,{"$f":"+'Balanço empresa  (Cop2)'!F15","v":0}]
[null,null,"  "]
[]
[null,null,null,null,null,null,null,null,null,null,null,null,null,null,null,null,"EMPRESA PÓS PROJETO"]
[null,null,null,null,null,null,null,null,null,null,null,null,null,null,"Notas",null,{"$f":"+'Balanço do Projeto'!Q18","v":1900},{"$f":"+'Balanço do Projeto'!R18","v":1901},{"$f":"+'Balanço do Projeto'!S18","v":1902},{"$f":"+'Balanço do Projeto'!T18","v":1903},{"$f":"+'Balanço do Projeto'!U18","v":1904},{"$f":"+'Balanço do Projeto'!V18","v":1905},{"$f":"+'Balanço do Projeto'!W18","v":1906},{"$f":"+'Balanço do Projeto'!X18","v":1907},{"$f":"+'Balanço do Projeto'!Y18","v":1908},{"$f":"+'Balanço do Projeto'!Z18","v":1909}]
[null,null,null,"RENDIMENTOS E GASTOS"]
[null,null,null,"Vendas e serviços prestados",null,null,null,null,null,null,null,null,null,null,null,"+"]
[null,null,null,"Subsídios à exploração",null,null,null,null,null,null,null,null,null,null,null,"+"]
[null,null,null,"Ganhos/perdas imputados de subsidiárias, associadas e empreendimentos conjuntos",null,null,null,null,null,null,null,null,null,null,null,"+/-"]
[null,null,null,"Variação nos inventários da produção",null,null,null,null,null,null,null,null,null,null,null,"+/-"]
[null,null,null,"Trabalhos para a própria entidade",null,null,null,null,null,null,null,null,null,null,null,"+"]
[null,null,null,"Custo das mercadorias vendidas e das matérias consumidas",null,null,null,null,null,null,null,null,null,null,null,"-"]
[null,null,null,"Fornecimentos e serviços externos",null,null,null,null,null,null,null,null,null,null,null,"-"]
[null,null,null,"Gastos com o pessoal",null,null,null,null,null,null,null,null,null,null,null,"-"]
[null,null,null,"Imparidade de inventários (perdas/reversões)",null,null,null,null,null,null,null,null,null,null,null,"-/+"]
[null,null,null,"Imparidade de dívidas a receber (perdas/reversões)",null,null,null,null,null,null,null,null,null,null,null,"-/+"]
[null,null,null,"Provisões (perdas/reduções)",null,null,null,null,null,null,null,null,null,null,null,"-/+"]
[null,null,null,"Imparidade de investimentos não depreciáveis/amortizações (perdas/reversões)",null,null,null,null,null,null,null,null,null,null,null,"-/+"]
[null,null,null,"Aumentos/reduções de justo valor",null,null,null,null,null,null,null,null,null,null,null,"+/-"]
[null,null,null,"Outros rendimentos e ganhos",null,null,null,null,null,null,null,null,null,null,null,"+"]
[null,null,null,"Outros gastos e perdas",null,null,null,null,null,null,null,null,null,null,null,"-"]
[null,null,null,"Resultados antes de depreciações, gastos de financiamento e impostos",null,null,null,null,null,null,null,null,null,null,null,"=",{"$f":"SUM(Q21:Q35)","v":0},{"$f":"SUM(R21:R35)","v":0},0,0,0,0,0,0,0,0]
[null,null,null,"Gastos/reversões de depreciação e de amortização",null,null,null,null,null,null,null,null,null,null,null,"-/+"]
[null,null,null,"Imparidade de investimentos depreciáveis/amorizáveis (perdas/reversões)",null,null,null,null,null,null,null,null,null,null,null,"-/+"]
[null,null,null,"Resultado operacional (antes de gastos de financiamento e impostos)",null,null,null,null,null,null,null,null,null,null,null,"=",{"$f":"+Q36+Q37+Q38","v":0},0,0,0,0,0,0,0,0,0]
[null,null,null,"Juros e rendimentos similares obtidos",null,null,null,null,null,null,null,null,null,null,null,"+"]
[null,null,null,"Juros e gastos similares suportados",null,null,null,null,null,null,null,null,null,null,null,"-"]
[null,null,null,"Resultado antes de impostos",null,null,null,null,null,null,null,null,null,null,null,"=",{"$f":"+Q39+Q40+Q41","v":0},0,0,0,0,0,0,0,0,0]
[null,null,null,"Imposto sobre o rendimento do período",null,null,null,null,null,null,null,null,null,null,null,"-/+"]
[null,null,null,"Resultado líquido do período",null,null,null,null,null,null,null,null,null,null,null,"=",{"$f":"+Q42+Q43","v":0},0,0,0,0,0,0,0,0,0]
[]
[null,null,null,"Resultado das actividades descontinuadas (líquido de impostos) incluido no resultado líquido do período"]
[]
[null,null,null,"Resultado líquido do período atribuível a: (2)"]
[null,null,null,"Detentores do capital da empresa-mãe"]
[null,null,null,"Interesses minoritários"]
[null,null,null,null,null,null,null,null,null,null,null,null,null,null,null,"=",{"$f":"+Q49+Q50","v":0},0,0,0,0,0,0,0,0,0]
[null,null,null,"Resultado por acção básico"]
[]
[null,null,null,"Outros Dados"]
[null,null,null,"Gastos de Amortização"]
[null,null,null,"Volume de Negócios Internacional "]

{"sheet":"Balanço do Projeto","index":75,"n_rows":84,"n_cols":26,"rows_kept":84,"cut":false,"hidden":false,"merged":[[16,3,16,4],[16,16,16,25],[14,2,14,7],[14,8,14,10],[17,3,17,13],[17,14,17,15],[18,3,18,13],[18,14,18,15],[19,3,19,13],[19,14,19,15],[20,3,20,13],[20,14,20,15],[21,3,21,13],[21,14,21,15],[22,3,22,13],[22,14,22,15],[23,3,23,13],[23,14,23,15],[24,3,24,13],[24,14,24,15],[25,3,25,13],[25,14,25,15],[26,3,26,13],[26,14,26,15],[27,3,27,13],[27,14,27,15],[28,3,28,13],[28,14,28,15],[40,14,40,15],[30,3,30,13],[30,14,30,15],[31,14,31,15],[32,14,32,15],[33,14,33,15],[34,14,34,15],[35,14,35,15],[36,14,36,15],[37,14,37,15],[38,14,38,15],[39,14,39,15],[41,14,41,15],[42,14,42,15],[43,14,43,15],[44,14,44,15],[46,3,46,13],[46,14,46,15],[58,14,58,15],[47,14,47,15],[48,14,48,15],[49,14,49,15],[50,14,50,15],[51,14,51,15],[52,14,52,15],[53,14,53,15],[54,14,54,15],[55,14,55,15],[56,14,56,15],[57,14,57,15],[71,14,71,15],[59,14,59,15],[60,14,60,15],[62,14,62,15],[63,14,63,15],[64,14,64,15],[65,14,65,15],[66,14,66,15],[67,14,67,15],[68,14,68,15],[69,14,69,15],[70,14,70,15],[3,2,3,17],[6,2,6,5],[10,2,10,17],[12,2,12,26],[83,14,83,15],[72,14,72,15],[73,14,73,15],[74,14,74,15],[75,14,75,15],[76,14,76,15],[77,14,77,15],[78,14,78,15],[79,14,79,15],[80,14,80,15],[81,14,81,15],[82,14,82,15]]}
[]
[null,null,"BENEFICIÁRIO:"]
[]
[null,null,{"$f":"+CAPA!C9","v":0}]
[]
[null,null,"NIF:"]
[null,null,{"$f":"+CAPA!C12","v":0}]
[]
[null,null,"SISTEMA DE INCENTIVOS:"]
[]
[null,null,{"$f":"+CAPA!C16","v":"PROCIÊNCIA"}]
[]
[null,null,"BALANÇO DO PROJETO"]
[]
[null,null,"Data de Inicio da despesa:",null,null,null,null,null,{"$f":"+'Balanço da empresa pós Proj'!I15:K15","v":"00:00:00"}]
[]
[null,null,null,"(euros)",null,null,null,null,null,null,null,null,null,null,null,null,"Projecto"]
[null,null,null,"ACTIVO",null,null,null,null,null,null,null,null,null,null,"Notas",null,{"$f":"IF(YEAR($I$15)=\"\",\"\",YEAR($I$15))","v":1900},{"$f":"IF(YEAR($I$15)=\"\",\"\",YEAR($I$15)+1)","v":1901},{"$f":"IF(YEAR($I$15)=\"\",\"\",YEAR($I$15)+2)","v":1902},{"$f":"IF(YEAR($I$15)=\"\",\"\",YEAR($I$15)+3)","v":1903},{"$f":"IF(YEAR($I$15)=\"\",\"\",YEAR($I$15)+4)","v":1904},{"$f":"IF(YEAR($I$15)=\"\",\"\",YEAR($I$15)+5)","v":1905},{"$f":"IF(YEAR($I$15)=\"\",\"\",YEAR($I$15)+6)","v":1906},{"$f":"IF(YEAR($I$15)=\"\",\"\",YEAR($I$15)+7)","v":1907},{"$f":"IF(YEAR($I$15)=\"\",\"\",YEAR($I$15)+8)","v":1908},{"$f":"IF(YEAR($I$15)=\"\",\"\",YEAR($I$15)+9)","v":1909}]
[null,null,null,"Activo não corrente"]
[null,null,null,"activos fixos tangíveis"]
[null,null,null,"Propriedades de investimento"]
[null,null,null,"Goodwill"]
[null,null,null,"Activos Intangíveis"]
[null,null,null,"Activos biológicos"]
[null,null,null,"Participações financeiras - método da equivalência patrimonial"]
[null,null,null,"Participações financeiras - outros métodos"]
[null,null,null,"Accionistas/sócios"]
[null,null,null,"Outros activos financeiros"]
[null,null,null,"Activos por impostos diferidos"]
[null,null,null,null,null,null,null,null,null,null,null,null,null,null,null,null,{"$f":"+Q20+Q21+Q22+Q23+Q24+Q25+Q26+Q27+Q28+Q29","v":0},{"$f":"+R20+R21+R22+R23+R24+R25+R26+R27+R28+R29","v":0},0,0,0,0,0,0,0,0]
[null,null,null,"Activo corrente"]
[null,null,null,"Inventários "]
[null,null,null,"Activos biológicos"]
[null,null,null,"Clientes"]
[null,null,null,"Adiantamentos a fornecedores"]
[null,null,null,"Estado e outros entes públicos"]
[null,null,null,"Accionistas/sócios"]
[null,null,null,"Outras contas a receber"]
[null,null,null,"Diferimentos"]
[null,null,null,"Activos financeiros detidos para negociação"]
[null,null,null,"Outros activos financeiros"]
[null,null,null,"Activos não correntes detidos para venda"]
[null,null,null,"Caixa e depósitos bancários"]
[null,null,null,null,null,null,null,null,null,null,null,null,null,null,null,null,{"$f":"+Q32+Q33+Q34+Q35+Q36+Q37+Q38+Q39+Q40+Q41+Q42+Q43","v":0},{"$f":"+R32+R33+R34+R35+R36+R37+R38+R39+R40+R41+R42+R43","v":0},0,0,0,0,0,0,0,0]
[null,null,null,"TOTAL DO ACTIVO",null,null,null,null,null,null,null,null,null,null,null,null,{"$f":"+Q30+Q44","v":0},0,0,0,0,0,0,0,0,0]
[]
[null,null,null,"CAPITAL PRÓPRIO E PASSIVO"]
[null,null,null,"CAPITAL PRÓPRIO  "]
[null,null,null,"Capital realizado"]
[null,null,null,"Acções (quotas) próprias "]
[null,null,null,"Outros instrumentos de capital próprio"]
[null,null,null,"Prémios de emissão"]
[null,null,null,"Reservas legais"]
[null,null,null,"Outras reservas"]
[null,null,null,"Resultados transitados"]
[null,null,null,"Ajustamentos em activos financeiros"]
[null,null,null,"Excedentes de revalorização"]
[null,null,null,"Outras variações no capital próprio"]
[null,null,null,"Resultado líquido do período "]
[null,null,null,"Interesses minoritários"]
[null,null,null,"Total do capital próprio",null,null,null,null,null,null,null,null,null,null,null,null,{"$f":"+Q49+Q50+Q51+Q52+Q53+Q54+Q55+Q56+Q57+Q58+Q59+Q60","v":0},{"$f":"+R49+R50+R51+R52+R53+R54+R55+R56+R57+R58+R59+R60","v":0},0,0,0,0,0,0,0,0]
[]
[null,null,null,"Passivo"]
[null,null,null,"Passivo não corrente"]
[null,null,null,"Provisões"]
[null,null,null,"Financiamentos obtidos"]
[null,null,null,"Responsabilidades por belefícios pós-emprego"]
[null,null,null,"Passivos por impostos diferidos"]
[null,null,null,"Outras contas a pagar"]
[null,null,null,null,null,null,null,null,null,null,null,null,null,null,null,null,{"$f":"++Q65+Q66+Q67+Q68+Q69","v":0},{"$f":"++R65+R66+R67+R68+R69","v":0},0,0,0,0,0,0,0,0]
[null,null,null,"Passivo corrente"]
[null,null,null,"Fornecedores"]
[null,null,null,"Adiantamento de clientes"]
[null,null,null,"Estado e outros entes públicos"]
[null,null,null,"Accionistas/sócios"]
[null,null,null,"Financiamentos obtidos"]
[null,null,null,"Outras contas a pagar"]
[null,null,null,"Diferimentos"]
[null,null,null,"Passivos financeiros detidos para negociação"]
[null,null,null,"Outros passivos financeiros"]
[null,null,null,"Passivos não correntes detidos para venda"]
[null,null,null,null,null,null,null,null,null,null,null,null,null,null,null,null,{"$f":"+Q72+Q73+Q74+Q75+Q76+Q77+Q78+Q79+Q80+Q81","v":0},{"$f":"+R72+R73+R74+R75+R76+R77+R78+R79+R80+R81","v":0},0,0,0,0,0,0,0,0]
[null,null,null,"Total do passivo",null,null,null,null,null,null,null,null,null,null,null,null,{"$f":"+Q70+Q82","v":0},0,0,0,0,0,0,0,0,0]
[null,null,null,"Total do capital próprio e do passivo",null,null,null,null,null,null,null,null,null,null,null,null,{"$f":"+Q61+Q83","v":0},0,0,0,0,0,0,0,0,0]

{"sheet":"D. Resultados do Projeto","index":76,"n_rows":50,"n_cols":26,"rows_kept":50,"cut":false,"hidden":false,"merged":[[22,3,22,13],[23,3,23,13],[18,3,18,13],[19,3,19,13],[12,2,12,26],[15,16,15,25],[16,3,16,13],[17,3,17,13],[17,14,17,15],[32,3,32,13],[27,3,27,13],[28,3,28,13],[29,3,29,13],[24,3,24,13],[25,3,25,13],[26,3,26,13],[49,3,49,13],[49,14,49,15],[43,3,43,13],[43,14,43,15],[45,3,45,13],[45,14,45,15],[46,3,46,13],[46,14,46,15],[3,2,3,17],[6,2,6,5],[10,2,10,17],[47,3,47,13],[47,14,47,15],[39,3,39,13],[40,3,40,13],[41,3,41,13],[36,3,36,13],[37,3,37,13],[38,3,38,13],[33,3,33,13],[34,3,34,13],[35,3,35,13],[30,3,30,13],[31,3,31,13]]}
[]
[null,null,"BENEFICIÁRIO:"]
[]
[null,null,{"$f":"+CAPA!C9","v":0}]
[]
[null,null,"NIF:"]
[null,null,{"$f":"+CAPA!C12","v":0}]
[]
[null,null,"SISTEMA DE INCENTIVOS:"]
[]
[null,null,{"$f":"+CAPA!C16","v":"PROCIÊNCIA"}]
[]
[null,null,"DEMONSTRAÇÃO DE RESULTADOS DO PROJECTO"]
[null,null,"  "]
[]
[null,null,null,null,null,null,null,null,null,null,null,null,null,null,null,null,"Projecto"]
[null,null,null,null,null,null,null,null,null,null,null,null,null,null,"Notas",null,{"$f":"+'Balanço do Projeto'!Q18","v":1900},{"$f":"+'Balanço do Projeto'!R18","v":1901},{"$f":"+'Balanço do Projeto'!S18","v":1902},{"$f":"+'Balanço do Projeto'!T18","v":1903},{"$f":"+'Balanço do Projeto'!U18","v":1904},{"$f":"+'Balanço do Projeto'!V18","v":1905},{"$f":"+'Balanço do Projeto'!W18","v":1906},{"$f":"+'Balanço do Projeto'!X18","v":1907},{"$f":"+'Balanço do Projeto'!Y18","v":1908},{"$f":"+'Balanço do Projeto'!Z18","v":1909}]
[null,null,null,"RENDIMENTOS E GASTOS"]
[null,null,null,"Vendas e serviços prestados",null,null,null,null,null,null,null,null,null,null,null,"+"]
[null,null,null,"Subsídios à exploração",null,null,null,null,null,null,null,null,null,null,null,"+"]
[null,null,null,"Ganhos/perdas imputados de subsidiárias, associadas e empreendimentos conjuntos",null,null,null,null,null,null,null,null,null,null,null,"+/-"]
[null,null,null,"Variação nos inventários da produção",null,null,null,null,null,null,null,null,null,null,null,"+/-"]
[null,null,null,"Trabalhos para a própria entidade",null,null,null,null,null,null,null,null,null,null,null,"+"]
[null,null,null,"Custo das mercadorias vendidas e das matérias consumidas",null,null,null,null,null,null,null,null,null,null,null,"-"]
[null,null,null,"Fornecimentos e serviços externos",null,null,null,null,null,null,null,null,null,null,null,"-"]
[null,null,null,"Gastos com o pessoal",null,null,null,null,null,null,null,null,null,null,null,"-"]
[null,null,null,"Imparidade de inventários (perdas/reversões)",null,null,null,null,null,null,null,null,null,null,null,"-/+"]
[null,null,null,"Imparidade de dívidas a receber (perdas/reversões)",null,null,null,null,null,null,null,null,null,null,null,"-/+"]
[null,null,null,"Provisões (perdas/reduções)",null,null,null,null,null,null,null,null,null,null,null,"-/+"]
[null,null,null,"Imparidade de investimentos não depreciáveis/amortizações (perdas/reversões)",null,null,null,null,null,null,null,null,null,null,null,"-/+"]
[null,null,null,"Aumentos/reduções de justo valor",null,null,null,null,null,null,null,null,null,null,null,"+/-"]
[null,null,null,"Outros rendimentos e ganhos",null,null,null,null,null,null,null,null,null,null,null,"+"]
[null,null,null,"Outros gastos e perdas",null,null,null,null,null,null,null,null,null,null,null,"-"]
[null,null,null,"Resultados antes de depreciações, gastos de financiamento e impostos",null,null,null,null,null,null,null,null,null,null,null,"=",{"$f":"SUM(Q19:Q33)","v":0},{"$f":"SUM(R19:R33)","v":0},0,0,0,0,0,0,0,0]
[null,null,null,"Gastos/reversões de depreciação e de amortização",null,null,null,null,null,null,null,null,null,null,null,"-/+"]
[null,null,null,"Imparidade de investimentos depreciáveis/amorizáveis (perdas/reversões)",null,null,null,null,null,null,null,null,null,null,null,"-/+"]
[null,null,null,"Resultado operacional (antes de gastos de financiamento e impostos)",null,null,null,null,null,null,null,null,null,null,null,"=",{"$f":"+Q34+Q35+Q36","v":0},0,0,0,0,0,0,0,0,0]
[null,null,null,"Juros e rendimentos similares obtidos",null,null,null,null,null,null,null,null,null,null,null,"+"]
[null,null,null,"Juros e gastos similares suportados",null,null,null,null,null,null,null,null,null,null,null,"-"]
[null,null,null,"Resultado antes de impostos",null,null,null,null,null,null,null,null,null,null,null,"=",{"$f":"+Q37+Q38+Q39","v":0},0,0,0,0,0,0,0,0,0]
[null,null,null,"Imposto sobre o rendimento do período",null,null,null,null,null,null,null,null,null,null,null,"-/+"]
[null,null,null,"Resultado líquido do período",null,null,null,null,null,null,null,null,null,null,null,"=",{"$f":"+Q40+Q41","v":0},0,0,0,0,0,0,0,0,0]
[]
[null,null,null,"Resultado das actividades descontinuadas (líquido de impostos) incluido no resultado líquido do período"]
[]
[null,null,null,"Resultado líquido do período atribuível a: (2)"]
[null,null,null,"Detentores do capital da empresa-mãe"]
[null,null,null,"Interesses minoritários"]
[null,null,null,null,null,null,null,null,null,null,null,null,null,null,null,"=",{"$f":"+Q47+Q48","v":0},0,0,0,0,0,0,0,0,0]
[null,null,null,"Resultado por acção básico"]

{"sheet":"BalançoEntNEmpr","index":77,"n_rows":85,"n_cols":18,"rows_kept":85,"cut":false,"hidden":true,"merged":[[3,2,3,17],[6,2,6,5],[10,2,10,17],[12,2,12,18],[15,2,15,7],[15,8,15,10],[14,6,14,18],[17,3,17,4],[17,16,17,17],[18,3,18,13],[18,14,18,15],[19,3,19,13],[19,14,19,15],[20,3,20,13],[20,14,20,15],[21,3,21,13],[21,14,21,15],[22,3,22,13],[22,14,22,15],[23,3,23,13],[23,14,23,15],[24,3,24,13],[24,14,24,15],[25,3,25,13],[25,14,25,15],[26,3,26,13],[26,14,26,15],[27,3,27,13],[27,14,27,15],[28,3,28,13],[28,14,28,15],[39,14,39,15],[29,3,29,13],[29,14,29,15],[31,3,31,13],[31,14,31,15],[32,14,32,15],[33,14,33,15],[34,14,34,15],[35,14,35,15],[36,14,36,15],[37,14,37,15],[38,14,38,15],[51,14,51,15],[40,14,40,15],[41,14,41,15],[42,14,42,15],[43,14,43,15],[44,14,44,15],[45,14,45,15],[47,3,47,13],[47,14,47,15],[48,14,48,15],[49,14,49,15],[50,14,50,15],[64,14,64,15],[52,14,52,15],[53,14,53,15],[54,14,54,15],[55,14,55,15],[56,14,56,15],[57,14,57,15],[58,14,58,15],[59,14,59,15],[60,14,60,15],[61,14,61,15],[63,14,63,15],[76,14,76,15],[65,14,65,15],[66,14,66,15],[67,14,67,15],[68,14,68,15],[69,14,69,15],[70,14,70,15],[71,14,71,15],[72,14,72,15],[73,14,73,15],[74,14,74,15],[75,14,75,15],[83,14,83,15],[84,14,84,15],[77,14,77,15],[78,14,78,15],[79,14,79,15],[80,14,80,15],[81,14,81,15],[82,14,82,15]]}
[]
[null,null,"BENEFICIÁRIO:"]
[]
[null,null,{"$f":"+CAPA!C9","v":0}]
[]
[null,null,"NIF:"]
[null,null,{"$f":"+CAPA!C12","v":0}]
[]
[null,null,"SISTEMA DE INCENTIVOS:"]
[]
[null,null,{"$f":"+CAPA!C16","v":"PROCIÊNCIA"}]
[]
[null,null,"BALANÇO Entidade não empresarial do SRDITI Pré candidatura"]
[]
[null,null,"Copromotor1",null,null,null,{"$f":"+CAPA!G20","v":0}]
[null,null,"Data da candidatura:",null,null,null,null,null,{"$f":"+'Balanço empresa '!I15:K15","v":"00:00:00"}]
[]
[null,null,null,"(euros)",null,null,null,null,null,null,null,null,null,null,null,null,"EMPRESA PRÉ CANDIDATURA"]
[null,null,null,"ACTIVO",null,null,null,null,null,null,null,null,null,null,"Notas",null,{"$f":"IF(YEAR($I$16)=\"\",\"\",YEAR($I$16)-2)","v":1898},{"$f":"IF(YEAR($I$16)=\"\",\"\",YEAR($I$16)-1)","v":1899}]
[null,null,null,"Activo não corrente"]
[null,null,null,"activos fixos tangíveis"]
[null,null,null,"Propriedades de investimento"]
[null,null,null,"Goodwill"]
[null,null,null,"Activos Intangíveis"]
[null,null,null,"Activos biológicos"]
[null,null,null,"Participações financeiras - método da equivalência patrimonial"]
[null,null,null,"Participações financeiras - outros métodos"]
[null,null,null,"Accionistas/sócios"]
[null,null,null,"Outros activos financeiros"]
[null,null,null,"Activos por impostos diferidos"]
[null,null,null,null,null,null,null,null,null,null,null,null,null,null,null,null,{"$f":"+Q20+Q21+Q22+Q23+Q24+Q25+Q26+Q27+Q28+Q29+Q30","v":0},{"$f":"+R20+R21+R22+R23+R24+R25+R26+R27+R28+R29+R30","v":0}]
[null,null,null,"Activo corrente"]
[null,null,null,"Inventários "]
[null,null,null,"Activos biológicos"]
[null,null,null,"Clientes"]
[null,null,null,"Adiantamentos a fornecedores"]
[null,null,null,"Estado e outros entes públicos"]
[null,null,null,"Accionistas/sócios"]
[null,null,null,"Outras contas a receber"]
[null,null,null,"Diferimentos"]
[null,null,null,"Activos financeiros detidos para negociação"]
[null,null,null,"Outros activos financeiros"]
[null,null,null,"Activos não correntes detidos para venda"]
[null,null,null,"Caixa e depósitos bancários"]
[null,null,null,null,null,null,null,null,null,null,null,null,null,null,null,null,{"$f":"+Q32+Q33+Q34+Q35+Q36+Q37+Q38+Q39+Q40+Q41+Q42+Q43+Q44","v":0},{"$f":"+R32+R33+R34+R35+R36+R37+R38+R39+R40+R41+R42+R43+R44","v":0}]
[null,null,null,"TOTAL DO ACTIVO",null,null,null,null,null,null,null,null,null,null,null,null,{"$f":"+Q31+Q45","v":0},{"$f":"+R31+R45","v":0}]
[]
[null,null,null,"CAPITAL PRÓPRIO E PASSIVO"]
[null,null,null,"CAPITAL PRÓPRIO  "]
[null,null,null,"Capital realizado"]
[null,null,null,"Acções (quotas) próprias "]
[null,null,null,"Outros instrumentos de capital próprio"]
[null,null,null,"Prémios de emissão"]
[null,null,null,"Reservas legais"]
[null,null,null,"Outras reservas"]
[null,null,null,"Resultados transitados"]
[null,null,null,"Ajustamentos em activos financeiros"]
[null,null,null,"Excedentes de revalorização"]
[null,null,null,"Outras variações no capital próprio"]
[null,null,null,"Resultado líquido do período "]
[null,null,null,"Interesses minoritários"]
[null,null,null,"Total do capital próprio",null,null,null,null,null,null,null,null,null,null,null,null,{"$f":"+Q49+Q50+Q51+Q52+Q53+Q54+Q55+Q56+Q57+Q58+Q59+Q60+Q61","v":0},{"$f":"+R49+R50+R51+R52+R53+R54+R55+R56+R57+R58+R59+R60+R61","v":0}]
[]
[null,null,null,"Passivo"]
[null,null,null,"Passivo não corrente"]
[null,null,null,"Provisões"]
[null,null,null,"Financiamentos obtidos"]
[null,null,null,"Responsabilidades por belefícios pós-emprego"]
[null,null,null,"Passivos por impostos diferidos"]
[null,null,null,"Outras contas a pagar"]
[null,null,null,null,null,null,null,null,null,null,null,null,null,null,null,null,{"$f":"+Q64+Q65+Q66+Q67+Q68+Q69+Q70","v":0},{"$f":"+R64+R65+R66+R67+R68+R69+R70","v":0}]
[null,null,null,"Passivo corrente"]
[null,null,null,"Fornecedores"]
[null,null,null,"Adiantamento de clientes"]
[null,null,null,"Estado e outros entes públicos"]
[null,null,null,"Accionistas/sócios"]
[null,null,null,"Financiamentos obtidos"]
[null,null,null,"Outras contas a pagar"]
[null,null,null,"Diferimentos"]
[null,null,null,"Passivos financeiros detidos para negociação"]
[null,null,null,"Outros passivos financeiros"]
[null,null,null,"Passivos não correntes detidos para venda"]
[null,null,null,null,null,null,null,null,null,null,null,null,null,null,null,null,{"$f":"+Q72+Q73+Q74+Q75+Q76+Q77+Q78+Q79+Q80+Q81+Q82","v":0},{"$f":"+R72+R73+R74+R75+R76+R77+R78+R79+R80+R81+R82","v":0}]
[null,null,null,"Total do passivo",null,null,null,null,null,null,null,null,null,null,null,null,{"$f":"+Q71+Q83","v":0},{"$f":"+R71+R83","v":0}]
[null,null,null,"Total do capital próprio e do passivo",null,null,null,null,null,null,null,null,null,null,null,null,{"$f":"+Q62+Q84","v":0},{"$f":"+R62+R84","v":0}]

{"sheet":"BalançoEntNEmpr (2)","index":78,"n_rows":85,"n_cols":18,"rows_kept":85,"cut":false,"hidden":true,"merged":[[83,14,83,15],[84,14,84,15],[14,6,14,18],[77,14,77,15],[78,14,78,15],[79,14,79,15],[80,14,80,15],[81,14,81,15],[82,14,82,15],[71,14,71,15],[72,14,72,15],[73,14,73,15],[74,14,74,15],[75,14,75,15],[76,14,76,15],[65,14,65,15],[66,14,66,15],[67,14,67,15],[68,14,68,15],[69,14,69,15],[70,14,70,15],[64,14,64,15],[52,14,52,15],[53,14,53,15],[54,14,54,15],[55,14,55,15],[56,14,56,15],[57,14,57,15],[58,14,58,15],[59,14,59,15],[60,14,60,15],[61,14,61,15],[63,14,63,15],[47,3,47,13],[47,14,47,15],[48,14,48,15],[49,14,49,15],[50,14,50,15],[51,14,51,15],[40,14,40,15],[41,14,41,15],[42,14,42,15],[43,14,43,15],[44,14,44,15],[45,14,45,15],[39,14,39,15],[29,3,29,13],[29,14,29,15],[31,3,31,13],[31,14,31,15],[32,14,32,15],[33,14,33,15],[34,14,34,15],[35,14,35,15],[36,14,36,15],[37,14,37,15],[38,14,38,15],[26,3,26,13],[26,14,26,15],[27,3,27,13],[27,14,27,15],[28,3,28,13],[28,14,28,15],[23,3,23,13],[23,14,23,15],[24,3,24,13],[24,14,24,15],[25,3,25,13],[25,14,25,15],[20,3,20,13],[20,14,20,15],[21,3,21,13],[21,14,21,15],[22,3,22,13],[22,14,22,15],[17,3,17,4],[17,16,17,17],[18,3,18,13],[18,14,18,15],[19,3,19,13],[19,14,19,15],[3,2,3,17],[6,2,6,5],[10,2,10,17],[12,2,12,18],[15,2,15,7],[15,8,15,10]]}
[]
[null,null,"BENEFICIÁRIO:"]
[]
[null,null,{"$f":"+CAPA!C9","v":0}]
[]
[null,null,"NIF:"]
[null,null,{"$f":"+CAPA!C12","v":0}]
[]
[null,null,"SISTEMA DE INCENTIVOS:"]
[]
[null,null,{"$f":"+CAPA!C16","v":"PROCIÊNCIA"}]
[]
[null,null,"BALANÇO Entidade não empresarial do SRDITI Pré candidatura"]
[]
[null,null,"Copromotor2",null,null,null,{"$f":"+CAPA!G21","v":0}]
[null,null,"Data da candidatura:",null,null,null,null,null,{"$f":"+'Balanço empresa '!I15:K15","v":"00:00:00"}]
[]
[null,null,null,"(euros)",null,null,null,null,null,null,null,null,null,null,null,null,"EMPRESA PRÉ CANDIDATURA"]
[null,null,null,"ACTIVO",null,null,null,null,null,null,null,null,null,null,"Notas",null,{"$f":"IF(YEAR($I$16)=\"\",\"\",YEAR($I$16)-2)","v":1898},{"$f":"IF(YEAR($I$16)=\"\",\"\",YEAR($I$16)-1)","v":1899}]
[null,null,null,"Activo não corrente"]
[null,null,null,"activos fixos tangíveis"]
[null,null,null,"Propriedades de investimento"]
[null,null,null,"Goodwill"]
[null,null,null,"Activos Intangíveis"]
[null,null,null,"Activos biológicos"]
[null,null,null,"Participações financeiras - método da equivalência patrimonial"]
[null,null,null,"Participações financeiras - outros métodos"]
[null,null,null,"Accionistas/sócios"]
[null,null,null,"Outros activos financeiros"]
[null,null,null,"Activos por impostos diferidos"]
[null,null,null,null,null,null,null,null,null,null,null,null,null,null,null,null,{"$f":"+Q20+Q21+Q22+Q23+Q24+Q25+Q26+Q27+Q28+Q29+Q30","v":0},{"$f":"+R20+R21+R22+R23+R24+R25+R26+R27+R28+R29+R30","v":0}]
[null,null,null,"Activo corrente"]
[null,null,null,"Inventários "]
[null,null,null,"Activos biológicos"]
[null,null,null,"Clientes"]
[null,null,null,"Adiantamentos a fornecedores"]
[null,null,null,"Estado e outros entes públicos"]
[null,null,null,"Accionistas/sócios"]
[null,null,null,"Outras contas a receber"]
[null,null,null,"Diferimentos"]
[null,null,null,"Activos financeiros detidos para negociação"]
[null,null,null,"Outros activos financeiros"]
[null,null,null,"Activos não correntes detidos para venda"]
[null,null,null,"Caixa e depósitos bancários"]
[null,null,null,null,null,null,null,null,null,null,null,null,null,null,null,null,{"$f":"+Q32+Q33+Q34+Q35+Q36+Q37+Q38+Q39+Q40+Q41+Q42+Q43+Q44","v":0},{"$f":"+R32+R33+R34+R35+R36+R37+R38+R39+R40+R41+R42+R43+R44","v":0}]
[null,null,null,"TOTAL DO ACTIVO",null,null,null,null,null,null,null,null,null,null,null,null,{"$f":"+Q31+Q45","v":0},{"$f":"+R31+R45","v":0}]
[]
[null,null,null,"CAPITAL PRÓPRIO E PASSIVO"]
[null,null,null,"CAPITAL PRÓPRIO  "]
[null,null,null,"Capital realizado"]
[null,null,null,"Acções (quotas) próprias "]
[null,null,null,"Outros instrumentos de capital próprio"]
[null,null,null,"Prémios de emissão"]
[null,null,null,"Reservas legais"]
[null,null,null,"Outras reservas"]
[null,null,null,"Resultados transitados"]
[null,null,null,"Ajustamentos em activos financeiros"]
[null,null,null,"Excedentes de revalorização"]
[null,null,null,"Outras variações no capital próprio"]
[null,null,null,"Resultado líquido do período "]
[null,null,null,"Interesses minoritários"]
[null,null,null,"Total do capital próprio",null,null,null,null,null,null,null,null,null,null,null,null,{"$f":"+Q49+Q50+Q51+Q52+Q53+Q54+Q55+Q56+Q57+Q58+Q59+Q60+Q61","v":0},{"$f":"+R49+R50+R51+R52+R53+R54+R55+R56+R57+R58+R59+R60+R61","v":0}]
[]
[null,null,null,"Passivo"]
[null,null,null,"Passivo não corrente"]
[null,null,null,"Provisões"]
[null,null,null,"Financiamentos obtidos"]
[null,null,null,"Responsabilidades por belefícios pós-emprego"]
[null,null,null,"Passivos por impostos diferidos"]
[null,null,null,"Outras contas a pagar"]
[null,null,null,null,null,null,null,null,null,null,null,null,null,null,null,null,{"$f":"+Q64+Q65+Q66+Q67+Q68+Q69+Q70","v":0},{"$f":"+R64+R65+R66+R67+R68+R69+R70","v":0}]
[null,null,null,"Passivo corrente"]
[null,null,null,"Fornecedores"]
[null,null,null,"Adiantamento de clientes"]
[null,null,null,"Estado e outros entes públicos"]
[null,null,null,"Accionistas/sócios"]
[null,null,null,"Financiamentos obtidos"]
[null,null,null,"Outras contas a pagar"]
[null,null,null,"Diferimentos"]
[null,null,null,"Passivos financeiros detidos para negociação"]
[null,null,null,"Outros passivos financeiros"]
[null,null,null,"Passivos não correntes detidos para venda"]
[null,null,null,null,null,null,null,null,null,null,null,null,null,null,null,null,{"$f":"+Q72+Q73+Q74+Q75+Q76+Q77+Q78+Q79+Q80+Q81+Q82","v":0},{"$f":"+R72+R73+R74+R75+R76+R77+R78+R79+R80+R81+R82","v":0}]
[null,null,null,"Total do passivo",null,null,null,null,null,null,null,null,null,null,null,null,{"$f":"+Q71+Q83","v":0},{"$f":"+R71+R83","v":0}]
[null,null,null,"Total do capital próprio e do passivo",null,null,null,null,null,null,null,null,null,null,null,null,{"$f":"+Q62+Q84","v":0},{"$f":"+R62+R84","v":0}]

{"sheet":"Indicadores","index":79,"n_rows":32,"n_cols":8,"rows_kept":32,"cut":false,"hidden":false,"merged":[[29,5,29,6],[31,3,36,8],[4,2,4,10],[7,2,7,3],[11,2,11,10],[14,2,14,10],[27,5,27,6],[28,5,28,6]]}
[]
[]
[null,null,"BENEFICIÁRIO:"]
[]
[null,null,{"$f":"+CAPA!C9","v":0}]
[]
[null,null,"NIF:"]
[null,null,{"$f":"+CAPA!C12","v":0}]
[]
[null,null,"SISTEMA DE INCENTIVOS:"]
[]
[null,null,{"$f":"+CAPA!C16","v":"PROCIÊNCIA"}]
[]
[]
[null,null,"INDICADORES"]
[null,null,"  "]
[]
[null,null,null,"Indicadores"]
[]
[null,null,null,"N","Designação","Unidade de Medida","Valor pré projeto","Valor no ano de conclusão do projeto"]
[null,null,null,1,"Despesas de I&D das empresas","€"]
[null,null,null,2,"Despesas de I&D das entidades não empresariais do SRDITI","€"]
[null,null,null,3,"Certificação de Sistemas de Gestão da Investigação Desenvolvimento e Inovação","€"]
[null,null,null,4,"Patentes Nacionais","Nº"]
[null,null,null,5,"Patentes Europeias","Nº"]
[null,null,null,6,"Protótipos","Nº"]
[]
[null,null,null,"N","Designação","Unidade de Medida",null,"Valor no ano de conclusão do projeto"]
[null,null,null,7,"O.01.02.03.C - Empresas apoiadas para introduzirem  produtos novos no mercado","Nº"]
[null,null,null,8,"O.01.02.01.E - Projetos de transferência e utilização de conhecimento","Nº"]
[]
[null,null,null,"O beneficiário deve referir para os diferentes indicadores o valor quer em termos históricos (pré projeto) quer no ano de conclusão do projeto. Caso não tenha efetuado intervenções nestas componentes terá de preencher os respetivos campos com o zero.\n\nPara o indicador de “Despesas de I&D …” deverá considerar para o efeito as despesas em investigação industrial e desenvolvimento experimental. \n\nFace à natureza dos Indicadores “Empresas apoiadas para introduzirem produtos novos no mercado” e “Projetos de transferência e utilização de conhecimento” deverá apenas indicar os valores para o ano de conclusão do projeto.\n\n"]

{"sheet":"VENDAS EXTERIOR","index":80,"n_rows":103,"n_cols":12,"rows_kept":103,"cut":false,"hidden":false,"merged":[[102,3,103,10],[93,3,93,10],[96,3,96,10],[97,3,97,10],[98,3,98,10],[100,3,100,10],[59,3,61,3],[59,4,61,4],[59,5,59,7],[59,8,59,10],[60,5,61,5],[60,6,60,7],[60,8,61,8],[60,9,60,10],[20,4,21,4],[20,5,21,5],[20,6,20,7],[20,8,20,9],[4,2,4,11],[11,2,11,11],[7,2,7,3],[14,2,14,12],[20,3,21,3]]}
[]
[]
[null,null,"BENEFICIÁRIO:"]
[]
[null,null,{"$f":"+Financiamento!C5","v":0}]
[]
[null,null,"NIF:"]
[null,null,{"$f":"+Financiamento!C8","v":0}]
[]
[null,null,"SISTEMA DE INCENTIVOS:"]
[]
[null,null,{"$f":"+Financiamento!C12","v":"PROCIÊNCIA"}]
[]
[]
[null,null,"ATIVIDADE ECONÓMICA / VENDAS AO EXTERIOR"]
[]
[null,null,"  "]
[]
[null,null,null,"Atividade económica por mercado"]
[]
[null,null,null,"Tipo","Bem/Serviço","Mercado (país)","Ano Pré Proj",null,"Ano Fim Proj +1"]
[null,null,null,null,null,null,"Quantidade","Valor","Quantidade","Valor"]
[null,null,null,null,null,null,null,null,null,null,null,"Compras"]
[null,null,null,null,null,null,null,null,null,null,null,"Vendas"]
[]
[]
[]
[]
[]
[]
[]
[]
[]
[]
[]
[null,null,null,"Fundamentação e caraterização da atividade económica por mercado "]
[null,null,null," - Qual o histórico da empresa em matéria de internacionalização?"]
[null,null,null," - Qual é a estratégia de internacionalização?"]
[null,null,null," - A presença internacional é concentrada em que mercados?"]
[null,null,null," - Justifique os mercados selecionados."]
[]
[]
[]
[]
[]
[]
[]
[]
[]
[]
[]
[]
[]
[]
[]
[]
[]
[null,null,null,"Vendas ao Exterior Indiretas"]
[]
[null,null,null,"NIF","Designação do cliente Exportador","Ano Pré Proj",null,null,"Ano Fim Projeto + 1"]
[null,null,null,null,null,"Vendas do Beneficiário ao Cliente","Volume de Negócios do Cliente",null,"Vendas do Beneficiário ao Cliente","Volume de Negócios do Cliente"]
[null,null,null,null,null,null,"Internacional","Total",null,"Internacional","Total"]
[]
[]
[]
[]
[]
[]
[]
[]
[]
[]
[]
[]
[]
[null,null,null,"Fundamentação e caraterização das Vendas ao Exterior Indiretas"]
[]
[]
[]
[]
[]
[]
[]
[]
[]
[]
[]
[]
[]
[]
[]
[]
[]
[null,null,null,"Existindo vendas indiretas ao exterior, isto é, vendas a clientes no mercado regional quando, posteriormente, estas são incorporadas e/ou revendidas para o mercado externo, as mesmas devem aqui ser claramente identificadas/justificadas, salientando-se que só serão objeto de admissão as que apenas apresentam uma fase de intermediação."]
[]
[]
[null,null,null,"Os valores a indicar são os relativos ao ano pré candidatura e ao ano pós-projeto mencionando os diferentes intervenientes na cadeia de vendas (clientes exportadores): "]
[null,null,null,"• NIF relativo ao Cliente exportador; "]
[null,null,null,"• Designação do Cliente exportador (nome da empresa). "]
[]
[null,null,null,"No quadro da fundamentação deve ser referido o tipo de produto em causa, esclarecendo se é revendido ou se é incorporado noutro produto."]
[]
[null,null,null,"O beneficiário deve identificar o cliente exportador e respetiva faturação, podendo ser solicitados comprovativos dos cálculos apresentados sobre o montante apurado de vendas ao exterior indiretas."]

{"sheet":"Folha1","index":81,"n_rows":49,"n_cols":19,"rows_kept":49,"cut":false,"hidden":true,"merged":[[15,12,15,14],[15,16,15,18]]}
[]
[]
[]
[]
[]
[]
[]
[]
[]
[]
[]
[]
[]
[null,"RIS"]
[null,"• Saúde e bem-estar;"]
[null,"• Qualidade agroalimentar; ",null,null,null,null,null,null,null,null,null,null,"Areas Tecnologicas",null,null,null,"Estratégias"]
[null,"• Sustentabilidade, Gestão e manutenção de infraestruturas; ",null,null,null,null,null,null,null,null,null,null,"Codigo","Design","Codigo",null,"Codigo","Design","Codigo"]
[null,"• Bio-sustentabilidade; "]
[null,"• Energia, mobilidade e alterações climáticas; ",null,null,null,null,null,null,null,null,null,null,"01","Tecnologias da Construção","01",null,"01","Alargamento da gama de bens ou serviços","01"]
[null,"• Tecnologias de informação e comunicação; ",null,null,null,null,null,null,null,null,null,null,"02","Tecnologias da Informação e Telecomunicações (TIC)","02",null,"02","Entrada em novos mercados ou aumento da quota de mercado","02"]
[null,"• Turismo; ",null,null,null,null,null,null,null,null,null,null,"03","Electrónica e Instrumentação","03",null,"03","Melhoria da qualidade dos bens ou serviços","03"]
[null,"• Recursos e tecnologias do mar.",null,null,null,null,null,null,null,null,null,null,"04","Automação e Robótica","04",null,"04","Maior flexibilidade de produção ou de fornecimento de serviços","04"]
[null,null,null,null,null,null,null,null,null,null,null,null,"05","Engenharia Mecânica","05",null,"05","Aumento da capacidade de produção ou melhoria da prestação do serviço","05"]
[null,null,null,null,null,null,null,null,null,null,null,null,"06","Engenharia Química","06",null,"06","Redução dos custos de trabalho por unidade produzida de bens ou serviços","06"]
[null,null,null,null,null,null,null,null,null,null,null,null,"07","Tecnologias dos Materiais","07",null,"07","Redução do consumo de energia e de materiais por unidade produzida de bens ou serviços","07"]
[null,null,null,null,null,null,null,null,null,null,null,null,"08","Tecnologias do Ambiente","08",null,"08","Redução do impacto ambiental e/ou melhoria da saúde, higiene e segurança no trabalho","08"]
[null,null,null,null,null,null,null,null,null,null,null,null,"09","Biotecnologias","09",null,"09","Resposta a exigências legais","09"]
[null,null,null,null,null,null,null,null,null,null,null,null,"10","Tecnologias Agrárias e Alimentares","10"]
[null,null,null,null,null,null,null,null,null,null,null,null,"11","Energia","11"]
[null,null,null,null,null,null,null,null,null,null,null,null,"99","Outras","99"]
[]
[]
[]
[null,"Postos trabalho",null,"pag f18"]
[null,"Nivel de habilitações",null,null,null,null,null,null,null,null,null,null,"folha atividades"]
[null,null,null,null,null,null,null,null,null,null,null,null,"Atividades"]
[null,null,null,null,null,null,null,null,null,null,null,null,"Estudos preliminares"]
[null,null,null,null,null,null,null,null,null,null,null,null,"Especificações Técnicas"]
[null,null,null,null,null,null,null,null,null,null,null,null,"Aquisição e desenvolvimento de novos conhecimentos e capacidades para o desenvolvimento do projecto"]
[null,null,null,null,null,null,null,null,null,null,null,null,"Desenvolvimento"]
[null,null,null,null,null,null,null,null,null,null,null,null,"Construção de protótipos, pré-séries, instalação experimental/piloto"]
[null,null,null,null,null,null,null,null,null,null,null,null,"Testes e Ensaios"]
[null,"carat proj 2",null,null,null,null,null,null,null,null,null,null,"Promoção e Divulgação de resultados"]
[null,"Técnicos de entidades de investigação por contrato"]
[null,"categotia"]
[null,"Chefe Projecto"]
[null,"Professor, investigador, consultor sénior/especialista ou auditor"]
[null,"Assistente/estagiário ou consultor"]
[null,"Técnico especializado de laboratório ou desenhador"]

{"sheet":"Base","index":82,"n_rows":192,"n_cols":34,"rows_kept":192,"cut":false,"hidden":true,"merged":[[13,9,13,11],[22,9,22,11],[79,5,79,7],[79,9,79,11],[79,1,79,3],[7,5,7,7],[15,5,15,7],[28,5,28,7],[35,5,35,7],[187,1,187,3],[42,5,42,7],[62,1,62,3],[72,1,72,3],[19,1,19,3],[32,1,32,3],[41,1,41,3],[50,1,50,3],[0,30,0,33],[0,19,0,23],[0,13,0,17],[0,25,0,28],[0,1,0,3],[0,9,0,11],[0,5,0,7]]}
[null,"Tabela Área Funcional",null,null,null,"Tabela Sim/Não",null,null,null,"Tabela RIS3",null,null,null,"Tabela Pessoal",null,null,null,null,null,"Tabela EntidadesExternas",null,null,null,null,null,"Tabela Atividades",null,null,null,null,"Tabela Beneficiarios"]
[null,"Codigo","Design","Codigo",null,"Codigo","Design","Codigo",null,"Codigo","Design","Codigo",null,{"$f":"+PessoalTecnico!D22","v":1},{"$f":"+PessoalTecnico!F22","v":0},{"$f":"+PessoalTecnico!G22","v":0},{"$f":"N2&\" - \"&P2&\" ( \"&R2&\" )\"","v":"1 - 0 ( 0 )"},{"$f":"+PessoalTecnico!S22","v":0},null,{"$f":"+TecnicosEntidades!D22","v":1},{"$f":"+TecnicosEntidades!E22","v":0},{"$f":"+TecnicosEntidades!F22","v":0},{"$f":"T2&\" - \"&V2&\" ( \"&X2&\" )\"","v":"1 - 0 ( 0 )"},{"$f":"+TecnicosEntidades!M22","v":0},null,{"$f":"+Atividades!D21","v":1},null,{"$f":"+Atividades!F21","v":0},{"$f":"Z2&\" - \"&AB2","v":"1 - 0"}]
[null,null,null,null,null,null,null,null,null,null,null,null,null,{"$f":"+PessoalTecnico!D23","v":2},{"$f":"+PessoalTecnico!F23","v":0},{"$f":"+PessoalTecnico!G23","v":0},{"$f":"N3&\" - \"&P3&\" ( \"&R3&\" )\"","v":"2 - 0 ( 0 )"},{"$f":"+PessoalTecnico!S23","v":0},null,{"$f":"+TecnicosEntidades!D23","v":2},{"$f":"+TecnicosEntidades!E23","v":0},{"$f":"+TecnicosEntidades!F23","v":0},{"$f":"T3&\" - \"&V3&\" ( \"&X3&\" )\"","v":"2 - 0 ( 0 )"},{"$f":"+TecnicosEntidades!M23","v":0},null,{"$f":"+Atividades!D22","v":2},null,{"$f":"+Atividades!F22","v":0},{"$f":"Z3&\" - \"&AB3","v":"2 - 0"},null,{"$f":"+CAPA!C19","v":"Beneficiário"},"B",{"$f":"+CAPA!G19","v":0},{"$f":"+AF3&\" - \"&AG3","v":"B - 0"}]
[null,"01","Administração/Direcção","01",null,"1","Sim","1",null,"01","a)    Saúde e bem-estar;","01",null,{"$f":"+PessoalTecnico!D24","v":3},{"$f":"+PessoalTecnico!F24","v":0},{"$f":"+PessoalTecnico!G24","v":0},"3 - 0 ( 0 )",{"$f":"+PessoalTecnico!S24","v":0},null,{"$f":"+TecnicosEntidades!D24","v":3},{"$f":"+TecnicosEntidades!E24","v":0},{"$f":"+TecnicosEntidades!F24","v":0},"3 - 0 ( 0 )",{"$f":"+TecnicosEntidades!M24","v":0},null,{"$f":"+Atividades!D23","v":3},null,{"$f":"+Atividades!F23","v":0},"3 - 0",null,{"$f":"+CAPA!C20","v":"CoPromotor1\n(Se aplicável)"},"Co",{"$f":"+CAPA!G20","v":0},{"$f":"+AF4&\" - \"&AG4","v":"Co - 0"}]
[null,"02","Administrativa/Financeira","02",null,"0","Não","0",null,"02","b)    Qualidade agroalimentar;","02",null,{"$f":"+PessoalTecnico!D25","v":4},{"$f":"+PessoalTecnico!F25","v":0},{"$f":"+PessoalTecnico!G25","v":0},"4 - 0 ( 0 )",{"$f":"+PessoalTecnico!S25","v":0},null,{"$f":"+TecnicosEntidades!D25","v":4},{"$f":"+TecnicosEntidades!E25","v":0},{"$f":"+TecnicosEntidades!F25","v":0},"4 - 0 ( 0 )",{"$f":"+TecnicosEntidades!M25","v":0},null,{"$f":"+Atividades!D24","v":4},null,{"$f":"+Atividades!F24","v":0},"4 - 0",null,{"$f":"+CAPA!C21","v":"CoPromotor\n(Se aplicável)"},"Co",{"$f":"+CAPA!G21","v":0},"Co - 0"]
[null,"03","Aprovisionamento","03",null,null,null,null,null,"03","c)    Sustentabilidade, gestão e manutenção de infraestruturas;","03",null,{"$f":"+PessoalTecnico!D26","v":5},{"$f":"+PessoalTecnico!F26","v":0},{"$f":"+PessoalTecnico!G26","v":0},"5 - 0 ( 0 )",{"$f":"+PessoalTecnico!S26","v":0},null,{"$f":"+TecnicosEntidades!D26","v":5},{"$f":"+TecnicosEntidades!E26","v":0},{"$f":"+TecnicosEntidades!F26","v":0},"5 - 0 ( 0 )",{"$f":"+TecnicosEntidades!M26","v":0},null,{"$f":"+Atividades!D25","v":5},null,{"$f":"+Atividades!F25","v":0},"5 - 0"]
[null,"04","Comercial/Marketing","04",null,null,null,null,null,"04","d)   Bio-sustentabilidade;","04",null,{"$f":"+PessoalTecnico!D27","v":6},{"$f":"+PessoalTecnico!F27","v":0},{"$f":"+PessoalTecnico!G27","v":0},"6 - 0 ( 0 )",{"$f":"+PessoalTecnico!S27","v":0},null,{"$f":"+TecnicosEntidades!D27","v":6},{"$f":"+TecnicosEntidades!E27","v":0},{"$f":"+TecnicosEntidades!F27","v":0},"6 - 0 ( 0 )",{"$f":"+TecnicosEntidades!M27","v":0},null,{"$f":"+Atividades!D26","v":6},null,{"$f":"+Atividades!F26","v":0},"6 - 0"]
[null,"05","Engenharia, Concepção e Projecto","05",null,"Tabela Vinculo",null,null,null,"05","e)    Energia, mobilidade e alterações climáticas;","05",null,{"$f":"+PessoalTecnico!D28","v":7},{"$f":"+PessoalTecnico!F28","v":0},{"$f":"+PessoalTecnico!G28","v":0},"7 - 0 ( 0 )",{"$f":"+PessoalTecnico!S28","v":0},null,{"$f":"+TecnicosEntidades!D28","v":7},{"$f":"+TecnicosEntidades!E28","v":0},{"$f":"+TecnicosEntidades!F28","v":0},"7 - 0 ( 0 )",{"$f":"+TecnicosEntidades!M28","v":0},null,{"$f":"+Atividades!D27","v":7},null,{"$f":"+Atividades!F27","v":0},"7 - 0"]
[null,"06","Investigação","06",null,"Codigo","Design","Codigo",null,"06","f)     Tecnologias de informação e comunicação;","06",null,{"$f":"+PessoalTecnico!D29","v":8},{"$f":"+PessoalTecnico!F29","v":0},{"$f":"+PessoalTecnico!G29","v":0},"8 - 0 ( 0 )",{"$f":"+PessoalTecnico!S29","v":0},null,{"$f":"+TecnicosEntidades!D29","v":8},{"$f":"+TecnicosEntidades!E29","v":0},{"$f":"+TecnicosEntidades!F29","v":0},"8 - 0 ( 0 )",{"$f":"+TecnicosEntidades!M29","v":0},null,{"$f":"+Atividades!D28","v":8},null,{"$f":"+Atividades!F28","v":0},"8 - 0"]
[null,"07","Qualidade","07",null,null,null,null,null,"07","g)    Turismo;","07",null,{"$f":"+PessoalTecnico!D30","v":9},{"$f":"+PessoalTecnico!F30","v":0},{"$f":"+PessoalTecnico!G30","v":0},"9 - 0 ( 0 )",{"$f":"+PessoalTecnico!S30","v":0},null,{"$f":"+TecnicosEntidades!D30","v":9},{"$f":"+TecnicosEntidades!E30","v":0},{"$f":"+TecnicosEntidades!F30","v":0},"9 - 0 ( 0 )",{"$f":"+TecnicosEntidades!M30","v":0},null,{"$f":"+Atividades!D29","v":9},null,{"$f":"+Atividades!F29","v":0},"9 - 0"]
[null,"11","Operacional (Produtiva)","11",null,"01","Quadro","01",null,"08","h)    Recursos e Tecnologias do Mar.","08",null,{"$f":"+PessoalTecnico!D31","v":10},{"$f":"+PessoalTecnico!F31","v":0},{"$f":"+PessoalTecnico!G31","v":0},"10 - 0 ( 0 )",{"$f":"+PessoalTecnico!S31","v":0},null,{"$f":"+TecnicosEntidades!D31","v":10},{"$f":"+TecnicosEntidades!E31","v":0},{"$f":"+TecnicosEntidades!F31","v":0},"10 - 0 ( 0 )",{"$f":"+TecnicosEntidades!M31","v":0},null,{"$f":"+Atividades!D30","v":10},null,{"$f":"+Atividades!F30","v":0},"10 - 0"]
[null,"21","Operacional (Turismo) - Recepção/Portaria","21",null,"02","Bolseiro","02",null,null,null,null,null,{"$f":"+PessoalTecnico!D32","v":11},{"$f":"+PessoalTecnico!F32","v":0},{"$f":"+PessoalTecnico!G32","v":0},"11 - 0 ( 0 )",{"$f":"+PessoalTecnico!S32","v":0},null,{"$f":"+TecnicosEntidades!D32","v":11},{"$f":"+TecnicosEntidades!E32","v":0},{"$f":"+TecnicosEntidades!F32","v":0},"11 - 0 ( 0 )",{"$f":"+TecnicosEntidades!M32","v":0},null,{"$f":"+Atividades!D31","v":11},null,{"$f":"+Atividades!F31","v":0},"11 - 0"]
[null,"22","Operacional (Turismo) - Quartos/Limpeza","22",null,"99","Outros ","99",null,null,null,null,null,{"$f":"+PessoalTecnico!D33","v":12},{"$f":"+PessoalTecnico!F33","v":0},{"$f":"+PessoalTecnico!G33","v":0},"12 - 0 ( 0 )",{"$f":"+PessoalTecnico!S33","v":0},null,{"$f":"+TecnicosEntidades!D33","v":12},{"$f":"+TecnicosEntidades!E33","v":0},{"$f":"+TecnicosEntidades!F33","v":0},"12 - 0 ( 0 )",{"$f":"+TecnicosEntidades!M33","v":0},null,{"$f":"+Atividades!D32","v":12},null,{"$f":"+Atividades!F32","v":0},"12 - 0"]
[null,"23","Operacional (Turismo) - Restaurante/Bar","23",null,null,null,null,null,"Tabela Técnicos de entidades de investigação por contrato",null,null,null,{"$f":"+PessoalTecnico!D34","v":13},{"$f":"+PessoalTecnico!F34","v":0},{"$f":"+PessoalTecnico!G34","v":0},"13 - 0 ( 0 )",{"$f":"+PessoalTecnico!S34","v":0},null,{"$f":"+TecnicosEntidades!D34","v":13},{"$f":"+TecnicosEntidades!E34","v":0},{"$f":"+TecnicosEntidades!F34","v":0},"13 - 0 ( 0 )",{"$f":"+TecnicosEntidades!M34","v":0},null,{"$f":"+Atividades!D33","v":13},null,{"$f":"+Atividades!F33","v":0},"13 - 0"]
[null,"24","Operacional (Turismo) - Cozinha","24",null,null,null,null,null,"Codigo","Design","Codigo",null,{"$f":"+PessoalTecnico!D35","v":14},{"$f":"+PessoalTecnico!F35","v":0},{"$f":"+PessoalTecnico!G35","v":0},"14 - 0 ( 0 )",{"$f":"+PessoalTecnico!S35","v":0},null,{"$f":"+TecnicosEntidades!D35","v":14},{"$f":"+TecnicosEntidades!E35","v":0},{"$f":"+TecnicosEntidades!F35","v":0},"14 - 0 ( 0 )",{"$f":"+TecnicosEntidades!M35","v":0},null,{"$f":"+Atividades!D34","v":14},null,{"$f":"+Atividades!F34","v":0},"14 - 0"]
[null,"25","Operacional (Turismo) - Animação","25",null,"Tabela Vinculo Funcao Publica (FP)",null,null,null,null,null,null,null,{"$f":"+PessoalTecnico!D36","v":15},{"$f":"+PessoalTecnico!F36","v":0},{"$f":"+PessoalTecnico!G36","v":0},"15 - 0 ( 0 )",{"$f":"+PessoalTecnico!S36","v":0},null,{"$f":"+TecnicosEntidades!D36","v":15},{"$f":"+TecnicosEntidades!E36","v":0},{"$f":"+TecnicosEntidades!F36","v":0},"15 - 0 ( 0 )",{"$f":"+TecnicosEntidades!M36","v":0},null,{"$f":"+Atividades!D35","v":15},null,{"$f":"+Atividades!F35","v":0},"15 - 0"]
[null,"29","Operacional (Turismo) - Outras","29",null,"Codigo","Design","Codigo",null,"01","Chefe Projecto","01",null,{"$f":"+PessoalTecnico!D37","v":16},{"$f":"+PessoalTecnico!F37","v":0},{"$f":"+PessoalTecnico!G37","v":0},"16 - 0 ( 0 )",{"$f":"+PessoalTecnico!S37","v":0},null,null,null,null,null,null,null,{"$f":"+Atividades!D36","v":16},null,{"$f":"+Atividades!F36","v":0},"16 - 0"]
[null,"99","Outros","99",null,null,null,null,null,"02","Professor, investigador, consultor sénior/especialista ou auditor","02",null,{"$f":"+PessoalTecnico!D38","v":17},{"$f":"+PessoalTecnico!F38","v":0},{"$f":"+PessoalTecnico!G38","v":0},"17 - 0 ( 0 )",{"$f":"+PessoalTecnico!S38","v":0},null,null,null,null,null,null,null,{"$f":"+Atividades!D37","v":17},null,{"$f":"+Atividades!F37","v":0},"17 - 0"]
[null,null,null,null,null,"01","Administração/Direcção","01",null,"03","Assistente/estagiário ou consultor","03",null,{"$f":"+PessoalTecnico!D39","v":18},{"$f":"+PessoalTecnico!F39","v":0},{"$f":"+PessoalTecnico!G39","v":0},"18 - 0 ( 0 )",{"$f":"+PessoalTecnico!S39","v":0},null,null,null,null,null,null,null,{"$f":"+Atividades!D38","v":18},null,{"$f":"+Atividades!F38","v":0},"18 - 0"]
[null,"Tabela Níveis",null,null,null,"02","Administrativa/Financeira","02",null,"04","Técnico especializado de laboratório ou desenhador","04",null,{"$f":"+PessoalTecnico!D40","v":19},{"$f":"+PessoalTecnico!F40","v":0},{"$f":"+PessoalTecnico!G40","v":0},"19 - 0 ( 0 )",{"$f":"+PessoalTecnico!S40","v":0},null,null,null,null,null,null,null,{"$f":"+Atividades!D39","v":19},null,{"$f":"+Atividades!F39","v":0},"19 - 0"]
[null,"Codigo","Design","Codigo",null,"05","Qualidade","05",null,null,null,null,null,{"$f":"+PessoalTecnico!D41","v":20},{"$f":"+PessoalTecnico!F41","v":0},{"$f":"+PessoalTecnico!G41","v":0},"20 - 0 ( 0 )",{"$f":"+PessoalTecnico!S41","v":0},null,null,null,null,null,null,null,{"$f":"+Atividades!D40","v":20},null,{"$f":"+Atividades!F40","v":0},"20 - 0"]
[null,null,null,null,null,"12","Recepção/Portaria","12",null,null,null,null,null,{"$f":"+PessoalTecnico!D42","v":21},{"$f":"+PessoalTecnico!F42","v":0},{"$f":"+PessoalTecnico!G42","v":0},"21 - 0 ( 0 )",{"$f":"+PessoalTecnico!S42","v":0}]
[null,"01","Nível I","01",null,"13","Quartos/Limpeza","13",null,"Tabela Estratégias",null,null,null,{"$f":"+PessoalTecnico!D43","v":22},{"$f":"+PessoalTecnico!F43","v":0},{"$f":"+PessoalTecnico!G43","v":0},"22 - 0 ( 0 )",{"$f":"+PessoalTecnico!S43","v":0}]
[null,"02","Nível II","02",null,"14","Restaurante/Bar","14",null,"Codigo","Design","Codigo",null,{"$f":"+PessoalTecnico!D44","v":23},{"$f":"+PessoalTecnico!F44","v":0},{"$f":"+PessoalTecnico!G44","v":0},"23 - 0 ( 0 )",{"$f":"+PessoalTecnico!S44","v":0}]
[null,"03","Nível III","03",null,"15","Cozinha","15",null,null,null,null,null,{"$f":"+PessoalTecnico!D45","v":24},{"$f":"+PessoalTecnico!F45","v":0},{"$f":"+PessoalTecnico!G45","v":0},"24 - 0 ( 0 )",{"$f":"+PessoalTecnico!S45","v":0}]
[null,"04","Nível IV","04",null,"16","Animação","16",null,"01","Alargamento da gama de bens ou serviços","01",null,{"$f":"+PessoalTecnico!D46","v":25},{"$f":"+PessoalTecnico!F46","v":0},{"$f":"+PessoalTecnico!G46","v":0},"25 - 0 ( 0 )",{"$f":"+PessoalTecnico!S46","v":0}]
[null,"05","Nível V","05",null,"99","Outros","99",null,"02","Entrada em novos mercados ou aumento da quota de mercado","02",null,{"$f":"+PessoalTecnico!D47","v":26},{"$f":"+PessoalTecnico!F47","v":0},{"$f":"+PessoalTecnico!G47","v":0},"26 - 0 ( 0 )",{"$f":"+PessoalTecnico!S47","v":0}]
[null,"06","Nível VI","06",null,null,null,null,null,"03","Melhoria da qualidade dos bens ou serviços","03",null,{"$f":"+PessoalTecnico!D48","v":27},{"$f":"+PessoalTecnico!F48","v":0},{"$f":"+PessoalTecnico!G48","v":0},"27 - 0 ( 0 )",{"$f":"+PessoalTecnico!S48","v":0}]
[null,"07","Nível VII","07",null,"Tabela Tipo Mercado",null,null,null,"04","Maior flexibilidade de produção ou de fornecimento de serviços","04",null,{"$f":"+PessoalTecnico!D49","v":28},{"$f":"+PessoalTecnico!F49","v":0},{"$f":"+PessoalTecnico!G49","v":0},"28 - 0 ( 0 )",{"$f":"+PessoalTecnico!S49","v":0}]
[null,"08","Nível VIII","08",null,"Codigo","Design","Codigo",null,"05","Aumento da capacidade de produção ou melhoria da prestação do serviço","05",null,{"$f":"+PessoalTecnico!D50","v":29},{"$f":"+PessoalTecnico!F50","v":0},{"$f":"+PessoalTecnico!G50","v":0},"29 - 0 ( 0 )",{"$f":"+PessoalTecnico!S50","v":0}]
[null,null,null,null,null,null,null,null,null,"06","Redução dos custos de trabalho por unidade produzida de bens ou serviços","06",null,{"$f":"+PessoalTecnico!D51","v":30},{"$f":"+PessoalTecnico!F51","v":0},{"$f":"+PessoalTecnico!G51","v":0},"30 - 0 ( 0 )",{"$f":"+PessoalTecnico!S51","v":0}]
[null,null,null,null,null,"01","Vendas","01",null,"07","Redução do consumo de energia e de materiais por unidade produzida de bens ou serviços","07"]
[null,"Tabela Dimensão",null,null,null,"02","Prestação de Serviços","02",null,"08","Redução do impacto ambiental e/ou melhoria da saúde, higiene e segurança no trabalho","08"]
[null,"Codigo","Design","Codigo",null,"03","Compras","03",null,"09","Resposta a exigências legais","09"]
[null,null,null,null,null,null,null,null,null,"10","Outras","10"]
[null,"1","Micro","1",null,"Tabela Origem do Desenvolvimento"]
[null,"2","Pequena","2",null,"Codigo","Design","Codigo"]
[null,"3","Média","3"]
[null,"4","Não PME","4",null,"1","Principalmente na empresa","1"]
[null,null,null,null,null,"2","Em colaboração com outras empresas ou instituições","2",null,"Atividades","Classificação atividade"]
[null,null,null,null,null,"3","Principalmente por outras empresas ou instituições","3"]
[null,"Tabela Objectivo Dominante",null,null,null,null,null,null,null,null,"Desenvolvimento Exerimental"]
[null,"Codigo","Design","Codigo",null,"Tabela Princicpais Estratégias",null,null,null,null,"Investigação Industrial"]
[null,null,null,null,null,"Codigo","Design","Codigo",null,null,"Gestão técnica do projeto"]
[null,"01","Prospecção/Entrada","01"]
[null,"02","Crescimento do volume de negócios","02",null,"01","Alargamento da gama de bens ou serviços","01",null,null,"Metodologia de cálculo a adotar"]
[null,"03","Consolidação de posição no mercado","03",null,"02","Entrada em novos mercados ou aumento da quota de mercado","02",null,null,"Imputação de custos reais"]
[null,"04","Reposicionamento em segmentos de maior valor acrescentado","04",null,"03","Melhoria da qualidade dos bens ou serviços","03",null,null,"Imputação de custos simplificados"]
[null,null,null,null,null,"04","Maior flexibilidade de produção ou de fornecimento de serviços","04"]
[null,null,null,null,null,"05","Aumento da capacidade de produção ou melhoria da prestação do serviço","05"]
[null,"Tabela Tipo Reg Prop Intelectual (RPI)",null,null,null,"06","Redução dos custos de trabalho por unidade produzida de bens ou serviços","06"]
[null,"Codigo","Design","Codigo",null,"07","Redução do consumo de energia e de materiais por unidade produzida de bens ou serviços","07",null,null,"tipo de benefeciário"]
[null,null,null,null,null,"08","Redução do impacto ambiental e/ou melhoria da saúde, higiene e segurança no trabalho","08"]
[null,"01","Patente","01",null,"09","Resposta a exigências legais","09",null,1,"Empresa"]
[null,"02","Marca","02",null,null,null,null,null,2,"EntidadeNESRDITI"]
[null,"03","Design","03"]
[null,"04","Modelo de utilidade","04"]
[null,"05","Copyright","05",null,null,null,null,null,null,"dimensão empresa"]
[null,"06","AIM - Aut Introd Merc","06"]
[null,99,"Outros",99,null,null,null,null,null,1,"Micro Empresa"]
[null,null,null,null,null,null,null,null,null,2,"Pequena Empresa"]
[null,null,null,null,null,null,null,null,null,3,"Média Empresa"]
[null,"Tabela Ambito RPI",null,null,null,null,null,null,null,4,"Grande Empresa"]
[null,"Codigo","Design","Codigo"]
[]
[null,"01","Nacional","01"]
[null,"02","Europeu","02"]
[null,"03","EUA","03"]
[null,"04","Ásia","04"]
[null,"05","Internacional","05"]
[]
[]
[null,"Tabela Situacao Actual RPI"]
[null,"Codigo","Design","Codigo"]
[]
[null,"01","Pendente","01"]
[null,"02","Registada","02"]
[]
[]
[null,"Tabela Areas Tecnologicas",null,null,null,"Tabela Areas Tecnologicas",null,null,null,"Tabela SistemasIncentivos"]
[null,"Codigo","Design","Codigo",null,"Codigo","Design","Codigo",null,"Codigo","Design","Codigo"]
[]
[null,"2201","Acústica","2201",null,"01","Tecnologias da Construção","01",null,"01","----- Escolha -----","01"]
[null,"2202","Electromagnetismo","2202",null,"02","Tecnologias da Informação e Telecomunicações (TIC)","02",null,"02","INOVAR 2020","02"]
[null,"2203","Electrónica","2203",null,"03","Electrónica e Instrumentação","03",null,"03","EMPREENDER 2020","03"]
[null,"2204","Física dos fluidos","2204",null,"04","Automação e Robótica","04",null,"04","INTERNACIONALIZAR 2020","04"]
[null,"2205","Mecânica","2205",null,"05","Engenharia Mecânica","05",null,"05","PROCiência 2020","05"]
[null,"2206","Física Molecular","2206",null,"06","Engenharia Química","06"]
[null,"2207","Física Atómica e Nuclear","2207",null,"07","Tecnologias dos Materiais","07"]
[null,"2209","Óptica","2209",null,"08","Tecnologias do Ambiente","08"]
[null,"2210","Química Física","2210",null,"09","Biotecnologias","09"]
[null,"2211","Física do Estado Sólido","2211",null,"10","Tecnologias Agrárias e Alimentares","10"]
[null,"2212","Física Teórica","2212",null,"11","Energia","11"]
[null,"2213","Termodinâmica","2213",null,"99","Outras","99"]
[null,"2301","Química Analítica","2301"]
[null,"2302","Bioquímica","2302"]
[null,"2303","Química inorgânica","2303"]
[null,"2304","Química macromolecular","2304"]
[null,"2305","Química Nuclear","2305"]
[null,"2306","Química orgânica","2306"]
[null,"2307","Química física","2307"]
[null,"2308","Química Farmacêutica","2308"]
[null,"2309","Química ambiental","2309"]
[null,"2401","Biologia animal (Zoologia)","2401"]
[null,"2402","Antropologia","2402"]
[null,"2403","Bioquímica","2403"]
[null,"2404","Biofísica","2404"]
[null,"2405","Biologia celular","2405"]
[null,"2406","Genética","2406"]
[null,"2407","Biologia Humana","2407"]
[null,"2408","Biologia Vegetal (Botânica)","2408"]
[null,"2409","Neurociências","2409"]
[null,"2410","Fisiologia humana","2410"]
[null,"2411","Imunologia","2411"]
[null,"2412","Biologia dos insectos (Entomologia)","2412"]
[null,"2413","Microbiologia","2413"]
[null,"2414","Biologia molecular","2414"]
[null,"2415","Paleontologia","2415"]
[null,"2416","Virologia","2416"]
[null,"2501","Ciência da Atmosfera","2501"]
[null,"2502","Climatologia","2502"]
[null,"2503","Geoquímica","2503"]
[null,"2504","Geodesia","2504"]
[null,"2505","Geografia","2505"]
[null,"2506","Geologia","2506"]
[null,"2507","Geofísica","2507"]
[null,"2508","Hidrologia","2508"]
[null,"2509","Meteorologia","2509"]
[null,"2510","Oceanografia","2510"]
[null,"2511","Ciência do solo (Edafologia)","2511"]
[null,"2512","Ciência do Espaço","2512"]
[null,"3101","Agroquímica","3101"]
[null,"3102","Engenharia Agrícola","3102"]
[null,"3103","Agronomia","3103"]
[null,"3104","Produção Animal","3104"]
[null,"3105","Peixes e fauna silvestre","3105"]
[null,"3106","Ciência Florestal","3106"]
[null,"3107","Horticultura","3107"]
[null,"3108","Fitopatologia","3108"]
[null,"3109","Ciência veterinárias","3109"]
[null,"3201","Ciências Clínicas","3201"]
[null,"3202","Epidemiologia","3202"]
[null,"3205","Medicina interna","3205"]
[null,"3206","Ciência da Nutrição","3206"]
[null,"3207","Patologia","3207"]
[null,"3208","Farmacodinâmica","3208"]
[null,"3209","Farmacologia","3209"]
[null,"3301","Engenharia Aeronáutica","3301"]
[null,"3302","Engenharia Química e Biotecnologia","3302"]
[null,"3303","Engenharia Química","3303"]
[null,"3304","Engenharia de Computadores","3304"]
[null,"3305","Engenharia Construção Civil","3305"]
[null,"3306","Engenharia Eléctrica","3306"]
[null,"3307","Engenharia Electrotécnica","3307"]
[null,"3308","Engenharia do ambiente","3308"]
[null,"3309","Tecnologia Alimentar","3309"]
[null,"3310","Engenharia Industrial","3310"]
[null,"3311","Instrumentação","3311"]
[null,"3312","Engenharia dos Materiais","3312"]
[null,"3313","Engenharia Mecânica","3313"]
[null,"3314","Tecnologia medica","3314"]
[null,"3315","Engenharia Metalúrgica","3315"]
[null,"3316","Tecnologia dos produtos metálicos","3316"]
[null,"3317","Engenharia dos veículos a motor","3317"]
[null,"3318","Engenharia Geológica e Minas","3318"]
[null,"3319","Engenharia Naval","3319"]
[null,"3320","Tecnologia Nuclear","3320"]
[null,"3321","Tecnologia do Carvão e do Petróleo","3321"]
[null,"3322","Tecnologia Energética","3322"]
[null,"3323","Tecnologia de transportes ferroviários","3323"]
[null,"3324","Engenharia do espaço","3324"]
[null,"3325","Engenharia das telecomunicações","3325"]
[null,"3326","Engenharia Têxtil","3326"]
[null,"3327","Engenharia dos sistemas de transporte","3327"]
[null,"3328","Processos Tecnológicos","3328"]
[null,"3329","Planificação Urbana","3329"]
[null,"3330","Engenharia Informática","3330"]
[null,"5301","Economia geral","5301"]
[null,"5302","Economia da mudança tecnológica","5302"]
[null,"5303","Economia sectorial","5303"]
[null,"5304","Organização e gestão de empresas","5304"]
[null,"5305","Gestão da Inovação e desenvolvimento","5305"]
[null,"5306","Gestão da Qualidade","5306"]
[null,"5307","Estratégia empresarial","5307"]
[null,"9999","Outras","9999"]
[]
[]
[null,"Tabela Genero"]
[null,"Codigo","Design","Codigo"]
[]
[null,"F","Feminino","F"]
[null,"M","Masculino","M"]